{"text_format":"1","workbook":"xlsx","n_sheets":8,"sheets":["Cover","Sources","DataFiles","Systems","NewDataFiles","Log","Seznamy","RFC"],"not_rendered":{"charts":0,"images":0,"macros":1,"external_links":0,"defined_names":2,"comments":0,"pivot_tables":0},"unopened":[],"bounds":{"document_bytes":16777216,"sheet_cells":100000,"rows_first":2000,"rows_last":500,"rows_between":2000,"halvings":0,"cell_chars":16384,"cell_head_chars":4096},"cells_cut":0,"cells_raw":0,"read":"whole","date_system":"1900"}

{"sheet":"Cover","index":0,"n_rows":427,"n_cols":135,"rows_kept":427,"cut":false,"hidden":false,"merged":[[424,32,424,35],[425,32,425,35],[426,32,426,35],[419,32,419,35],[420,32,420,35],[421,32,421,35],[422,32,422,35],[423,32,423,35],[414,32,414,35],[415,32,415,35],[416,32,416,35],[417,32,417,35],[418,32,418,35],[409,32,409,35],[410,32,410,35],[411,32,411,35],[412,32,412,35],[413,32,413,35],[404,32,404,35],[405,32,405,35],[406,32,406,35],[407,32,407,35],[408,32,408,35],[399,32,399,35],[400,32,400,35],[401,32,401,35],[402,32,402,35],[403,32,403,35],[394,32,394,35],[395,32,395,35],[396,32,396,35],[397,32,397,35],[398,32,398,35],[389,32,389,35],[390,32,390,35],[391,32,391,35],[392,32,392,35],[393,32,393,35],[384,32,384,35],[385,32,385,35],[386,32,386,35],[387,32,387,35],[388,32,388,35],[379,32,379,35],[380,32,380,35],[381,32,381,35],[382,32,382,35],[383,32,383,35],[374,32,374,35],[375,32,375,35],[376,32,376,35],[377,32,377,35],[378,32,378,35],[369,32,369,35],[370,32,370,35],[371,32,371,35],[372,32,372,35],[373,32,373,35],[364,32,364,35],[365,32,365,35],[366,32,366,35],[367,32,367,35],[368,32,368,35],[359,32,359,35],[360,32,360,35],[361,32,361,35],[362,32,362,35],[363,32,363,35],[354,32,354,35],[355,32,355,35],[356,32,356,35],[357,32,357,35],[358,32,358,35],[349,32,349,35],[350,32,350,35],[351,32,351,35],[352,32,352,35],[353,32,353,35],[344,32,344,35],[345,32,345,35],[346,32,346,35],[347,32,347,35],[348,32,348,35],[339,32,339,35],[340,32,340,35],[341,32,341,35],[342,32,342,35],[343,32,343,35],[334,32,334,35],[335,32,335,35],[336,32,336,35],[337,32,337,35],[338,32,338,35],[329,32,329,35],[330,32,330,35],[331,32,331,35],[332,32,332,35],[333,32,333,35],[324,32,324,35],[325,32,325,35],[326,32,326,35],[327,32,327,35],[328,32,328,35],[319,32,319,35],[320,32,320,35],[321,32,321,35],[322,32,322,35],[323,32,323,35],[314,32,314,35],[315,32,315,35],[316,32,316,35],[317,32,317,35],[318,32,318,35],[309,32,309,35],[310,32,310,35],[311,32,311,35],[312,32,312,35],[313,32,313,35],[304,32,304,35],[305,32,305,35],[306,32,306,35],[307,32,307,35],[308,32,308,35],[299,32,299,35],[300,32,300,35],[301,32,301,35],[302,32,302,35],[303,32,303,35],[294,32,294,35],[295,32,295,35],[296,32,296,35],[297,32,297,35],[298,32,298,35],[289,32,289,35],[290,32,290,35],[291,32,291,35],[292,32,292,35],[293,32,293,35],[284,32,284,35],[285,32,285,35],[286,32,286,35],[287,32,287,35],[288,32,288,35],[279,32,279,35],[280,32,280,35],[281,32,281,35],[282,32,282,35],[283,32,283,35],[274,32,274,35],[275,32,275,35],[276,32,276,35],[277,32,277,35],[278,32,278,35],[269,32,269,35],[270,32,270,35],[271,32,271,35],[272,32,272,35],[273,32,273,35],[264,32,264,35],[265,32,265,35],[266,32,266,35],[267,32,267,35],[268,32,268,35],[259,32,259,35],[260,32,260,35],[261,32,261,35],[262,32,262,35],[263,32,263,35],[254,32,254,35],[255,32,255,35],[256,32,256,35],[257,32,257,35],[258,32,258,35],[249,32,249,35],[250,32,250,35],[251,32,251,35],[252,32,252,35],[253,32,253,35],[244,32,244,35],[245,32,245,35],[246,32,246,35],[247,32,247,35],[248,32,248,35],[239,32,239,35],[240,32,240,35],[241,32,241,35],[242,32,242,35],[243,32,243,35],[234,32,234,35],[235,32,235,35],[236,32,236,35],[237,32,237,35],[238,32,238,35],[229,32,229,35],[230,32,230,35],[231,32,231,35],[232,32,232,35],[233,32,233,35],[224,32,224,35],[225,32,225,35],[226,32,226,35],[227,32,227,35],[228,32,228,35],[219,32,219,35],[220,32,220,35],[221,32,221,35],[222,32,222,35],[223,32,223,35],[214,32,214,35],[215,32,215,35],[216,32,216,35],[217,32,217,35],[218,32,218,35],[209,32,209,35],[210,32,210,35],[211,32,211,35],[212,32,212,35],[213,32,213,35],[204,32,204,35],[205,32,205,35],[206,32,206,35],[207,32,207,35],[208,32,208,35],[199,32,199,35],[200,32,200,35],[201,32,201,35],[202,32,202,35],[203,32,203,35],[194,32,194,35],[195,32,195,35],[196,32,196,35],[197,32,197,35],[198,32,198,35],[189,32,189,35],[190,32,190,35],[191,32,191,35],[192,32,192,35],[193,32,193,35],[184,32,184,35],[185,32,185,35],[186,32,186,35],[187,32,187,35],[188,32,188,35],[179,32,179,35],[180,32,180,35],[181,32,181,35],[182,32,182,35],[183,32,183,35],[174,32,174,35],[175,32,175,35],[176,32,176,35],[177,32,177,35],[178,32,178,35],[169,32,169,35],[170,32,170,35],[171,32,171,35],[172,32,172,35],[173,32,173,35],[164,32,164,35],[165,32,165,35],[166,32,166,35],[167,32,167,35],[168,32,168,35],[159,32,159,35],[160,32,160,35],[161,32,161,35],[162,32,162,35],[163,32,163,35],[154,32,154,35],[155,32,155,35],[156,32,156,35],[157,32,157,35],[158,32,158,35],[149,32,149,35],[150,32,150,35],[151,32,151,35],[152,32,152,35],[153,32,153,35],[144,32,144,35],[145,32,145,35],[146,32,146,35],[147,32,147,35],[148,32,148,35],[139,32,139,35],[140,32,140,35],[141,32,141,35],[142,32,142,35],[143,32,143,35],[134,32,134,35],[135,32,135,35],[136,32,136,35],[137,32,137,35],[138,32,138,35],[129,32,129,35],[130,32,130,35],[131,32,131,35],[132,32,132,35],[133,32,133,35],[124,32,124,35],[125,32,125,35],[126,32,126,35],[127,32,127,35],[128,32,128,35],[119,32,119,35],[120,32,120,35],[121,32,121,35],[122,32,122,35],[123,32,123,35],[114,32,114,35],[115,32,115,35],[116,32,116,35],[117,32,117,35],[118,32,118,35],[109,32,109,35],[110,32,110,35],[111,32,111,35],[112,32,112,35],[113,32,113,35],[104,32,104,35],[105,32,105,35],[106,32,106,35],[107,32,107,35],[108,32,108,35],[99,32,99,35],[100,32,100,35],[101,32,101,35],[102,32,102,35],[103,32,103,35],[94,32,94,35],[95,32,95,35],[96,32,96,35],[97,32,97,35],[98,32,98,35],[90,32,90,35],[91,32,91,35],[92,32,92,35],[93,32,93,35],[84,32,84,35],[85,32,85,35],[86,32,86,35],[87,32,87,35],[88,32,88,35],[81,32,81,35],[82,32,82,35],[83,32,83,35],[74,32,74,35],[75,32,75,35],[76,32,76,35],[77,32,77,35],[78,32,78,35],[89,32,89,35],[72,32,72,35],[73,32,73,35],[64,32,64,35],[65,32,65,35],[66,32,66,35],[67,32,67,35],[68,32,68,35],[79,32,79,35],[80,32,80,35],[63,32,63,35],[54,32,54,35],[55,32,55,35],[56,32,56,35],[57,32,57,35],[58,32,58,35],[69,32,69,35],[70,32,70,35],[71,32,71,35],[48,4,48,7],[48,9,48,12],[48,14,48,17],[48,19,48,22],[48,24,48,27],[59,32,59,35],[60,32,60,35],[61,32,61,35],[62,32,62,35],[51,32,51,35],[52,32,52,35],[53,32,53,35],[4,14,4,17],[4,19,4,22],[4,24,4,27],[27,4,27,7],[27,9,27,12],[27,14,27,17],[27,19,27,22],[27,24,27,27],[25,24,25,27],[46,4,46,7],[46,9,46,12],[46,14,46,17],[46,19,46,22],[46,24,46,27],[33,32,33,35],[34,32,34,35],[35,32,35,35],[45,32,45,35],[46,32,46,35],[2,44,2,47],[4,44,4,47],[25,44,25,47],[46,44,46,47],[2,39,2,42],[4,39,4,42],[25,39,25,42],[46,39,46,42],[2,4,2,7],[2,9,2,12],[2,14,2,17],[2,19,2,22],[2,24,2,27],[25,4,25,7],[25,9,25,12],[25,14,25,17],[25,19,25,22],[4,4,4,7],[4,9,4,12],[2,29,2,37],[5,32,5,35],[7,32,7,35],[8,32,8,35],[9,32,9,35],[2,54,2,57],[4,54,4,57],[25,54,25,57],[46,54,46,57],[2,49,2,52],[4,49,4,52],[25,49,25,52],[46,49,46,52],[2,64,2,67],[4,64,4,67],[25,64,25,67],[46,64,46,67],[2,59,2,62],[4,59,4,62],[25,59,25,62],[46,59,46,62],[2,74,2,77],[4,74,4,77],[25,74,25,77],[46,74,46,77],[2,69,2,72],[4,69,4,72],[25,69,25,72],[46,69,46,72],[2,84,2,87],[4,84,4,87],[25,84,25,87],[46,84,46,87],[2,79,2,82],[4,79,4,82],[25,79,25,82],[46,79,46,82],[2,94,2,97],[4,94,4,97],[25,94,25,97],[46,94,46,97],[2,89,2,92],[4,89,4,92],[25,89,25,92],[46,89,46,92],[2,104,2,107],[4,104,4,107],[25,104,25,107],[46,104,46,107],[2,99,2,102],[4,99,4,102],[25,99,25,102],[46,99,46,102],[10,32,10,35],[11,32,11,35],[12,32,12,35],[13,32,13,35],[28,32,28,35],[29,32,29,35],[30,32,30,35],[31,32,31,35],[32,32,32,35],[23,32,23,35],[24,32,24,35],[25,32,25,35],[26,32,26,35],[27,32,27,35],[14,32,14,35],[15,32,15,35],[16,32,16,35],[17,32,17,35],[18,32,18,35],[19,32,19,35],[20,32,20,35],[21,32,21,35],[22,32,22,35],[47,32,47,35],[48,32,48,35],[49,32,49,35],[50,32,50,35],[36,32,36,35],[37,32,37,35],[38,32,38,35],[39,32,39,35],[40,32,40,35],[41,32,41,35],[42,32,42,35],[43,32,43,35],[44,32,44,35]]}
[]
[null,null,null,null,{"$f":"E3","v":"Portál"},null,null,null,null,{"$f":"J3","v":"Stavební úřad"},null,null,null,null,{"$f":"O3","v":"Požárníci"},null,null,null,null,{"$f":"T3","v":"Památkáři"},null,null,null,null,{"$f":"Y3","v":"Ochrana přírody"},null,null,null,null,null,null,null,null,null,null,null,null,null,null,{"$f":"AN3","v":"Sousedé"},null,null,null,null,{"$f":"AS3","v":"Operátoři"},null,null,null,null,{"$f":"AX3","v":"Ministerstvo ŽP"},null,null,null,null,{"$f":"BC3","v":"Soud"},null,null,null,null,{"$f":"BH3","v":"Investor"},null,null,null,null,{"$f":"BM3","v":"Další dotčené orgány"},null,null,null,null,{"$f":"BR3","v":"Majitel stavající infrasturktury"},null,null,null,null,{"$f":"BW3","v":"Obec"},null,null,null,null,{"$f":"CB3","v":"Poskytovatel dotace"},null,null,null,null,{"$f":"CG3","v":"Stavební firma"},null,null,null,null,{"$f":"CL3","v":"Další systém 16"},null,null,null,null,{"$f":"CQ3","v":"Další systém 17"},null,null,null,null,{"$f":"CV3","v":"Další systém 18"},null,null,null,null,{"$f":"DA3","v":"Další systém 19"}]
[null,null,null,null,{"$f":"Sources!$C3","v":"Portál"},null,null,null,null,{"$f":"Sources!$C9","v":"Stavební úřad"},null,null,null,null,{"$f":"Sources!$C10","v":"Požárníci"},null,null,null,null,{"$f":"Sources!$C11","v":"Památkáři"},null,null,null,null,{"$f":"Sources!$C12","v":"Ochrana přírody"},null,null,null,null,{"$f":"DA3","v":"Další systém 19"},null,null,null,null,null,null,null,null,null,{"$f":"Sources!$C13","v":"Sousedé"},null,null,null,null,{"$f":"Sources!$C14","v":"Operátoři"},null,null,null,null,{"$f":"Sources!$C15","v":"Ministerstvo ŽP"},null,null,null,null,{"$f":"Sources!$C16","v":"Soud"},null,null,null,null,{"$f":"Sources!$C17","v":"Investor"},null,null,null,null,{"$f":"Sources!$C18","v":"Další dotčené orgány"},null,null,null,null,{"$f":"Sources!$C19","v":"Majitel stavající infrasturktury"},null,null,null,null,{"$f":"Sources!$C20","v":"Obec"},null,null,null,null,{"$f":"Sources!$C21","v":"Poskytovatel dotace"},null,null,null,null,{"$f":"Sources!$C22","v":"Stavební firma"},null,null,null,null,{"$f":"Sources!$C23","v":"Další systém 16"},null,null,null,null,{"$f":"Sources!$C24","v":"Další systém 17"},null,null,null,null,{"$f":"Sources!$C25","v":"Další systém 18"},null,null,null,null,{"$f":"Sources!$C26","v":"Další systém 19"}]
[]
[null,null,null,null,{"$f":"COUNT(E8:E24)","v":0},null,null,null,null,{"$f":"COUNT(J8:J24)","v":2},null,null,null,null,{"$f":"COUNT(O8:O24)","v":0},null,null,null,null,{"$f":"COUNT(T8:T24)","v":0},null,null,null,null,{"$f":"COUNT(Y8:Y24)","v":1},null,null,null,null,null,null,null,null,null,null,null,null,null,null,{"$f":"COUNT(AN8:AN33)","v":1},null,null,null,null,{"$f":"COUNT(AS8:AS33)","v":0},null,null,null,null,{"$f":"COUNT(AX8:AX33)","v":0},null,null,null,null,{"$f":"COUNT(BC8:BC33)","v":0},null,null,null,null,{"$f":"COUNT(BH8:BH33)","v":0},null,null,null,null,{"$f":"COUNT(BM8:BM33)","v":1},null,null,null,null,{"$f":"COUNT(BR8:BR33)","v":0},null,null,null,null,{"$f":"COUNT(BW8:BW33)","v":0},null,null,null,null,{"$f":"COUNT(CB8:CB33)","v":0},null,null,null,null,{"$f":"COUNT(CG8:CG33)","v":0},null,null,null,null,{"$f":"COUNT(CL8:CL33)","v":0},null,null,null,null,{"$f":"COUNT(CQ8:CQ33)","v":0},null,null,null,null,{"$f":"COUNT(CV8:CV33)","v":0},null,null,null,null,{"$f":"COUNT(DA8:DA33)","v":0},null,null,null,null,"DataFiles",null,null,null,null,null,null,null,null,null,null,null,null,null,null,null,null,"NewDataFiles"]
[null,null,null,null,"ID","Name","FileType","TimeStamp",null,"ID","Name","FileType","TimeStamp",null,"ID","Name","FileType","TimeStamp",null,"ID","Name","FileType","TimeStamp",null,"ID","Name","FileType","TimeStamp",null,"ID","Name","FileType","Current Systém",null,null,null,"Content","TimeStamp",null,"ID","Name","FileType","TimeStamp",null,"ID","Name","FileType","TimeStamp",null,"ID","Name","Current Systém","FileType",null,"ID","Name","Current Systém","FileType",null,"ID","Name","Current Systém","FileType",null,"ID","Name","Current Systém","FileType",null,"ID","Name","Current Systém","FileType",null,"ID","Name","Current Systém","FileType",null,"ID","Name","Current Systém","FileType",null,"ID","Name","Current Systém","FileType",null,"ID","Name","Current Systém","FileType",null,"ID","Name","Current Systém","FileType",null,"ID","Name","Current Systém","FileType",null,"ID","Name","Current Systém","FileType",null,{"$f":"DataFiles!A1","v":"FileID"},{"$f":"DataFiles!B1","v":"FileName"},{"$f":"DataFiles!C1","v":"FileType"},{"$f":"DataFiles!D1","v":"CurrentSystem"},{"$f":"DataFiles!E1","v":"NextSystem"},{"$f":"DataFiles!F1","v":"What was done in this trigger step:"},{"$f":"DataFiles!G1","v":"Počet"},{"$f":"DataFiles!H1","v":"TimeStamp"},{"$f":"DataFiles!I1","v":"B"},{"$f":"DataFiles!J1","v":0},{"$f":"DataFiles!K1","v":0},null,null,null,null,null,null,"FileID","FileName","FileType","CurrentSystem","NextSystem","Content","Count","TimeStamp","Počet"]
[null,null,null,null,null,null,null,null,null,null,null,null,null,null,null,null,null,null,null,null,null,null,null,null,null,null,null,null,null,null,null,null,null,null,null,null,null,null,null,null,null,null,null,null,null,null,null,null,null,null,null,null,null,null,null,null,null,null,null,null,null,null,null,null,null,null,null,null,null,null,null,null,null,null,null,null,null,null,null,null,null,null,null,null,null,null,null,null,null,null,null,null,null,null,null,null,null,null,null,null,null,null,null,null,null,null,null,null,null,{"$f":"DataFiles!A$2","v":1},{"$f":"DataFiles!B$2","v":"žádost"},{"$f":"DataFiles!C$2","v":"Schváleno PO"},{"$f":"DataFiles!D$2","v":"Stavební úřad"},{"$f":"DataFiles!E$2","v":0},{"$f":"DataFiles!F$2","v":"The application number 1 is resolved"},{"$f":"DataFiles!G$2","v":1},{"$f":"DataFiles!H$2","v":45848.348330787034},{"$f":"DataFiles!I$2","v":0},{"$f":"DataFiles!J$2","v":0},{"$f":"DataFiles!K$2","v":0},null,null,null,null,null,2,{"$f":"NewDataFiles!A2","v":0},{"$f":"NewDataFiles!B2","v":0},{"$f":"NewDataFiles!C2","v":0},{"$f":"NewDataFiles!D2","v":0},{"$f":"NewDataFiles!E2","v":0},{"$f":"NewDataFiles!F2","v":0},{"$f":"NewDataFiles!G2","v":0},{"$f":"NewDataFiles!H2","v":"00:00:00"},{"$f":"NewDataFiles!I2","v":0}]
[null,null,null,null,null,null,null,null,null,1,"žádost","Schváleno PO",45848.348330787034,null,null,null,null,null,null,null,null,null,null,null,1,"žádost","Posouzení záměru OP",45848.347627314812,null,{"$f":"IF(Log!A2=\"\",\"\",Log!A2)","v":1},{"$f":"IF(Log!B2=\"\",\"\",Log!B2)","v":"žádost"},{"$f":"IF(Log!C2=\"\",\"\",Log!C2)","v":"Posouzení záměru SÚ"},{"$f":"IF(Log!D2=\"\",\"\",Log!D2)","v":"Stavební úřad"},null,null,null,{"$f":"IF(Log!F2=\"\",\"\",Log!F2)","v":"The request number 1 has been forwarded to the building office."},{"$f":"IF(Log!H2=\"\",\"\",Log!H2)","v":45848.347500925927},null,1,"žádost","Posouzení záměru Sous",45848.347630324075,null,null,null,null,null,null,null,null,null,null,null,null,null,null,null,null,null,null,null,null,null,1,"žádost","Posouzení záměru DDO",45848.347633217592,null,null,null,null,null,null,null,null,null,null,null,null,null,null,null,null,null,null,null,null,null,null,null,null,null,null,null,null,null,null,null,null,null,null,null,null,null,null,null,null,null,{"$f":"DataFiles!A$3","v":1},{"$f":"DataFiles!B$3","v":"žádost"},{"$f":"DataFiles!C$3","v":"Schváleno Pam"},{"$f":"DataFiles!D$3","v":"Stavební úřad"},{"$f":"DataFiles!E$3","v":0},{"$f":"DataFiles!F$3","v":"The application number 1 is resolved"},{"$f":"DataFiles!G$3","v":1},{"$f":"DataFiles!H$3","v":45848.348338194446},{"$f":"DataFiles!I$3","v":0},{"$f":"DataFiles!J$3","v":0},{"$f":"DataFiles!K$3","v":0},null,null,null,null,null,3,{"$f":"NewDataFiles!A3","v":0},{"$f":"NewDataFiles!B3","v":0},{"$f":"NewDataFiles!C3","v":0},{"$f":"NewDataFiles!D3","v":0},{"$f":"NewDataFiles!E3","v":0},{"$f":"NewDataFiles!F3","v":0},{"$f":"NewDataFiles!G3","v":0},{"$f":"NewDataFiles!H3","v":"00:00:00"},{"$f":"NewDataFiles!I3","v":0}]
[null,null,null,null,null,null,null,null,null,1,"žádost","Schváleno Pam",45848.348338194446,null,null,null,null,null,null,null,null,null,null,null,null,null,null,null,null,{"$f":"IF(Log!A3=\"\",\"\",Log!A3)","v":1},{"$f":"IF(Log!B3=\"\",\"\",Log!B3)","v":"žádost"},{"$f":"IF(Log!C3=\"\",\"\",Log!C3)","v":"Posouzení záměru PO"},{"$f":"IF(Log!D3=\"\",\"\",Log!D3)","v":"Požárníci"},null,null,null,{"$f":"IF(Log!F3=\"\",\"\",Log!F3)","v":"The application number 1 has been submitted for review by the fire department."},{"$f":"IF(Log!H3=\"\",\"\",Log!H3)","v":45848.347623263886},null,null,null,null,null,null,null,null,null,null,null,null,null,null,null,null,null,null,null,null,null,null,null,null,null,null,null,null,null,null,null,null,null,null,null,null,null,null,null,null,null,null,null,null,null,null,null,null,null,null,null,null,null,null,null,null,null,null,null,null,null,null,null,null,null,null,null,null,null,null,null,{"$f":"DataFiles!A$4","v":1},{"$f":"DataFiles!B$4","v":"žádost"},{"$f":"DataFiles!C$4","v":"Posouzení záměru OP"},{"$f":"DataFiles!D$4","v":"Ochrana přírody"},{"$f":"DataFiles!E$4","v":0},{"$f":"DataFiles!F$4","v":"The application number 1 is resolved"},{"$f":"DataFiles!G$4","v":1},{"$f":"DataFiles!H$4","v":45848.347627314812},{"$f":"DataFiles!I$4","v":0},{"$f":"DataFiles!J$4","v":0},{"$f":"DataFiles!K$4","v":0},null,null,null,null,null,4,{"$f":"NewDataFiles!A4","v":0},{"$f":"NewDataFiles!B4","v":0},{"$f":"NewDataFiles!C4","v":0},{"$f":"NewDataFiles!D4","v":0},{"$f":"NewDataFiles!E4","v":0},{"$f":"NewDataFiles!F4","v":0},{"$f":"NewDataFiles!G4","v":0},{"$f":"NewDataFiles!H4","v":"00:00:00"},{"$f":"NewDataFiles!I4","v":0}]
[null,null,null,null,null,null,null,null,null,null,null,null,null,null,null,null,null,null,null,null,null,null,null,null,null,null,null,null,null,{"$f":"IF(Log!A4=\"\",\"\",Log!A4)","v":1},{"$f":"IF(Log!B4=\"\",\"\",Log!B4)","v":"žádost"},{"$f":"IF(Log!C4=\"\",\"\",Log!C4)","v":"Posouzení záměru Pam"},{"$f":"IF(Log!D4=\"\",\"\",Log!D4)","v":"Památkáři"},null,null,null,{"$f":"IF(Log!F4=\"\",\"\",Log!F4)","v":"and to review by the heritage authorities."},{"$f":"IF(Log!H4=\"\",\"\",Log!H4)","v":45848.347623263886},null,null,null,null,null,null,null,null,null,null,null,null,null,null,null,null,null,null,null,null,null,null,null,null,null,null,null,null,null,null,null,null,null,null,null,null,null,null,null,null,null,null,null,null,null,null,null,null,null,null,null,null,null,null,null,null,null,null,null,null,null,null,null,null,null,null,null,null,null,null,null,{"$f":"DataFiles!A$5","v":1},{"$f":"DataFiles!B$5","v":"žádost"},{"$f":"DataFiles!C$5","v":"Posouzení záměru Sous"},{"$f":"DataFiles!D$5","v":"Sousedé"},{"$f":"DataFiles!E$5","v":0},{"$f":"DataFiles!F$5","v":"The application number 1 is resolved"},{"$f":"DataFiles!G$5","v":1},{"$f":"DataFiles!H$5","v":45848.347630324075},{"$f":"DataFiles!I$5","v":0},{"$f":"DataFiles!J$5","v":0},{"$f":"DataFiles!K$5","v":0},null,null,null,null,null,5,{"$f":"NewDataFiles!A5","v":0},{"$f":"NewDataFiles!B5","v":0},{"$f":"NewDataFiles!C5","v":0},{"$f":"NewDataFiles!D5","v":0},{"$f":"NewDataFiles!E5","v":0},{"$f":"NewDataFiles!F5","v":0},{"$f":"NewDataFiles!G5","v":0},{"$f":"NewDataFiles!H5","v":"00:00:00"},{"$f":"NewDataFiles!I5","v":0}]
[null,null,null,null,null,null,null,null,null,null,null,null,null,null,null,null,null,null,null,null,null,null,null,null,null,null,null,null,null,{"$f":"IF(Log!A5=\"\",\"\",Log!A5)","v":1},{"$f":"IF(Log!B5=\"\",\"\",Log!B5)","v":"žádost"},{"$f":"IF(Log!C5=\"\",\"\",Log!C5)","v":"Posouzení záměru OP"},{"$f":"IF(Log!D5=\"\",\"\",Log!D5)","v":"Ochrana přírody"},null,null,null,{"$f":"IF(Log!F5=\"\",\"\",Log!F5)","v":"and for review by the nature conservation authority"},{"$f":"IF(Log!H5=\"\",\"\",Log!H5)","v":45848.347623263886},null,null,null,null,null,null,null,null,null,null,null,null,null,null,null,null,null,null,null,null,null,null,null,null,null,null,null,null,null,null,null,null,null,null,null,null,null,null,null,null,null,null,null,null,null,null,null,null,null,null,null,null,null,null,null,null,null,null,null,null,null,null,null,null,null,null,null,null,null,null,null,{"$f":"DataFiles!A$6","v":1},{"$f":"DataFiles!B$6","v":"žádost"},{"$f":"DataFiles!C$6","v":"Posouzení záměru DDO"},{"$f":"DataFiles!D$6","v":"Další dotčené orgány"},{"$f":"DataFiles!E$6","v":0},{"$f":"DataFiles!F$6","v":"The response to the application number 1 has been returned to the building office."},{"$f":"DataFiles!G$6","v":1},{"$f":"DataFiles!H$6","v":45848.347633217592},{"$f":"DataFiles!I$6","v":0},{"$f":"DataFiles!J$6","v":0},{"$f":"DataFiles!K$6","v":0},null,null,null,null,null,6,{"$f":"NewDataFiles!A6","v":0},{"$f":"NewDataFiles!B6","v":0},{"$f":"NewDataFiles!C6","v":0},{"$f":"NewDataFiles!D6","v":0},{"$f":"NewDataFiles!E6","v":0},{"$f":"NewDataFiles!F6","v":0},{"$f":"NewDataFiles!G6","v":0},{"$f":"NewDataFiles!H6","v":"00:00:00"},{"$f":"NewDataFiles!I6","v":0}]
[null,null,null,null,null,null,null,null,null,null,null,null,null,null,null,null,null,null,null,null,null,null,null,null,null,null,null,null,null,{"$f":"IF(Log!A6=\"\",\"\",Log!A6)","v":1},{"$f":"IF(Log!B6=\"\",\"\",Log!B6)","v":"žádost"},{"$f":"IF(Log!C6=\"\",\"\",Log!C6)","v":"Posouzení záměru Sous"},{"$f":"IF(Log!D6=\"\",\"\",Log!D6)","v":"Sousedé"},null,null,null,{"$f":"IF(Log!F6=\"\",\"\",Log!F6)","v":"and is ready for comments from the neighbors."},{"$f":"IF(Log!H6=\"\",\"\",Log!H6)","v":45848.347623263886},null,null,null,null,null,null,null,null,null,null,null,null,null,null,null,null,null,null,null,null,null,null,null,null,null,null,null,null,null,null,null,null,null,null,null,null,null,null,null,null,null,null,null,null,null,null,null,null,null,null,null,null,null,null,null,null,null,null,null,null,null,null,null,null,null,null,null,null,null,null,null,{"$f":"DataFiles!A$7","v":0},{"$f":"DataFiles!B$7","v":0},{"$f":"DataFiles!C$7","v":0},{"$f":"DataFiles!D$7","v":0},{"$f":"DataFiles!E$7","v":0},{"$f":"DataFiles!F$7","v":0},{"$f":"DataFiles!G$7","v":0},{"$f":"DataFiles!H$7","v":"00:00:00"},{"$f":"DataFiles!I$7","v":0},{"$f":"DataFiles!J$7","v":0},{"$f":"DataFiles!K$7","v":0},null,null,null,null,null,7,{"$f":"NewDataFiles!A7","v":0},{"$f":"NewDataFiles!B7","v":0},{"$f":"NewDataFiles!C7","v":0},{"$f":"NewDataFiles!D7","v":0},{"$f":"NewDataFiles!E7","v":0},{"$f":"NewDataFiles!F7","v":0},{"$f":"NewDataFiles!G7","v":0},{"$f":"NewDataFiles!H7","v":"00:00:00"},{"$f":"NewDataFiles!I7","v":0}]
[null,null,null,null,null,null,null,null,null,null,null,null,null,null,null,null,null,null,null,null,null,null,null,null,null,null,null,null,null,{"$f":"IF(Log!A7=\"\",\"\",Log!A7)","v":1},{"$f":"IF(Log!B7=\"\",\"\",Log!B7)","v":"žádost"},{"$f":"IF(Log!C7=\"\",\"\",Log!C7)","v":"Posouzení záměru DDO"},{"$f":"IF(Log!D7=\"\",\"\",Log!D7)","v":"Další dotčené orgány"},null,null,null,{"$f":"IF(Log!F7=\"\",\"\",Log!F7)","v":"as well as is ready for comments from other relevant authorities."},{"$f":"IF(Log!H7=\"\",\"\",Log!H7)","v":45848.347623379632},null,null,null,null,null,null,null,null,null,null,null,null,null,null,null,null,null,null,null,null,null,null,null,null,null,null,null,null,null,null,null,null,null,null,null,null,null,null,null,null,null,null,null,null,null,null,null,null,null,null,null,null,null,null,null,null,null,null,null,null,null,null,null,null,null,null,null,null,null,null,null,{"$f":"DataFiles!A$8","v":0},{"$f":"DataFiles!B$8","v":0},{"$f":"DataFiles!C$8","v":0},{"$f":"DataFiles!D$8","v":0},{"$f":"DataFiles!E$8","v":0},{"$f":"DataFiles!F$8","v":0},{"$f":"DataFiles!G$8","v":0},{"$f":"DataFiles!H$8","v":"00:00:00"},{"$f":"DataFiles!I$8","v":0},{"$f":"DataFiles!J$8","v":0},{"$f":"DataFiles!K$8","v":0},null,null,null,null,null,8,{"$f":"NewDataFiles!A8","v":0},{"$f":"NewDataFiles!B8","v":0},{"$f":"NewDataFiles!C8","v":0},{"$f":"NewDataFiles!D8","v":0},{"$f":"NewDataFiles!E8","v":0},{"$f":"NewDataFiles!F8","v":0},{"$f":"NewDataFiles!G8","v":0},{"$f":"NewDataFiles!H8","v":"00:00:00"},{"$f":"NewDataFiles!I8","v":0}]
[null,null,null,null,null,null,null,null,null,null,null,null,null,null,null,null,null,null,null,null,null,null,null,null,null,null,null,null,null,{"$f":"IF(Log!A8=\"\",\"\",Log!A8)","v":1},{"$f":"IF(Log!B8=\"\",\"\",Log!B8)","v":"žádost"},{"$f":"IF(Log!C8=\"\",\"\",Log!C8)","v":"Schváleno PO"},{"$f":"IF(Log!D8=\"\",\"\",Log!D8)","v":"Stavební úřad"},null,null,null,{"$f":"IF(Log!F8=\"\",\"\",Log!F8)","v":"The application number 1 is resolved"},{"$f":"IF(Log!H8=\"\",\"\",Log!H8)","v":45848.348330787034},null,null,null,null,null,null,null,null,null,null,null,null,null,null,null,null,null,null,null,null,null,null,null,null,null,null,null,null,null,null,null,null,null,null,null,null,null,null,null,null,null,null,null,null,null,null,null,null,null,null,null,null,null,null,null,null,null,null,null,null,null,null,null,null,null,null,null,null,null,null,null,{"$f":"DataFiles!A$9","v":0},{"$f":"DataFiles!B$9","v":0},{"$f":"DataFiles!C$9","v":0},{"$f":"DataFiles!D$9","v":0},{"$f":"DataFiles!E$9","v":0},{"$f":"DataFiles!F$9","v":0},{"$f":"DataFiles!G$9","v":0},{"$f":"DataFiles!H$9","v":"00:00:00"},{"$f":"DataFiles!I$9","v":0},{"$f":"DataFiles!J$9","v":0},{"$f":"DataFiles!K$9","v":0},null,null,null,null,null,9,{"$f":"NewDataFiles!A9","v":0},{"$f":"NewDataFiles!B9","v":0},{"$f":"NewDataFiles!C9","v":0},{"$f":"NewDataFiles!D9","v":0},{"$f":"NewDataFiles!E9","v":0},{"$f":"NewDataFiles!F9","v":0},{"$f":"NewDataFiles!G9","v":0},{"$f":"NewDataFiles!H9","v":"00:00:00"},{"$f":"NewDataFiles!I9","v":0}]
[null,null,null,null,null,null,null,null,null,null,null,null,null,null,null,null,null,null,null,null,null,null,null,null,null,null,null,null,null,{"$f":"IF(Log!A9=\"\",\"\",Log!A9)","v":1},{"$f":"IF(Log!B9=\"\",\"\",Log!B9)","v":"žádost"},{"$f":"IF(Log!C9=\"\",\"\",Log!C9)","v":"Schváleno Pam"},{"$f":"IF(Log!D9=\"\",\"\",Log!D9)","v":"Stavební úřad"},null,null,null,{"$f":"IF(Log!F9=\"\",\"\",Log!F9)","v":"The application number 1 is resolved"},{"$f":"IF(Log!H9=\"\",\"\",Log!H9)","v":45848.3483380787},null,null,null,null,null,null,null,null,null,null,null,null,null,null,null,null,null,null,null,null,null,null,null,null,null,null,null,null,null,null,null,null,null,null,null,null,null,null,null,null,null,null,null,null,null,null,null,null,null,null,null,null,null,null,null,null,null,null,null,null,null,null,null,null,null,null,null,null,null,null,null,{"$f":"DataFiles!A$10","v":0},{"$f":"DataFiles!B$10","v":0},{"$f":"DataFiles!C$10","v":0},{"$f":"DataFiles!D$10","v":0},{"$f":"DataFiles!E$10","v":0},{"$f":"DataFiles!F$10","v":0},{"$f":"DataFiles!G$10","v":0},{"$f":"DataFiles!H$10","v":"00:00:00"},{"$f":"DataFiles!I$10","v":0},{"$f":"DataFiles!J$10","v":0},{"$f":"DataFiles!K$10","v":0},null,null,null,null,null,10,{"$f":"NewDataFiles!A10","v":0},{"$f":"NewDataFiles!B10","v":0},{"$f":"NewDataFiles!C10","v":0},{"$f":"NewDataFiles!D10","v":0},{"$f":"NewDataFiles!E10","v":0},{"$f":"NewDataFiles!F10","v":0},{"$f":"NewDataFiles!G10","v":0},{"$f":"NewDataFiles!H10","v":"00:00:00"},{"$f":"NewDataFiles!I10","v":0}]
[null,null,null,null,null,null,null,null,null,null,null,null,null,null,null,null,null,null,null,null,null,null,null,null,null,null,null,null,null,{"$f":"IF(Log!A10=\"\",\"\",Log!A10)","v":1},{"$f":"IF(Log!B10=\"\",\"\",Log!B10)","v":"žádost"},{"$f":"IF(Log!C10=\"\",\"\",Log!C10)","v":"Posouzení záměru OP"},{"$f":"IF(Log!D10=\"\",\"\",Log!D10)","v":"Ochrana přírody"},null,null,null,{"$f":"IF(Log!F10=\"\",\"\",Log!F10)","v":"The application number 1 is resolved"},{"$f":"IF(Log!H10=\"\",\"\",Log!H10)","v":45848.347627314812},null,null,null,null,null,null,null,null,null,null,null,null,null,null,null,null,null,null,null,null,null,null,null,null,null,null,null,null,null,null,null,null,null,null,null,null,null,null,null,null,null,null,null,null,null,null,null,null,null,null,null,null,null,null,null,null,null,null,null,null,null,null,null,null,null,null,null,null,null,null,null,{"$f":"DataFiles!A$11","v":0},{"$f":"DataFiles!B$11","v":0},{"$f":"DataFiles!C$11","v":0},{"$f":"DataFiles!D$11","v":0},{"$f":"DataFiles!E$11","v":0},{"$f":"DataFiles!F$11","v":0},{"$f":"DataFiles!G$11","v":0},{"$f":"DataFiles!H$11","v":"00:00:00"},{"$f":"DataFiles!I$11","v":0},{"$f":"DataFiles!J$11","v":0},{"$f":"DataFiles!K$11","v":0},null,null,null,null,null,11,{"$f":"NewDataFiles!A11","v":0},{"$f":"NewDataFiles!B11","v":0},{"$f":"NewDataFiles!C11","v":0},{"$f":"NewDataFiles!D11","v":0},{"$f":"NewDataFiles!E11","v":0},{"$f":"NewDataFiles!F11","v":0},{"$f":"NewDataFiles!G11","v":0},{"$f":"NewDataFiles!H11","v":"00:00:00"},{"$f":"NewDataFiles!I11","v":0}]
[null,null,null,null,null,null,null,null,null,null,null,null,null,null,null,null,null,null,null,null,null,null,null,null,null,null,null,null,null,{"$f":"IF(Log!A11=\"\",\"\",Log!A11)","v":1},{"$f":"IF(Log!B11=\"\",\"\",Log!B11)","v":"žádost"},{"$f":"IF(Log!C11=\"\",\"\",Log!C11)","v":"Posouzení záměru Sous"},{"$f":"IF(Log!D11=\"\",\"\",Log!D11)","v":"Sousedé"},null,null,null,{"$f":"IF(Log!F11=\"\",\"\",Log!F11)","v":"The application number 1 is resolved"},{"$f":"IF(Log!H11=\"\",\"\",Log!H11)","v":45848.347630324075},null,null,null,null,null,null,null,null,null,null,null,null,null,null,null,null,null,null,null,null,null,null,null,null,null,null,null,null,null,null,null,null,null,null,null,null,null,null,null,null,null,null,null,null,null,null,null,null,null,null,null,null,null,null,null,null,null,null,null,null,null,null,null,null,null,null,null,null,null,null,null,{"$f":"DataFiles!A$12","v":0},{"$f":"DataFiles!B$12","v":0},{"$f":"DataFiles!C$12","v":0},{"$f":"DataFiles!D$12","v":0},{"$f":"DataFiles!E$12","v":0},{"$f":"DataFiles!F$12","v":0},{"$f":"DataFiles!G$12","v":0},{"$f":"DataFiles!H$12","v":"00:00:00"},{"$f":"DataFiles!I$12","v":0},{"$f":"DataFiles!J$12","v":0},{"$f":"DataFiles!K$12","v":0},null,null,null,null,null,12,{"$f":"NewDataFiles!A12","v":0},{"$f":"NewDataFiles!B12","v":0},{"$f":"NewDataFiles!C12","v":0},{"$f":"NewDataFiles!D12","v":0},{"$f":"NewDataFiles!E12","v":0},{"$f":"NewDataFiles!F12","v":0},{"$f":"NewDataFiles!G12","v":0},{"$f":"NewDataFiles!H12","v":"00:00:00"},{"$f":"NewDataFiles!I12","v":0}]
[null,null,null,null,null,null,null,null,null,null,null,null,null,null,null,null,null,null,null,null,null,null,null,null,null,null,null,null,null,{"$f":"IF(Log!A12=\"\",\"\",Log!A12)","v":1},{"$f":"IF(Log!B12=\"\",\"\",Log!B12)","v":"žádost"},{"$f":"IF(Log!C12=\"\",\"\",Log!C12)","v":"Posouzení záměru DDO"},{"$f":"IF(Log!D12=\"\",\"\",Log!D12)","v":"Další dotčené orgány"},null,null,null,{"$f":"IF(Log!F12=\"\",\"\",Log!F12)","v":"The response to the application number 1 has been returned to the building office."},{"$f":"IF(Log!H12=\"\",\"\",Log!H12)","v":45848.347633217592},null,null,null,null,null,null,null,null,null,null,null,null,null,null,null,null,null,null,null,null,null,null,null,null,null,null,null,null,null,null,null,null,null,null,null,null,null,null,null,null,null,null,null,null,null,null,null,null,null,null,null,null,null,null,null,null,null,null,null,null,null,null,null,null,null,null,null,null,null,null,null,{"$f":"DataFiles!A$13","v":0},{"$f":"DataFiles!B$13","v":0},{"$f":"DataFiles!C$13","v":0},{"$f":"DataFiles!D$13","v":0},{"$f":"DataFiles!E$13","v":0},{"$f":"DataFiles!F$13","v":0},{"$f":"DataFiles!G$13","v":0},{"$f":"DataFiles!H$13","v":"00:00:00"},{"$f":"DataFiles!I$13","v":0},{"$f":"DataFiles!J$13","v":0},{"$f":"DataFiles!K$13","v":0},null,null,null,null,null,13,{"$f":"NewDataFiles!A13","v":0},{"$f":"NewDataFiles!B13","v":0},{"$f":"NewDataFiles!C13","v":0},{"$f":"NewDataFiles!D13","v":0},{"$f":"NewDataFiles!E13","v":0},{"$f":"NewDataFiles!F13","v":0},{"$f":"NewDataFiles!G13","v":0},{"$f":"NewDataFiles!H13","v":"00:00:00"},{"$f":"NewDataFiles!I13","v":0}]
[null,null,null,null,null,null,null,null,null,null,null,null,null,null,null,null,null,null,null,null,null,null,null,null,null,null,null,null,null,{"$f":"IF(Log!A13=\"\",\"\",Log!A13)","v":""},{"$f":"IF(Log!B13=\"\",\"\",Log!B13)","v":""},{"$f":"IF(Log!C13=\"\",\"\",Log!C13)","v":""},{"$f":"IF(Log!D13=\"\",\"\",Log!D13)","v":""},null,null,null,{"$f":"IF(Log!F13=\"\",\"\",Log!F13)","v":""},{"$f":"IF(Log!H13=\"\",\"\",Log!H13)","v":""},null,null,null,null,null,null,null,null,null,null,null,null,null,null,null,null,null,null,null,null,null,null,null,null,null,null,null,null,null,null,null,null,null,null,null,null,null,null,null,null,null,null,null,null,null,null,null,null,null,null,null,null,null,null,null,null,null,null,null,null,null,null,null,null,null,null,null,null,null,null,null,{"$f":"DataFiles!A$14","v":0},{"$f":"DataFiles!B$14","v":0},{"$f":"DataFiles!C$14","v":0},{"$f":"DataFiles!D$14","v":0},{"$f":"DataFiles!E$14","v":0},{"$f":"DataFiles!F$14","v":0},{"$f":"DataFiles!G$14","v":0},{"$f":"DataFiles!H$14","v":"00:00:00"},{"$f":"DataFiles!I$14","v":0},{"$f":"DataFiles!J$14","v":0},{"$f":"DataFiles!K$14","v":0},null,null,null,null,null,14,{"$f":"NewDataFiles!A14","v":0},{"$f":"NewDataFiles!B14","v":0},{"$f":"NewDataFiles!C14","v":0},{"$f":"NewDataFiles!D14","v":0},{"$f":"NewDataFiles!E14","v":0},{"$f":"NewDataFiles!F14","v":0},{"$f":"NewDataFiles!G14","v":0},{"$f":"NewDataFiles!H14","v":"00:00:00"},{"$f":"NewDataFiles!I14","v":0}]
[null,null,null,null,null,null,null,null,null,null,null,null,null,null,null,null,null,null,null,null,null,null,null,null,null,null,null,null,null,{"$f":"IF(Log!A14=\"\",\"\",Log!A14)","v":""},{"$f":"IF(Log!B14=\"\",\"\",Log!B14)","v":""},{"$f":"IF(Log!C14=\"\",\"\",Log!C14)","v":""},{"$f":"IF(Log!D14=\"\",\"\",Log!D14)","v":""},null,null,null,{"$f":"IF(Log!F14=\"\",\"\",Log!F14)","v":""},{"$f":"IF(Log!H14=\"\",\"\",Log!H14)","v":""},null,null,null,null,null,null,null,null,null,null,null,null,null,null,null,null,null,null,null,null,null,null,null,null,null,null,null,null,null,null,null,null,null,null,null,null,null,null,null,null,null,null,null,null,null,null,null,null,null,null,null,null,null,null,null,null,null,null,null,null,null,null,null,null,null,null,null,null,null,null,null,{"$f":"DataFiles!A$15","v":0},{"$f":"DataFiles!B$15","v":0},{"$f":"DataFiles!C$15","v":0},{"$f":"DataFiles!D$15","v":0},{"$f":"DataFiles!E$15","v":0},{"$f":"DataFiles!F$15","v":0},{"$f":"DataFiles!G$15","v":0},{"$f":"DataFiles!H$15","v":"00:00:00"},{"$f":"DataFiles!I$15","v":0},{"$f":"DataFiles!J$15","v":0},{"$f":"DataFiles!K$15","v":0},null,null,null,null,null,15,{"$f":"NewDataFiles!A15","v":0},{"$f":"NewDataFiles!B15","v":0},{"$f":"NewDataFiles!C15","v":0},{"$f":"NewDataFiles!D15","v":0},{"$f":"NewDataFiles!E15","v":0},{"$f":"NewDataFiles!F15","v":0},{"$f":"NewDataFiles!G15","v":0},{"$f":"NewDataFiles!H15","v":"00:00:00"},{"$f":"NewDataFiles!I15","v":0}]
[null,null,null,null,null,null,null,null,null,null,null,null,null,null,null,null,null,null,null,null,null,null,null,null,null,null,null,null,null,{"$f":"IF(Log!A15=\"\",\"\",Log!A15)","v":""},{"$f":"IF(Log!B15=\"\",\"\",Log!B15)","v":""},{"$f":"IF(Log!C15=\"\",\"\",Log!C15)","v":""},{"$f":"IF(Log!D15=\"\",\"\",Log!D15)","v":""},null,null,null,{"$f":"IF(Log!F15=\"\",\"\",Log!F15)","v":""},{"$f":"IF(Log!H15=\"\",\"\",Log!H15)","v":""},null,null,null,null,null,null,null,null,null,null,null,null,null,null,null,null,null,null,null,null,null,null,null,null,null,null,null,null,null,null,null,null,null,null,null,null,null,null,null,null,null,null,null,null,null,null,null,null,null,null,null,null,null,null,null,null,null,null,null,null,null,null,null,null,null,null,null,null,null,null,null,null,null,null,null,null,null,null,null,null,null,null,null,null,null,null,null,16]
[null,null,null,null,null,null,null,null,null,null,null,null,null,null,null,null,null,null,null,null,null,null,null,null,null,null,null,null,null,{"$f":"IF(Log!A16=\"\",\"\",Log!A16)","v":""},{"$f":"IF(Log!B16=\"\",\"\",Log!B16)","v":""},{"$f":"IF(Log!C16=\"\",\"\",Log!C16)","v":""},{"$f":"IF(Log!D16=\"\",\"\",Log!D16)","v":""},null,null,null,{"$f":"IF(Log!F16=\"\",\"\",Log!F16)","v":""},{"$f":"IF(Log!H16=\"\",\"\",Log!H16)","v":""},null,null,null,null,null,null,null,null,null,null,null,null,null,null,null,null,null,null,null,null,null,null,null,null,null,null,null,null,null,null,null,null,null,null,null,null,null,null,null,null,null,null,null,null,null,null,null,null,null,null,null,null,null,null,null,null,null,null,null,null,null,null,null,null,null,null,null,null,null,null,null,null,null,null,null,null,null,null,null,null,null,null,null,null,null,null,null,17]
[null,null,null,null,null,null,null,null,null,null,null,null,null,null,null,null,null,null,null,null,null,null,null,null,null,null,null,null,null,{"$f":"IF(Log!A17=\"\",\"\",Log!A17)","v":""},{"$f":"IF(Log!B17=\"\",\"\",Log!B17)","v":""},{"$f":"IF(Log!C17=\"\",\"\",Log!C17)","v":""},{"$f":"IF(Log!D17=\"\",\"\",Log!D17)","v":""},null,null,null,{"$f":"IF(Log!F17=\"\",\"\",Log!F17)","v":""},{"$f":"IF(Log!H17=\"\",\"\",Log!H17)","v":""},null,null,null,null,null,null,null,null,null,null,null,null,null,null,null,null,null,null,null,null,null,null,null,null,null,null,null,null,null,null,null,null,null,null,null,null,null,null,null,null,null,null,null,null,null,null,null,null,null,null,null,null,null,null,null,null,null,null,null,null,null,null,null,null,null,null,null,null,null,null,null,null,null,null,null,null,null,null,null,null,null,null,null,null,null,null,null,18]
[null,null,null,null,null,null,null,null,null,null,null,null,null,null,null,null,null,null,null,null,null,null,null,null,null,null,null,null,null,{"$f":"IF(Log!A18=\"\",\"\",Log!A18)","v":""},{"$f":"IF(Log!B18=\"\",\"\",Log!B18)","v":""},{"$f":"IF(Log!C18=\"\",\"\",Log!C18)","v":""},{"$f":"IF(Log!D18=\"\",\"\",Log!D18)","v":""},null,null,null,{"$f":"IF(Log!F18=\"\",\"\",Log!F18)","v":""},{"$f":"IF(Log!H18=\"\",\"\",Log!H18)","v":""},null,null,null,null,null,null,null,null,null,null,null,null,null,null,null,null,null,null,null,null,null,null,null,null,null,null,null,null,null,null,null,null,null,null,null,null,null,null,null,null,null,null,null,null,null,null,null,null,null,null,null,null,null,null,null,null,null,null,null,null,null,null,null,null,null,null,null,null,null,null,null,null,null,null,null,null,null,null,null,null,null,null,null,null,null,null,null,19]
[null,null,null,null,null,null,null,null,null,null,null,null,null,null,null,null,null,null,null,null,null,null,null,null,null,null,null,null,null,{"$f":"IF(Log!A19=\"\",\"\",Log!A19)","v":""},{"$f":"IF(Log!B19=\"\",\"\",Log!B19)","v":""},{"$f":"IF(Log!C19=\"\",\"\",Log!C19)","v":""},{"$f":"IF(Log!D19=\"\",\"\",Log!D19)","v":""},null,null,null,{"$f":"IF(Log!F19=\"\",\"\",Log!F19)","v":""},{"$f":"IF(Log!H19=\"\",\"\",Log!H19)","v":""}]
[null,null,null,null,{"$f":"Sources!$C13","v":"Sousedé"},null,null,null,null,{"$f":"Sources!$C14","v":"Operátoři"},null,null,null,null,{"$f":"Sources!$C15","v":"Ministerstvo ŽP"},null,null,null,null,{"$f":"Sources!$C16","v":"Soud"},null,null,null,null,{"$f":"Sources!$C17","v":"Investor"},null,null,null,null,{"$f":"IF(Log!A20=\"\",\"\",Log!A20)","v":""},{"$f":"IF(Log!B20=\"\",\"\",Log!B20)","v":""},{"$f":"IF(Log!C20=\"\",\"\",Log!C20)","v":""},{"$f":"IF(Log!D20=\"\",\"\",Log!D20)","v":""},null,null,null,{"$f":"IF(Log!F20=\"\",\"\",Log!F20)","v":""},{"$f":"IF(Log!H20=\"\",\"\",Log!H20)","v":""}]
[null,null,null,null,null,null,null,null,null,null,null,null,null,null,null,null,null,null,null,null,null,null,null,null,null,null,null,null,null,{"$f":"IF(Log!A21=\"\",\"\",Log!A21)","v":""},{"$f":"IF(Log!B21=\"\",\"\",Log!B21)","v":""},{"$f":"IF(Log!C21=\"\",\"\",Log!C21)","v":""},{"$f":"IF(Log!D21=\"\",\"\",Log!D21)","v":""},null,null,null,{"$f":"IF(Log!F21=\"\",\"\",Log!F21)","v":""},{"$f":"IF(Log!H21=\"\",\"\",Log!H21)","v":""}]
[null,null,null,null,{"$f":"COUNT(E31:E45)","v":1},null,null,null,null,{"$f":"COUNT(J31:J45)","v":0},null,null,null,null,{"$f":"COUNT(O31:O45)","v":0},null,null,null,null,{"$f":"COUNT(T31:T45)","v":0},null,null,null,null,{"$f":"COUNT(Y31:Y45)","v":0},null,null,null,null,{"$f":"IF(Log!A22=\"\",\"\",Log!A22)","v":""},{"$f":"IF(Log!B22=\"\",\"\",Log!B22)","v":""},{"$f":"IF(Log!C22=\"\",\"\",Log!C22)","v":""},{"$f":"IF(Log!D22=\"\",\"\",Log!D22)","v":""},null,null,null,{"$f":"IF(Log!F22=\"\",\"\",Log!F22)","v":""},{"$f":"IF(Log!H22=\"\",\"\",Log!H22)","v":""},null,null,null,null,null,null,null,null,null,null,null,null,null,null,null,null,null,null,null,null,null,null,null,null,null,null,null,null,null,null,null,null,null,null,null,null,null,null,null,null,null,null,null,null,null,null,null,null,null,null,null,null,null,null,null,null,null,null,null,null,null,null,null,null,null,null,null,null,null,null,null,"Systems","(Input)",null,null,null,null,null,null,null,null,null,null,null,null,null,null,null,"Systems","(Output)"]
[null,null,null,null,"ID","Name","FileType","TimeStamp",null,"ID","Name","FileType","TimeStamp",null,"ID","Name","FileType","TimeStamp",null,"ID","Name","FileType","TimeStamp",null,"ID","Name","FileType","TimeStamp",null,{"$f":"IF(Log!A23=\"\",\"\",Log!A23)","v":""},{"$f":"IF(Log!B23=\"\",\"\",Log!B23)","v":""},{"$f":"IF(Log!C23=\"\",\"\",Log!C23)","v":""},{"$f":"IF(Log!D23=\"\",\"\",Log!D23)","v":""},null,null,null,{"$f":"IF(Log!F23=\"\",\"\",Log!F23)","v":""},{"$f":"IF(Log!H23=\"\",\"\",Log!H23)","v":""},null,null,null,null,null,null,null,null,null,null,null,null,null,null,null,null,null,null,null,null,null,null,null,null,null,null,null,null,null,null,null,null,null,null,null,null,null,null,null,null,null,null,null,null,null,null,null,null,null,null,null,null,null,null,null,null,null,null,null,null,null,null,null,null,null,null,null,null,null,null,null,{"$f":"Systems!A1","v":"FileID"},"FileName","FileType","CurrentSystem","NextSystem","Content","Počet","TimeStamp","B","Capacity",null,null,"SystemName","FileType","Capacity",null,null,"NewFileID","NewFileName","NewFileType",{"$f":"BW30","v":0},"NewNextSystem","NewContent","NewCount","TimeStamp","Počet"]
[null,null,null,null,null,null,null,null,null,null,null,null,null,null,null,null,null,null,null,null,null,null,null,null,null,null,null,null,null,{"$f":"IF(Log!A24=\"\",\"\",Log!A24)","v":""},{"$f":"IF(Log!B24=\"\",\"\",Log!B24)","v":""},{"$f":"IF(Log!C24=\"\",\"\",Log!C24)","v":""},{"$f":"IF(Log!D24=\"\",\"\",Log!D24)","v":""},null,null,null,{"$f":"IF(Log!F24=\"\",\"\",Log!F24)","v":""},{"$f":"IF(Log!H24=\"\",\"\",Log!H24)","v":""},null,null,null,null,null,null,null,null,null,null,null,null,null,null,null,null,null,null,null,null,null,null,null,null,null,null,null,null,null,null,null,null,null,null,null,null,null,null,null,null,null,null,null,null,null,null,null,null,null,null,null,null,null,null,null,null,null,null,null,null,null,null,null,null,null,null,null,null,null,null,null,{"$f":"Systems!A2","v":1},{"$f":"Systems!B2","v":"žádost"},{"$f":"Systems!C2","v":"Posouzení záměru DDO"},{"$f":"Systems!D2","v":"Další dotčené orgány"},{"$f":"Systems!E2","v":0},{"$f":"Systems!F2","v":"as well as is ready for comments from other relevant authorities."},{"$f":"Systems!G2","v":5},{"$f":"Systems!H2","v":45848.347633217592},{"$f":"Systems!I2","v":0},null,{"$f":"Systems!K2","v":0},null,{"$f":"Systems!AB2","v":"Portál"},{"$f":"Systems!AC2","v":"Povolení záměru"},{"$f":"Systems!AR2","v":10},{"$f":"_xlfn.XLOOKUP(DR30,Seznamy!C:C,Seznamy!E:E,\"\")","v":0},null,{"$f":"Systems!BA2","v":""},{"$f":"Systems!BB2","v":""},{"$f":"Systems!BC2","v":""},{"$f":"Systems!BD2","v":""},{"$f":"Systems!BE2","v":""},{"$f":"Systems!BF2","v":""},{"$f":"Systems!BG2","v":0},{"$f":"Systems!BH2","v":""},{"$f":"Systems!BI2","v":""}]
[null,null,null,null,{"$f":"IF(AN8=\"\",\"\",AN8)","v":1},{"$f":"IF(AO8=\"\",\"\",AO8)","v":"žádost"},{"$f":"IF(AP8=\"\",\"\",AP8)","v":"Posouzení záměru Sous"},{"$f":"IF(AQ8=\"\",\"\",AQ8)","v":45848.347630324075},null,{"$f":"IF(AS8=\"\",\"\",AS8)","v":""},{"$f":"IF(AT8=\"\",\"\",AT8)","v":""},{"$f":"IF(AU8=\"\",\"\",AU8)","v":""},{"$f":"IF(AV8=\"\",\"\",AV8)","v":""},null,{"$f":"IF(AX8=\"\",\"\",AX8)","v":""},{"$f":"IF(AY8=\"\",\"\",AY8)","v":""},{"$f":"IF(AZ8=\"\",\"\",AZ8)","v":""},{"$f":"IF(BA8=\"\",\"\",BA8)","v":""},null,{"$f":"IF(BC8=\"\",\"\",BC8)","v":""},{"$f":"IF(BD8=\"\",\"\",BD8)","v":""},{"$f":"IF(BE8=\"\",\"\",BE8)","v":""},{"$f":"IF(BF8=\"\",\"\",BF8)","v":""},null,{"$f":"IF(BH8=\"\",\"\",BH8)","v":""},{"$f":"IF(BI8=\"\",\"\",BI8)","v":""},{"$f":"IF(BJ8=\"\",\"\",BJ8)","v":""},{"$f":"IF(BK8=\"\",\"\",BK8)","v":""},null,{"$f":"IF(Log!A25=\"\",\"\",Log!A25)","v":""},{"$f":"IF(Log!B25=\"\",\"\",Log!B25)","v":""},{"$f":"IF(Log!C25=\"\",\"\",Log!C25)","v":""},{"$f":"IF(Log!D25=\"\",\"\",Log!D25)","v":""},null,null,null,{"$f":"IF(Log!F25=\"\",\"\",Log!F25)","v":""},{"$f":"IF(Log!H25=\"\",\"\",Log!H25)","v":""},null,null,null,null,null,null,null,null,null,null,null,null,null,null,null,null,null,null,null,null,null,null,null,null,null,null,null,null,null,null,null,null,null,null,null,null,null,null,null,null,null,null,null,null,null,null,null,null,null,null,null,null,null,null,null,null,null,null,null,null,null,null,null,null,null,null,null,null,null,null,null,{"$f":"Systems!A5","v":1},{"$f":"Systems!B5","v":"žádost"},{"$f":"Systems!C5","v":"Posouzení záměru DDO"},{"$f":"Systems!D5","v":"Další dotčené orgány"},{"$f":"Systems!E5","v":0},{"$f":"Systems!F5","v":"as well as is ready for comments from other relevant authorities."},{"$f":"Systems!G5","v":5},{"$f":"Systems!H5","v":45848.347633217592},{"$f":"Systems!I5","v":0},null,{"$f":"Systems!K5","v":0},null,{"$f":"Systems!AB5","v":"Portál"},{"$f":"Systems!AC5","v":"Uzavřeno"},{"$f":"Systems!AR5","v":10},{"$f":"_xlfn.XLOOKUP(DR31,Seznamy!C:C,Seznamy!E:E,\"\")","v":0},null,{"$f":"Systems!BA5","v":""},{"$f":"Systems!BB5","v":""},{"$f":"Systems!BC5","v":""},{"$f":"Systems!BD5","v":""},{"$f":"Systems!BE5","v":""},{"$f":"Systems!BF5","v":""},{"$f":"Systems!BG5","v":0},{"$f":"Systems!BH5","v":""},{"$f":"Systems!BI5","v":""}]
[null,null,null,null,{"$f":"IF(AN9=\"\",\"\",AN9)","v":""},"","","",null,{"$f":"IF(AS9=\"\",\"\",AS9)","v":""},{"$f":"IF(AT9=\"\",\"\",AT9)","v":""},{"$f":"IF(AU9=\"\",\"\",AU9)","v":""},"",null,{"$f":"IF(AX9=\"\",\"\",AX9)","v":""},{"$f":"IF(AY9=\"\",\"\",AY9)","v":""},{"$f":"IF(AZ9=\"\",\"\",AZ9)","v":""},{"$f":"IF(BA9=\"\",\"\",BA9)","v":""},null,{"$f":"IF(BC9=\"\",\"\",BC9)","v":""},{"$f":"IF(BD9=\"\",\"\",BD9)","v":""},{"$f":"IF(BE9=\"\",\"\",BE9)","v":""},{"$f":"IF(BF9=\"\",\"\",BF9)","v":""},null,{"$f":"IF(BH9=\"\",\"\",BH9)","v":""},{"$f":"IF(BI9=\"\",\"\",BI9)","v":""},{"$f":"IF(BJ9=\"\",\"\",BJ9)","v":""},{"$f":"IF(BK9=\"\",\"\",BK9)","v":""},null,{"$f":"IF(Log!A26=\"\",\"\",Log!A26)","v":""},{"$f":"IF(Log!B26=\"\",\"\",Log!B26)","v":""},{"$f":"IF(Log!C26=\"\",\"\",Log!C26)","v":""},{"$f":"IF(Log!D26=\"\",\"\",Log!D26)","v":""},null,null,null,{"$f":"IF(Log!F26=\"\",\"\",Log!F26)","v":""},{"$f":"IF(Log!H26=\"\",\"\",Log!H26)","v":""},null,null,null,null,null,null,null,null,null,null,null,null,null,null,null,null,null,null,null,null,null,null,null,null,null,null,null,null,null,null,null,null,null,null,null,null,null,null,null,null,null,null,null,null,null,null,null,null,null,null,null,null,null,null,null,null,null,null,null,null,null,null,null,null,null,null,null,null,null,null,null,{"$f":"Systems!A6","v":1},{"$f":"Systems!B6","v":"žádost"},{"$f":"Systems!C6","v":"Posouzení záměru DDO"},{"$f":"Systems!D6","v":"Další dotčené orgány"},{"$f":"Systems!E6","v":0},{"$f":"Systems!F6","v":"as well as is ready for comments from other relevant authorities."},{"$f":"Systems!G6","v":5},{"$f":"Systems!H6","v":45848.347633217592},{"$f":"Systems!I6","v":0},null,{"$f":"Systems!K6","v":0},null,{"$f":"Systems!AB6","v":"Stavební úřad"},{"$f":"Systems!AC6","v":"Posouzení záměru SÚ"},{"$f":"Systems!AR6","v":4},{"$f":"_xlfn.XLOOKUP(DR32,Seznamy!C:C,Seznamy!E:E,\"\")","v":0},null,{"$f":"Systems!BA6","v":""},{"$f":"Systems!BB6","v":""},{"$f":"Systems!BC6","v":""},{"$f":"Systems!BD6","v":""},{"$f":"Systems!BE6","v":""},{"$f":"Systems!BF6","v":""},{"$f":"Systems!BG6","v":0},{"$f":"Systems!BH6","v":""},{"$f":"Systems!BI6","v":""}]
[null,null,null,null,{"$f":"IF(AN10=\"\",\"\",AN10)","v":""},"","","",null,"","","","",null,"","","","",null,"","","","",null,"","","","",null,{"$f":"IF(Log!A27=\"\",\"\",Log!A27)","v":""},{"$f":"IF(Log!B27=\"\",\"\",Log!B27)","v":""},{"$f":"IF(Log!C27=\"\",\"\",Log!C27)","v":""},{"$f":"IF(Log!D27=\"\",\"\",Log!D27)","v":""},null,null,null,{"$f":"IF(Log!F27=\"\",\"\",Log!F27)","v":""},{"$f":"IF(Log!H27=\"\",\"\",Log!H27)","v":""},null,null,null,null,null,null,null,null,null,null,null,null,null,null,null,null,null,null,null,null,null,null,null,null,null,null,null,null,null,null,null,null,null,null,null,null,null,null,null,null,null,null,null,null,null,null,null,null,null,null,null,null,null,null,null,null,null,null,null,null,null,null,null,null,null,null,null,null,null,null,null,{"$f":"Systems!A7","v":1},{"$f":"Systems!B7","v":"žádost"},{"$f":"Systems!C7","v":"Posouzení záměru DDO"},{"$f":"Systems!D7","v":"Další dotčené orgány"},{"$f":"Systems!E7","v":0},{"$f":"Systems!F7","v":"as well as is ready for comments from other relevant authorities."},{"$f":"Systems!G7","v":5},{"$f":"Systems!H7","v":45848.347633217592},{"$f":"Systems!I7","v":1},null,{"$f":"Systems!K7","v":0},null,{"$f":"Systems!AB7","v":"Stavební úřad"},{"$f":"Systems!AC7","v":"Posouzení záměru SÚ"},{"$f":"Systems!AR7","v":4},{"$f":"_xlfn.XLOOKUP(DR33,Seznamy!C:C,Seznamy!E:E,\"\")","v":0},null,{"$f":"Systems!BA7","v":""},{"$f":"Systems!BB7","v":""},{"$f":"Systems!BC7","v":""},{"$f":"Systems!BD7","v":""},{"$f":"Systems!BE7","v":""},{"$f":"Systems!BF7","v":""},{"$f":"Systems!BG7","v":0},{"$f":"Systems!BH7","v":""},{"$f":"Systems!BI7","v":""}]
[null,null,null,null,{"$f":"IF(AN11=\"\",\"\",AN11)","v":""},"","","",null,"","","","",null,"","","","",null,"","","","",null,"","","","",null,{"$f":"IF(Log!A28=\"\",\"\",Log!A28)","v":""},{"$f":"IF(Log!B28=\"\",\"\",Log!B28)","v":""},{"$f":"IF(Log!C28=\"\",\"\",Log!C28)","v":""},{"$f":"IF(Log!D28=\"\",\"\",Log!D28)","v":""},null,null,null,{"$f":"IF(Log!F28=\"\",\"\",Log!F28)","v":""},{"$f":"IF(Log!H28=\"\",\"\",Log!H28)","v":""},null,null,null,null,null,null,null,null,null,null,null,null,null,null,null,null,null,null,null,null,null,null,null,null,null,null,null,null,null,null,null,null,null,null,null,null,null,null,null,null,null,null,null,null,null,null,null,null,null,null,null,null,null,null,null,null,null,null,null,null,null,null,null,null,null,null,null,null,null,null,null,{"$f":"Systems!A8","v":1},{"$f":"Systems!B8","v":"žádost"},{"$f":"Systems!C8","v":"Posouzení záměru DDO"},{"$f":"Systems!D8","v":"Další dotčené orgány"},{"$f":"Systems!E8","v":0},{"$f":"Systems!F8","v":"as well as is ready for comments from other relevant authorities."},{"$f":"Systems!G8","v":5},{"$f":"Systems!H8","v":45848.347633217592},{"$f":"Systems!I8","v":0},null,{"$f":"Systems!K8","v":0},null,{"$f":"Systems!AB8","v":"Stavební úřad"},{"$f":"Systems!AC8","v":"Posouzení záměru SÚ"},{"$f":"Systems!AR8","v":4},{"$f":"_xlfn.XLOOKUP(DR34,Seznamy!C:C,Seznamy!E:E,\"\")","v":0},null,{"$f":"Systems!BA8","v":""},{"$f":"Systems!BB8","v":""},{"$f":"Systems!BC8","v":""},{"$f":"Systems!BD8","v":""},{"$f":"Systems!BE8","v":""},{"$f":"Systems!BF8","v":""},{"$f":"Systems!BG8","v":0},{"$f":"Systems!BH8","v":""},{"$f":"Systems!BI8","v":""}]
[null,null,null,null,{"$f":"IF(AN12=\"\",\"\",AN12)","v":""},"","","",null,"","","","",null,"","","","",null,"","","","",null,"","","","",null,{"$f":"IF(Log!A29=\"\",\"\",Log!A29)","v":""},{"$f":"IF(Log!B29=\"\",\"\",Log!B29)","v":""},{"$f":"IF(Log!C29=\"\",\"\",Log!C29)","v":""},{"$f":"IF(Log!D29=\"\",\"\",Log!D29)","v":""},null,null,null,{"$f":"IF(Log!F29=\"\",\"\",Log!F29)","v":""},{"$f":"IF(Log!H29=\"\",\"\",Log!H29)","v":""},null,null,null,null,null,null,null,null,null,null,null,null,null,null,null,null,null,null,null,null,null,null,null,null,null,null,null,null,null,null,null,null,null,null,null,null,null,null,null,null,null,null,null,null,null,null,null,null,null,null,null,null,null,null,null,null,null,null,null,null,null,null,null,null,null,null,null,null,null,null,null,{"$f":"Systems!A9","v":1},{"$f":"Systems!B9","v":"žádost"},{"$f":"Systems!C9","v":"Posouzení záměru DDO"},{"$f":"Systems!D9","v":"Další dotčené orgány"},{"$f":"Systems!E9","v":0},{"$f":"Systems!F9","v":"as well as is ready for comments from other relevant authorities."},{"$f":"Systems!G9","v":5},{"$f":"Systems!H9","v":45848.347633217592},{"$f":"Systems!I9","v":0},null,{"$f":"Systems!K9","v":0},null,{"$f":"Systems!AB9","v":"Stavební úřad"},{"$f":"Systems!AC9","v":"Posouzení záměru SÚ"},{"$f":"Systems!AR9","v":4},{"$f":"_xlfn.XLOOKUP(DR35,Seznamy!C:C,Seznamy!E:E,\"\")","v":0},null,{"$f":"Systems!BA9","v":""},{"$f":"Systems!BB9","v":""},{"$f":"Systems!BC9","v":""},{"$f":"Systems!BD9","v":""},{"$f":"Systems!BE9","v":""},{"$f":"Systems!BF9","v":""},{"$f":"Systems!BG9","v":0},{"$f":"Systems!BH9","v":""},{"$f":"Systems!BI9","v":""}]
[null,null,null,null,{"$f":"IF(AN13=\"\",\"\",AN13)","v":""},"","","",null,"","","","",null,"","","","",null,"","","","",null,"","","","",null,{"$f":"IF(Log!A30=\"\",\"\",Log!A30)","v":""},{"$f":"IF(Log!B30=\"\",\"\",Log!B30)","v":""},{"$f":"IF(Log!C30=\"\",\"\",Log!C30)","v":""},{"$f":"IF(Log!D30=\"\",\"\",Log!D30)","v":""},null,null,null,{"$f":"IF(Log!F30=\"\",\"\",Log!F30)","v":""},{"$f":"IF(Log!H30=\"\",\"\",Log!H30)","v":""},null,null,null,null,null,null,null,null,null,null,null,null,null,null,null,null,null,null,null,null,null,null,null,null,null,null,null,null,null,null,null,null,null,null,null,null,null,null,null,null,null,null,null,null,null,null,null,null,null,null,null,null,null,null,null,null,null,null,null,null,null,null,null,null,null,null,null,null,null,null,null,{"$f":"Systems!A10","v":1},{"$f":"Systems!B10","v":"žádost"},{"$f":"Systems!C10","v":"Posouzení záměru DDO"},{"$f":"Systems!D10","v":"Další dotčené orgány"},{"$f":"Systems!E10","v":0},{"$f":"Systems!F10","v":"as well as is ready for comments from other relevant authorities."},{"$f":"Systems!G10","v":5},{"$f":"Systems!H10","v":45848.347633217592},{"$f":"Systems!I10","v":0},null,{"$f":"Systems!K10","v":0},null,{"$f":"Systems!AB10","v":"Stavební úřad"},{"$f":"Systems!AC10","v":"Posouzení záměru SÚ"},{"$f":"Systems!AR10","v":4},{"$f":"_xlfn.XLOOKUP(DR36,Seznamy!C:C,Seznamy!E:E,\"\")","v":0},null,{"$f":"Systems!BA10","v":""},{"$f":"Systems!BB10","v":""},{"$f":"Systems!BC10","v":""},{"$f":"Systems!BD10","v":""},{"$f":"Systems!BE10","v":""},{"$f":"Systems!BF10","v":""},{"$f":"Systems!BG10","v":0},{"$f":"Systems!BH10","v":""},{"$f":"Systems!BI10","v":""}]
[null,null,null,null,{"$f":"IF(AN14=\"\",\"\",AN14)","v":""},"","","",null,"","","","",null,"","","","",null,"","","","",null,"","","","",null,{"$f":"IF(Log!A31=\"\",\"\",Log!A31)","v":""},{"$f":"IF(Log!B31=\"\",\"\",Log!B31)","v":""},{"$f":"IF(Log!C31=\"\",\"\",Log!C31)","v":""},{"$f":"IF(Log!D31=\"\",\"\",Log!D31)","v":""},null,null,null,{"$f":"IF(Log!F31=\"\",\"\",Log!F31)","v":""},{"$f":"IF(Log!H31=\"\",\"\",Log!H31)","v":""},null,null,null,null,null,null,null,null,null,null,null,null,null,null,null,null,null,null,null,null,null,null,null,null,null,null,null,null,null,null,null,null,null,null,null,null,null,null,null,null,null,null,null,null,null,null,null,null,null,null,null,null,null,null,null,null,null,null,null,null,null,null,null,null,null,null,null,null,null,null,null,{"$f":"Systems!A22","v":1},{"$f":"Systems!B22","v":"žádost"},{"$f":"Systems!C22","v":"Posouzení záměru DDO"},{"$f":"Systems!D22","v":"Další dotčené orgány"},{"$f":"Systems!E22","v":0},{"$f":"Systems!F22","v":"as well as is ready for comments from other relevant authorities."},{"$f":"Systems!G22","v":5},{"$f":"Systems!H22","v":45848.347633217592},{"$f":"Systems!I22","v":0},null,{"$f":"Systems!K22","v":0},null,{"$f":"Systems!AB22","v":"Požárníci"},{"$f":"Systems!AC22","v":"Posouzení záměru PO"},{"$f":"Systems!AR22","v":2},{"$f":"_xlfn.XLOOKUP(DR37,Seznamy!C:C,Seznamy!E:E,\"\")","v":0},null,{"$f":"Systems!BA22","v":""},{"$f":"Systems!BB22","v":""},{"$f":"Systems!BC22","v":""},{"$f":"Systems!BD22","v":""},{"$f":"Systems!BE22","v":""},{"$f":"Systems!BF22","v":""},{"$f":"Systems!BG22","v":0},{"$f":"Systems!BH22","v":""},{"$f":"Systems!BI11","v":""}]
[null,null,null,null,{"$f":"IF(AN15=\"\",\"\",AN15)","v":""},"","","",null,"","","","",null,"","","","",null,"","","","",null,"","","","",null,{"$f":"IF(Log!A32=\"\",\"\",Log!A32)","v":""},{"$f":"IF(Log!B32=\"\",\"\",Log!B32)","v":""},{"$f":"IF(Log!C32=\"\",\"\",Log!C32)","v":""},{"$f":"IF(Log!D32=\"\",\"\",Log!D32)","v":""},null,null,null,{"$f":"IF(Log!F32=\"\",\"\",Log!F32)","v":""},{"$f":"IF(Log!H32=\"\",\"\",Log!H32)","v":""},null,null,null,null,null,null,null,null,null,null,null,null,null,null,null,null,null,null,null,null,null,null,null,null,null,null,null,null,null,null,null,null,null,null,null,null,null,null,null,null,null,null,null,null,null,null,null,null,null,null,null,null,null,null,null,null,null,null,null,null,null,null,null,null,null,null,null,null,null,null,null,{"$f":"Systems!A23","v":1},{"$f":"Systems!B23","v":"žádost"},{"$f":"Systems!C23","v":"Posouzení záměru DDO"},{"$f":"Systems!D23","v":"Další dotčené orgány"},{"$f":"Systems!E23","v":0},{"$f":"Systems!F23","v":"as well as is ready for comments from other relevant authorities."},{"$f":"Systems!G23","v":5},{"$f":"Systems!H23","v":45848.347633217592},{"$f":"Systems!I23","v":0},null,{"$f":"Systems!K23","v":0},null,{"$f":"Systems!AB23","v":"Památkáři"},{"$f":"Systems!AC23","v":"Posouzení záměru Pam"},{"$f":"Systems!AR23","v":1},{"$f":"_xlfn.XLOOKUP(DR38,Seznamy!C:C,Seznamy!E:E,\"\")","v":0},null,{"$f":"Systems!BA23","v":""},{"$f":"Systems!BB23","v":""},{"$f":"Systems!BC23","v":""},{"$f":"Systems!BD23","v":""},{"$f":"Systems!BE23","v":""},{"$f":"Systems!BF23","v":""},{"$f":"Systems!BG23","v":0},{"$f":"Systems!BH23","v":""},{"$f":"Systems!BI12","v":""}]
[null,null,null,null,{"$f":"IF(AN16=\"\",\"\",AN16)","v":""},"","","",null,"","","","",null,"","","","",null,"","","","",null,"","","","",null,{"$f":"IF(Log!A33=\"\",\"\",Log!A33)","v":""},{"$f":"IF(Log!B33=\"\",\"\",Log!B33)","v":""},{"$f":"IF(Log!C33=\"\",\"\",Log!C33)","v":""},{"$f":"IF(Log!D33=\"\",\"\",Log!D33)","v":""},null,null,null,{"$f":"IF(Log!F33=\"\",\"\",Log!F33)","v":""},{"$f":"IF(Log!H33=\"\",\"\",Log!H33)","v":""},null,null,null,null,null,null,null,null,null,null,null,null,null,null,null,null,null,null,null,null,null,null,null,null,null,null,null,null,null,null,null,null,null,null,null,null,null,null,null,null,null,null,null,null,null,null,null,null,null,null,null,null,null,null,null,null,null,null,null,null,null,null,null,null,null,null,null,null,null,null,null,{"$f":"Systems!A24","v":1},{"$f":"Systems!B24","v":"žádost"},{"$f":"Systems!C24","v":"Posouzení záměru DDO"},{"$f":"Systems!D24","v":"Další dotčené orgány"},{"$f":"Systems!E24","v":0},{"$f":"Systems!F24","v":"as well as is ready for comments from other relevant authorities."},{"$f":"Systems!G24","v":5},{"$f":"Systems!H24","v":45848.347633217592},{"$f":"Systems!I24","v":0},{"$f":"Systems!J24","v":0},{"$f":"Systems!K24","v":0},null,{"$f":"Systems!AB24","v":"Ochrana přírody"},{"$f":"Systems!AC24","v":"Posouzení záměru OP"},{"$f":"Systems!AR24","v":1},{"$f":"_xlfn.XLOOKUP(DR39,Seznamy!C:C,Seznamy!E:E,\"\")","v":0},null,{"$f":"Systems!BA24","v":""},{"$f":"Systems!BB24","v":""},{"$f":"Systems!BC24","v":""},{"$f":"Systems!BD24","v":""},{"$f":"Systems!BE24","v":""},{"$f":"Systems!BF24","v":""},{"$f":"Systems!BG24","v":0},{"$f":"Systems!BH24","v":""},{"$f":"Systems!BI13","v":""}]
[null,null,null,null,{"$f":"IF(AN17=\"\",\"\",AN17)","v":""},"","","",null,"","","","",null,"","","","",null,"","","","",null,"","","","",null,{"$f":"IF(Log!A34=\"\",\"\",Log!A34)","v":""},{"$f":"IF(Log!B34=\"\",\"\",Log!B34)","v":""},{"$f":"IF(Log!C34=\"\",\"\",Log!C34)","v":""},{"$f":"IF(Log!D34=\"\",\"\",Log!D34)","v":""},null,null,null,{"$f":"IF(Log!F34=\"\",\"\",Log!F34)","v":""},{"$f":"IF(Log!H34=\"\",\"\",Log!H34)","v":""},null,null,null,null,null,null,null,null,null,null,null,null,null,null,null,null,null,null,null,null,null,null,null,null,null,null,null,null,null,null,null,null,null,null,null,null,null,null,null,null,null,null,null,null,null,null,null,null,null,null,null,null,null,null,null,null,null,null,null,null,null,null,null,null,null,null,null,null,null,null,null,{"$f":"Systems!A25","v":1},{"$f":"Systems!B25","v":"žádost"},{"$f":"Systems!C25","v":"Posouzení záměru DDO"},{"$f":"Systems!D25","v":"Další dotčené orgány"},{"$f":"Systems!E25","v":0},{"$f":"Systems!F25","v":"as well as is ready for comments from other relevant authorities."},{"$f":"Systems!G25","v":5},{"$f":"Systems!H25","v":45848.347633217592},{"$f":"Systems!I25","v":0},{"$f":"Systems!J25","v":0},{"$f":"Systems!K25","v":0},null,{"$f":"Systems!AB25","v":"Sousedé"},{"$f":"Systems!AC25","v":"Posouzení záměru Sous"},{"$f":"Systems!AR25","v":1},{"$f":"_xlfn.XLOOKUP(DR40,Seznamy!C:C,Seznamy!E:E,\"\")","v":0},null,{"$f":"Systems!BA25","v":""},{"$f":"Systems!BB25","v":""},{"$f":"Systems!BC25","v":""},{"$f":"Systems!BD25","v":""},{"$f":"Systems!BE25","v":""},{"$f":"Systems!BF25","v":""},{"$f":"Systems!BG25","v":0},{"$f":"Systems!BH25","v":""},{"$f":"Systems!BI14","v":""}]
[null,null,null,null,{"$f":"IF(AN18=\"\",\"\",AN18)","v":""},"","","",null,"","","","",null,"","","","",null,"","","","",null,"","","","",null,{"$f":"IF(Log!A35=\"\",\"\",Log!A35)","v":""},{"$f":"IF(Log!B35=\"\",\"\",Log!B35)","v":""},{"$f":"IF(Log!C35=\"\",\"\",Log!C35)","v":""},{"$f":"IF(Log!D35=\"\",\"\",Log!D35)","v":""},null,null,null,{"$f":"IF(Log!F35=\"\",\"\",Log!F35)","v":""},{"$f":"IF(Log!H35=\"\",\"\",Log!H35)","v":""},null,null,null,null,null,null,null,null,null,null,null,null,null,null,null,null,null,null,null,null,null,null,null,null,null,null,null,null,null,null,null,null,null,null,null,null,null,null,null,null,null,null,null,null,null,null,null,null,null,null,null,null,null,null,null,null,null,null,null,null,null,null,null,null,null,null,null,null,null,null,null,{"$f":"Systems!A26","v":1},{"$f":"Systems!B26","v":"žádost"},{"$f":"Systems!C26","v":"Posouzení záměru DDO"},{"$f":"Systems!D26","v":"Další dotčené orgány"},{"$f":"Systems!E26","v":0},{"$f":"Systems!F26","v":"as well as is ready for comments from other relevant authorities."},{"$f":"Systems!G26","v":5},{"$f":"Systems!H26","v":45848.347633217592},{"$f":"Systems!I26","v":0},{"$f":"Systems!J26","v":0},{"$f":"Systems!K26","v":0},null,{"$f":"Systems!AB26","v":"Další dotčené orgány"},{"$f":"Systems!AC26","v":"Posouzení záměru DDO"},{"$f":"Systems!AR26","v":1},{"$f":"_xlfn.XLOOKUP(DR41,Seznamy!C:C,Seznamy!E:E,\"\")","v":0},null,{"$f":"Systems!BA26","v":1},{"$f":"Systems!BB26","v":"žádost"},{"$f":"Systems!BC26","v":"Schváleno DDO"},{"$f":"Systems!BD26","v":"Stavební úřad"},{"$f":"Systems!BE26","v":""},{"$f":"Systems!BF26","v":"The response to the application number 1 has been returned to the building office."},{"$f":"Systems!BG26","v":1},{"$f":"Systems!BH26","v":45854.487986458334},{"$f":"Systems!BI15","v":""}]
[null,null,null,null,{"$f":"IF(AN19=\"\",\"\",AN19)","v":""},"","","",null,"","","","",null,"","","","",null,"","","","",null,"","","","",null,{"$f":"IF(Log!A36=\"\",\"\",Log!A36)","v":""},{"$f":"IF(Log!B36=\"\",\"\",Log!B36)","v":""},{"$f":"IF(Log!C36=\"\",\"\",Log!C36)","v":""},{"$f":"IF(Log!D36=\"\",\"\",Log!D36)","v":""},null,null,null,{"$f":"IF(Log!F36=\"\",\"\",Log!F36)","v":""},{"$f":"IF(Log!H36=\"\",\"\",Log!H36)","v":""},null,null,null,null,null,null,null,null,null,null,null,null,null,null,null,null,null,null,null,null,null,null,null,null,null,null,null,null,null,null,null,null,null,null,null,null,null,null,null,null,null,null,null,null,null,null,null,null,null,null,null,null,null,null,null,null,null,null,null,null,null,null,null,null,null,null,null,null,null,null,null,{"$f":"Systems!A27","v":1},{"$f":"Systems!B27","v":"žádost"},{"$f":"Systems!C27","v":"Posouzení záměru DDO"},{"$f":"Systems!D27","v":"Další dotčené orgány"},{"$f":"Systems!E27","v":0},{"$f":"Systems!F27","v":"as well as is ready for comments from other relevant authorities."},{"$f":"Systems!G27","v":5},{"$f":"Systems!H27","v":45848.347633217592},{"$f":"Systems!I27","v":0},{"$f":"Systems!J27","v":0},{"$f":"Systems!K27","v":0},null,{"$f":"Systems!AB27","v":"Stavební úřad"},{"$f":"Systems!AC27","v":"Schváleno PO"},{"$f":"Systems!AR27","v":4},{"$f":"_xlfn.XLOOKUP(DR42,Seznamy!C:C,Seznamy!E:E,\"\")","v":0},null,{"$f":"Systems!BA27","v":""},{"$f":"Systems!BB27","v":""},{"$f":"Systems!BC27","v":""},{"$f":"Systems!BD27","v":""},{"$f":"Systems!BE27","v":""},{"$f":"Systems!BF27","v":""},{"$f":"Systems!BG27","v":1},{"$f":"Systems!BH27","v":""},{"$f":"Systems!BI22","v":""}]
[null,null,null,null,{"$f":"IF(AN20=\"\",\"\",AN20)","v":""},"","","",null,"","","","",null,"","","","",null,"","","","",null,"","","","",null,{"$f":"IF(Log!A37=\"\",\"\",Log!A37)","v":""},{"$f":"IF(Log!B37=\"\",\"\",Log!B37)","v":""},{"$f":"IF(Log!C37=\"\",\"\",Log!C37)","v":""},{"$f":"IF(Log!D37=\"\",\"\",Log!D37)","v":""},null,null,null,{"$f":"IF(Log!F37=\"\",\"\",Log!F37)","v":""},{"$f":"IF(Log!H37=\"\",\"\",Log!H37)","v":""},null,null,null,null,null,null,null,null,null,null,null,null,null,null,null,null,null,null,null,null,null,null,null,null,null,null,null,null,null,null,null,null,null,null,null,null,null,null,null,null,null,null,null,null,null,null,null,null,null,null,null,null,null,null,null,null,null,null,null,null,null,null,null,null,null,null,null,null,null,null,null,{"$f":"Systems!A28","v":1},{"$f":"Systems!B28","v":"žádost"},{"$f":"Systems!C28","v":"Posouzení záměru DDO"},{"$f":"Systems!D28","v":"Další dotčené orgány"},{"$f":"Systems!E28","v":0},{"$f":"Systems!F28","v":"as well as is ready for comments from other relevant authorities."},{"$f":"Systems!G28","v":5},{"$f":"Systems!H28","v":45848.347633217592},{"$f":"Systems!I28","v":0},{"$f":"Systems!J28","v":0},{"$f":"Systems!K28","v":0},null,{"$f":"Systems!AB28","v":"Stavební úřad"},{"$f":"Systems!AC28","v":"Schváleno Pam"},{"$f":"Systems!AR28","v":4},{"$f":"_xlfn.XLOOKUP(DR43,Seznamy!C:C,Seznamy!E:E,\"\")","v":0},null,{"$f":"Systems!BA28","v":""},{"$f":"Systems!BB28","v":""},{"$f":"Systems!BC28","v":""},{"$f":"Systems!BD28","v":""},{"$f":"Systems!BE28","v":""},{"$f":"Systems!BF28","v":""},{"$f":"Systems!BG28","v":1},{"$f":"Systems!BH28","v":""},{"$f":"Systems!BI23","v":""}]
[null,null,null,null,{"$f":"IF(AN21=\"\",\"\",AN21)","v":""},"","","",null,"","","","",null,"","","","",null,"","","","",null,"","","","",null,{"$f":"IF(Log!A38=\"\",\"\",Log!A38)","v":""},{"$f":"IF(Log!B38=\"\",\"\",Log!B38)","v":""},{"$f":"IF(Log!C38=\"\",\"\",Log!C38)","v":""},{"$f":"IF(Log!D38=\"\",\"\",Log!D38)","v":""},null,null,null,{"$f":"IF(Log!F38=\"\",\"\",Log!F38)","v":""},{"$f":"IF(Log!H38=\"\",\"\",Log!H38)","v":""},null,null,null,null,null,null,null,null,null,null,null,null,null,null,null,null,null,null,null,null,null,null,null,null,null,null,null,null,null,null,null,null,null,null,null,null,null,null,null,null,null,null,null,null,null,null,null,null,null,null,null,null,null,null,null,null,null,null,null,null,null,null,null,null,null,null,null,null,null,null,null,{"$f":"Systems!A29","v":1},{"$f":"Systems!B29","v":"žádost"},{"$f":"Systems!C29","v":"Posouzení záměru DDO"},{"$f":"Systems!D29","v":"Další dotčené orgány"},{"$f":"Systems!E29","v":0},{"$f":"Systems!F29","v":"as well as is ready for comments from other relevant authorities."},{"$f":"Systems!G29","v":5},{"$f":"Systems!H29","v":45848.347633217592},{"$f":"Systems!I29","v":0},{"$f":"Systems!J29","v":0},{"$f":"Systems!K29","v":0},null,{"$f":"Systems!AB29","v":"Stavební úřad"},{"$f":"Systems!AC29","v":"Schváleno OP"},{"$f":"Systems!AR29","v":4},{"$f":"_xlfn.XLOOKUP(DR44,Seznamy!C:C,Seznamy!E:E,\"\")","v":0},null,{"$f":"Systems!BA29","v":""},{"$f":"Systems!BB29","v":""},{"$f":"Systems!BC29","v":""},{"$f":"Systems!BD29","v":""},{"$f":"Systems!BE29","v":""},{"$f":"Systems!BF29","v":""},{"$f":"Systems!BG29","v":1},{"$f":"Systems!BH29","v":""},{"$f":"Systems!BI24","v":""}]
[null,null,null,null,{"$f":"IF(AN22=\"\",\"\",AN22)","v":""},"","","",null,"","","","",null,"","","","",null,"","","","",null,"","","","",null,{"$f":"IF(Log!A39=\"\",\"\",Log!A39)","v":""},{"$f":"IF(Log!B39=\"\",\"\",Log!B39)","v":""},{"$f":"IF(Log!C39=\"\",\"\",Log!C39)","v":""},{"$f":"IF(Log!D39=\"\",\"\",Log!D39)","v":""},null,null,null,{"$f":"IF(Log!F39=\"\",\"\",Log!F39)","v":""},{"$f":"IF(Log!H39=\"\",\"\",Log!H39)","v":""},null,null,null,null,null,null,null,null,null,null,null,null,null,null,null,null,null,null,null,null,null,null,null,null,null,null,null,null,null,null,null,null,null,null,null,null,null,null,null,null,null,null,null,null,null,null,null,null,null,null,null,null,null,null,null,null,null,null,null,null,null,null,null,null,null,null,null,null,null,null,null,{"$f":"Systems!A30","v":1},{"$f":"Systems!B30","v":"žádost"},{"$f":"Systems!C30","v":"Posouzení záměru DDO"},{"$f":"Systems!D30","v":"Další dotčené orgány"},{"$f":"Systems!E30","v":0},{"$f":"Systems!F30","v":"as well as is ready for comments from other relevant authorities."},{"$f":"Systems!G30","v":5},{"$f":"Systems!H30","v":45848.347633217592},{"$f":"Systems!I30","v":0},{"$f":"Systems!J30","v":0},{"$f":"Systems!K30","v":0},null,{"$f":"Systems!AB30","v":"Stavební úřad"},{"$f":"Systems!AC30","v":"Schváleno Sous"},{"$f":"Systems!AR30","v":4},{"$f":"_xlfn.XLOOKUP(DR45,Seznamy!C:C,Seznamy!E:E,\"\")","v":0},null,{"$f":"Systems!BA30","v":""},{"$f":"Systems!BB30","v":""},{"$f":"Systems!BC30","v":""},{"$f":"Systems!BD30","v":""},{"$f":"Systems!BE30","v":""},{"$f":"Systems!BF30","v":""},{"$f":"Systems!BG30","v":1},{"$f":"Systems!BH30","v":""},{"$f":"Systems!BI25","v":""}]
[null,null,null,null,{"$f":"E47","v":"Další dotčené orgány"},null,null,null,null,{"$f":"J47","v":"Majitel stavající infrasturktury"},null,null,null,null,{"$f":"O47","v":"Obec"},null,null,null,null,{"$f":"T47","v":"Poskytovatel dotace"},null,null,null,null,{"$f":"Y47","v":"Stavební firma"},null,null,null,null,{"$f":"IF(Log!A40=\"\",\"\",Log!A40)","v":""},{"$f":"IF(Log!B40=\"\",\"\",Log!B40)","v":""},{"$f":"IF(Log!C40=\"\",\"\",Log!C40)","v":""},{"$f":"IF(Log!D40=\"\",\"\",Log!D40)","v":""},null,null,null,{"$f":"IF(Log!F40=\"\",\"\",Log!F40)","v":""},{"$f":"IF(Log!H40=\"\",\"\",Log!H40)","v":""},null,null,null,null,null,null,null,null,null,null,null,null,null,null,null,null,null,null,null,null,null,null,null,null,null,null,null,null,null,null,null,null,null,null,null,null,null,null,null,null,null,null,null,null,null,null,null,null,null,null,null,null,null,null,null,null,null,null,null,null,null,null,null,null,null,null,null,null,null,null,null,null,null,null,null,null,null,null,null,null,null,null,null,{"$f":"Systems!AB45","v":0},{"$f":"Systems!AC45","v":0},{"$f":"Systems!AR45","v":0},null,null,{"$f":"Systems!BA45","v":0},{"$f":"Systems!BB45","v":0},{"$f":"Systems!BC45","v":0},{"$f":"Systems!BD45","v":0},{"$f":"Systems!BE45","v":0},{"$f":"Systems!BF45","v":0},{"$f":"Systems!BG45","v":0},{"$f":"Systems!BH45","v":"00:00:00"},{"$f":"Systems!BI40","v":0}]
[null,null,null,null,{"$f":"Sources!$C18","v":"Další dotčené orgány"},null,null,null,null,{"$f":"Sources!$C19","v":"Majitel stavající infrasturktury"},null,null,null,null,{"$f":"Sources!$C20","v":"Obec"},null,null,null,null,{"$f":"Sources!$C21","v":"Poskytovatel dotace"},null,null,null,null,{"$f":"Sources!$C22","v":"Stavební firma"},null,null,null,null,{"$f":"IF(Log!A41=\"\",\"\",Log!A41)","v":""},{"$f":"IF(Log!B41=\"\",\"\",Log!B41)","v":""},{"$f":"IF(Log!C41=\"\",\"\",Log!C41)","v":""},{"$f":"IF(Log!D41=\"\",\"\",Log!D41)","v":""},null,null,null,{"$f":"IF(Log!F41=\"\",\"\",Log!F41)","v":""},{"$f":"IF(Log!H41=\"\",\"\",Log!H41)","v":""},null,null,null,null,null,null,null,null,null,null,null,null,null,null,null,null,null,null,null,null,null,null,null,null,null,null,null,null,null,null,null,null,null,null,null,null,null,null,null,null,null,null,null,null,null,null,null,null,null,null,null,null,null,null,null,null,null,null,null,null,null,null,null,null,null,null,null,null,null,null,null,null,null,null,null,null,null,null,null,null,null,null,null,{"$f":"Systems!AB46","v":0},{"$f":"Systems!AC46","v":0},{"$f":"Systems!AR46","v":0}]
[null,null,null,null,null,null,null,null,null,null,null,null,null,null,null,null,null,null,null,null,null,null,null,null,null,null,null,null,null,{"$f":"IF(Log!A42=\"\",\"\",Log!A42)","v":""},{"$f":"IF(Log!B42=\"\",\"\",Log!B42)","v":""},{"$f":"IF(Log!C42=\"\",\"\",Log!C42)","v":""},{"$f":"IF(Log!D42=\"\",\"\",Log!D42)","v":""},null,null,null,{"$f":"IF(Log!F42=\"\",\"\",Log!F42)","v":""},{"$f":"IF(Log!H42=\"\",\"\",Log!H42)","v":""},null,null,null,null,null,null,null,null,null,null,null,null,null,null,null,null,null,null,null,null,null,null,null,null,null,null,null,null,null,null,null,null,null,null,null,null,null,null,null,null,null,null,null,null,null,null,null,null,null,null,null,null,null,null,null,null,null,null,null,null,null,null,null,null,null,null,null,null,null,null,null,null,null,null,null,null,null,null,null,null,null,null,null,null,{"$f":"Systems!AB47","v":0},{"$f":"Systems!AC47","v":0},{"$f":"Systems!AR47","v":0}]
[null,null,null,null,{"$f":"COUNT(E52:E66)","v":1},null,null,null,null,{"$f":"COUNT(J52:J66)","v":0},null,null,null,null,{"$f":"COUNT(O52:O66)","v":0},null,null,null,null,{"$f":"COUNT(T52:T66)","v":0},null,null,null,null,{"$f":"COUNT(Y52:Y66)","v":0},null,null,null,null,{"$f":"IF(Log!A43=\"\",\"\",Log!A43)","v":""},{"$f":"IF(Log!B43=\"\",\"\",Log!B43)","v":""},{"$f":"IF(Log!C43=\"\",\"\",Log!C43)","v":""},{"$f":"IF(Log!D43=\"\",\"\",Log!D43)","v":""},null,null,null,{"$f":"IF(Log!F43=\"\",\"\",Log!F43)","v":""},{"$f":"IF(Log!H43=\"\",\"\",Log!H43)","v":""},null,null,null,null,null,null,null,null,null,null,null,null,null,null,null,null,null,null,null,null,null,null,null,null,null,null,null,null,null,null,null,null,null,null,null,null,null,null,null,null,null,null,null,null,null,null,null,null,null,null,null,null,null,null,null,null,null,null,null,null,null,null,null,null,null,null,null,null,null,null,null,null,null,null,null,null,null,null,null,null,null,null,null,null,{"$f":"Systems!AB48","v":0},{"$f":"Systems!AC48","v":0},{"$f":"Systems!AR48","v":0}]
[null,null,null,null,"ID","Name","FileType","TimeStamp",null,"ID","Name","FileType","TimeStamp",null,"ID","Name","FileType","TimeStamp",null,"ID","Name","FileType","TimeStamp",null,"ID","Name","FileType","TimeStamp",null,{"$f":"IF(Log!A44=\"\",\"\",Log!A44)","v":""},{"$f":"IF(Log!B44=\"\",\"\",Log!B44)","v":""},{"$f":"IF(Log!C44=\"\",\"\",Log!C44)","v":""},{"$f":"IF(Log!D44=\"\",\"\",Log!D44)","v":""},null,null,null,{"$f":"IF(Log!F44=\"\",\"\",Log!F44)","v":""},{"$f":"IF(Log!H44=\"\",\"\",Log!H44)","v":""},null,null,null,null,null,null,null,null,null,null,null,null,null,null,null,null,null,null,null,null,null,null,null,null,null,null,null,null,null,null,null,null,null,null,null,null,null,null,null,null,null,null,null,null,null,null,null,null,null,null,null,null,null,null,null,null,null,null,null,null,null,null,null,null,null,null,null,null,null,null,null,null,null,null,null,null,null,null,null,null,null,null,null,null,{"$f":"Systems!AB49","v":0},{"$f":"Systems!AC49","v":0},{"$f":"Systems!AR49","v":0}]
[null,null,null,null,null,null,null,null,null,null,null,null,null,null,null,null,null,null,null,null,null,null,null,null,null,null,null,null,null,{"$f":"IF(Log!A45=\"\",\"\",Log!A45)","v":""},{"$f":"IF(Log!B45=\"\",\"\",Log!B45)","v":""},{"$f":"IF(Log!C45=\"\",\"\",Log!C45)","v":""},{"$f":"IF(Log!D45=\"\",\"\",Log!D45)","v":""},null,null,null,{"$f":"IF(Log!F45=\"\",\"\",Log!F45)","v":""},{"$f":"IF(Log!H45=\"\",\"\",Log!H45)","v":""},null,null,null,null,null,null,null,null,null,null,null,null,null,null,null,null,null,null,null,null,null,null,null,null,null,null,null,null,null,null,null,null,null,null,null,null,null,null,null,null,null,null,null,null,null,null,null,null,null,null,null,null,null,null,null,null,null,null,null,null,null,null,null,null,null,null,null,null,null,null,null,null,null,null,null,null,null,null,null,null,null,null,null,null,{"$f":"Systems!AB50","v":0},{"$f":"Systems!AC50","v":0},{"$f":"Systems!AR50","v":0}]
[null,null,null,null,{"$f":"IF(BM8=\"\",\"\",BM8)","v":1},{"$f":"IF(BN8=\"\",\"\",BN8)","v":"žádost"},{"$f":"IF(BO8=\"\",\"\",BO8)","v":"Posouzení záměru DDO"},{"$f":"IF(BP8=\"\",\"\",BP8)","v":45848.347633217592},null,{"$f":"IF(CB8=\"\",\"\",CB8)","v":""},{"$f":"IF(CC8=\"\",\"\",CC8)","v":""},{"$f":"IF(CD8=\"\",\"\",CD8)","v":""},{"$f":"IF(CE8=\"\",\"\",CE8)","v":""},null,{"$f":"IF(CG8=\"\",\"\",CG8)","v":""},{"$f":"IF(CH8=\"\",\"\",CH8)","v":""},{"$f":"IF(CI8=\"\",\"\",CI8)","v":""},{"$f":"IF(CJ8=\"\",\"\",CJ8)","v":""},null,{"$f":"IF(CL8=\"\",\"\",CL8)","v":""},{"$f":"IF(CM8=\"\",\"\",CM8)","v":""},{"$f":"IF(CN8=\"\",\"\",CN8)","v":""},{"$f":"IF(CO8=\"\",\"\",CO8)","v":""},null,{"$f":"IF(CQ8=\"\",\"\",CQ8)","v":""},{"$f":"IF(CR8=\"\",\"\",CR8)","v":""},{"$f":"IF(CS8=\"\",\"\",CS8)","v":""},{"$f":"IF(CT8=\"\",\"\",CT8)","v":""},null,{"$f":"IF(Log!A46=\"\",\"\",Log!A46)","v":""},{"$f":"IF(Log!B46=\"\",\"\",Log!B46)","v":""},{"$f":"IF(Log!C46=\"\",\"\",Log!C46)","v":""},{"$f":"IF(Log!D46=\"\",\"\",Log!D46)","v":""},null,null,null,{"$f":"IF(Log!F46=\"\",\"\",Log!F46)","v":""},{"$f":"IF(Log!H46=\"\",\"\",Log!H46)","v":""},{"$f":"IF(DD8=\"\",\"\",DD8)","v":""},null,null,null,null,null,null,null,null,null,null,null,null,null,null,null,null,null,null,null,null,null,null,null,null,null,null,null,null,null,null,null,null,null,null,null,null,null,null,null,null,null,null,null,null,null,null,null,null,null,null,null,null,null,null,null,null,null,null,null,null,null,null,null,null,null,null,null,null,null,null,null,null,null,null,null,null,null,null,null,null,null,null,null,{"$f":"Systems!AB51","v":0},{"$f":"Systems!AC51","v":0},{"$f":"Systems!AR51","v":0}]
[null,null,null,null,{"$f":"IF(BM9=\"\",\"\",BM9)","v":""},"","","",null,"","","","",null,"","","","",null,"","","","",null,"","","","",null,{"$f":"IF(Log!A47=\"\",\"\",Log!A47)","v":""},{"$f":"IF(Log!B47=\"\",\"\",Log!B47)","v":""},{"$f":"IF(Log!C47=\"\",\"\",Log!C47)","v":""},{"$f":"IF(Log!D47=\"\",\"\",Log!D47)","v":""},null,null,null,{"$f":"IF(Log!F47=\"\",\"\",Log!F47)","v":""},{"$f":"IF(Log!H47=\"\",\"\",Log!H47)","v":""},"",null,null,null,null,null,null,null,null,null,null,null,null,null,null,null,null,null,null,null,null,null,null,null,null,null,null,null,null,null,null,null,null,null,null,null,null,null,null,null,null,null,null,null,null,null,null,null,null,null,null,null,null,null,null,null,null,null,null,null,null,null,null,null,null,null,null,null,null,null,null,null,"Log",null,null,null,null,null,null,null,null,null,null,null,{"$f":"Systems!AB52","v":0},{"$f":"Systems!AC52","v":0},{"$f":"Systems!AR52","v":0}]
[null,null,null,null,{"$f":"IF(BM10=\"\",\"\",BM10)","v":""},"","","",null,"","","","",null,"","","","",null,"","","","",null,"","","","",null,{"$f":"IF(Log!A48=\"\",\"\",Log!A48)","v":""},{"$f":"IF(Log!B48=\"\",\"\",Log!B48)","v":""},{"$f":"IF(Log!C48=\"\",\"\",Log!C48)","v":""},{"$f":"IF(Log!D48=\"\",\"\",Log!D48)","v":""},null,null,null,{"$f":"IF(Log!F48=\"\",\"\",Log!F48)","v":""},{"$f":"IF(Log!H48=\"\",\"\",Log!H48)","v":""},"",null,null,null,null,null,null,null,null,null,null,null,null,null,null,null,null,null,null,null,null,null,null,null,null,null,null,null,null,null,null,null,null,null,null,null,null,null,null,null,null,null,null,null,null,null,null,null,null,null,null,null,null,null,null,null,null,null,null,null,null,null,null,null,null,null,null,null,null,null,null,null,"FileID","FileName","FileType","CurrentSystem","NextSystem","Content","Počet","TimeStamp"]
[null,null,null,null,{"$f":"IF(BM11=\"\",\"\",BM11)","v":""},"","","",null,"","","","",null,"","","","",null,"","","","",null,"","","","",null,{"$f":"IF(Log!A49=\"\",\"\",Log!A49)","v":""},{"$f":"IF(Log!B49=\"\",\"\",Log!B49)","v":""},{"$f":"IF(Log!C49=\"\",\"\",Log!C49)","v":""},{"$f":"IF(Log!D49=\"\",\"\",Log!D49)","v":""},null,null,null,{"$f":"IF(Log!F49=\"\",\"\",Log!F49)","v":""},{"$f":"IF(Log!H49=\"\",\"\",Log!H49)","v":""},"",null,null,null,null,null,null,null,null,null,null,null,null,null,null,null,null,null,null,null,null,null,null,null,null,null,null,null,null,null,null,null,null,null,null,null,null,null,null,null,null,null,null,null,null,null,null,null,null,null,null,null,null,null,null,null,null,null,null,null,null,null,null,null,null,null,null,null,null,null,null,null,{"$f":"Log!A2","v":1},{"$f":"Log!B2","v":"žádost"},{"$f":"Log!C2","v":"Posouzení záměru SÚ"},{"$f":"Log!D2","v":"Stavební úřad"},{"$f":"Log!E2","v":0},{"$f":"Log!F2","v":"The request number 1 has been forwarded to the building office."},{"$f":"Log!G2","v":1},{"$f":"Log!H2","v":45848.347500925927}]
[null,null,null,null,{"$f":"IF(BM12=\"\",\"\",BM12)","v":""},"","","",null,"","","","",null,"","","","",null,"","","","",null,"","","","",null,{"$f":"IF(Log!A50=\"\",\"\",Log!A50)","v":""},{"$f":"IF(Log!B50=\"\",\"\",Log!B50)","v":""},{"$f":"IF(Log!C50=\"\",\"\",Log!C50)","v":""},{"$f":"IF(Log!D50=\"\",\"\",Log!D50)","v":""},null,null,null,{"$f":"IF(Log!F50=\"\",\"\",Log!F50)","v":""},{"$f":"IF(Log!H50=\"\",\"\",Log!H50)","v":""},"",null,null,null,null,null,null,null,null,null,null,null,null,null,null,null,null,null,null,null,null,null,null,null,null,null,null,null,null,null,null,null,null,null,null,null,null,null,null,null,null,null,null,null,null,null,null,null,null,null,null,null,null,null,null,null,null,null,null,null,null,null,null,null,null,null,null,null,null,null,null,null,{"$f":"Log!A3","v":1},{"$f":"Log!B3","v":"žádost"},{"$f":"Log!C3","v":"Posouzení záměru PO"},{"$f":"Log!D3","v":"Požárníci"},{"$f":"Log!E3","v":0},{"$f":"Log!F3","v":"The application number 1 has been submitted for review by the fire department."},{"$f":"Log!G3","v":1},{"$f":"Log!H3","v":45848.347623263886}]
[null,null,null,null,{"$f":"IF(BM13=\"\",\"\",BM13)","v":""},"","","",null,"","","","",null,"","","","",null,"","","","",null,"","","","",null,{"$f":"IF(Log!A51=\"\",\"\",Log!A51)","v":""},{"$f":"IF(Log!B51=\"\",\"\",Log!B51)","v":""},{"$f":"IF(Log!C51=\"\",\"\",Log!C51)","v":""},{"$f":"IF(Log!D51=\"\",\"\",Log!D51)","v":""},null,null,null,{"$f":"IF(Log!F51=\"\",\"\",Log!F51)","v":""},{"$f":"IF(Log!H51=\"\",\"\",Log!H51)","v":""},"",null,null,null,null,null,null,null,null,null,null,null,null,null,null,null,null,null,null,null,null,null,null,null,null,null,null,null,null,null,null,null,null,null,null,null,null,null,null,null,null,null,null,null,null,null,null,null,null,null,null,null,null,null,null,null,null,null,null,null,null,null,null,null,null,null,null,null,null,null,null,null,{"$f":"Log!A4","v":1},{"$f":"Log!B4","v":"žádost"},{"$f":"Log!C4","v":"Posouzení záměru Pam"},{"$f":"Log!D4","v":"Památkáři"},{"$f":"Log!E4","v":0},{"$f":"Log!F4","v":"and to review by the heritage authorities."},{"$f":"Log!G4","v":2},{"$f":"Log!H4","v":45848.347623263886}]
[null,null,null,null,{"$f":"IF(BM14=\"\",\"\",BM14)","v":""},"","","",null,"","","","",null,"","","","",null,"","","","",null,"","","","",null,{"$f":"IF(Log!A52=\"\",\"\",Log!A52)","v":""},{"$f":"IF(Log!B52=\"\",\"\",Log!B52)","v":""},{"$f":"IF(Log!C52=\"\",\"\",Log!C52)","v":""},{"$f":"IF(Log!D52=\"\",\"\",Log!D52)","v":""},null,null,null,{"$f":"IF(Log!F52=\"\",\"\",Log!F52)","v":""},{"$f":"IF(Log!H52=\"\",\"\",Log!H52)","v":""},"",null,null,null,null,null,null,null,null,null,null,null,null,null,null,null,null,null,null,null,null,null,null,null,null,null,null,null,null,null,null,null,null,null,null,null,null,null,null,null,null,null,null,null,null,null,null,null,null,null,null,null,null,null,null,null,null,null,null,null,null,null,null,null,null,null,null,null,null,null,null,null,{"$f":"Log!A5","v":1},{"$f":"Log!B5","v":"žádost"},{"$f":"Log!C5","v":"Posouzení záměru OP"},{"$f":"Log!D5","v":"Ochrana přírody"},{"$f":"Log!E5","v":0},{"$f":"Log!F5","v":"and for review by the nature conservation authority"},{"$f":"Log!G5","v":3},{"$f":"Log!H5","v":45848.347623263886}]
[null,null,null,null,{"$f":"IF(BM15=\"\",\"\",BM15)","v":""},"","","",null,"","","","",null,"","","","",null,"","","","",null,"","","","",null,{"$f":"IF(Log!A53=\"\",\"\",Log!A53)","v":""},{"$f":"IF(Log!B53=\"\",\"\",Log!B53)","v":""},{"$f":"IF(Log!C53=\"\",\"\",Log!C53)","v":""},{"$f":"IF(Log!D53=\"\",\"\",Log!D53)","v":""},null,null,null,{"$f":"IF(Log!F53=\"\",\"\",Log!F53)","v":""},{"$f":"IF(Log!H53=\"\",\"\",Log!H53)","v":""},"",null,null,null,null,null,null,null,null,null,null,null,null,null,null,null,null,null,null,null,null,null,null,null,null,null,null,null,null,null,null,null,null,null,null,null,null,null,null,null,null,null,null,null,null,null,null,null,null,null,null,null,null,null,null,null,null,null,null,null,null,null,null,null,null,null,null,null,null,null,null,null,{"$f":"Log!A6","v":1},{"$f":"Log!B6","v":"žádost"},{"$f":"Log!C6","v":"Posouzení záměru Sous"},{"$f":"Log!D6","v":"Sousedé"},{"$f":"Log!E6","v":0},{"$f":"Log!F6","v":"and is ready for comments from the neighbors."},{"$f":"Log!G6","v":4},{"$f":"Log!H6","v":45848.347623263886}]
[null,null,null,null,{"$f":"IF(BM16=\"\",\"\",BM16)","v":""},"","","",null,"","","","",null,"","","","",null,"","","","",null,"","","","",null,{"$f":"IF(Log!A54=\"\",\"\",Log!A54)","v":""},{"$f":"IF(Log!B54=\"\",\"\",Log!B54)","v":""},{"$f":"IF(Log!C54=\"\",\"\",Log!C54)","v":""},{"$f":"IF(Log!D54=\"\",\"\",Log!D54)","v":""},null,null,null,{"$f":"IF(Log!F54=\"\",\"\",Log!F54)","v":""},{"$f":"IF(Log!H54=\"\",\"\",Log!H54)","v":""},"",null,null,null,null,null,null,null,null,null,null,null,null,null,null,null,null,null,null,null,null,null,null,null,null,null,null,null,null,null,null,null,null,null,null,null,null,null,null,null,null,null,null,null,null,null,null,null,null,null,null,null,null,null,null,null,null,null,null,null,null,null,null,null,null,null,null,null,null,null,null,null,{"$f":"Log!A7","v":1},{"$f":"Log!B7","v":"žádost"},{"$f":"Log!C7","v":"Posouzení záměru DDO"},{"$f":"Log!D7","v":"Další dotčené orgány"},{"$f":"Log!E7","v":0},{"$f":"Log!F7","v":"as well as is ready for comments from other relevant authorities."},{"$f":"Log!G7","v":5},{"$f":"Log!H7","v":45848.347623379632}]
[null,null,null,null,{"$f":"IF(BM17=\"\",\"\",BM17)","v":""},"","","",null,"","","","",null,"","","","",null,"","","","",null,"","","","",null,{"$f":"IF(Log!A55=\"\",\"\",Log!A55)","v":""},{"$f":"IF(Log!B55=\"\",\"\",Log!B55)","v":""},{"$f":"IF(Log!C55=\"\",\"\",Log!C55)","v":""},{"$f":"IF(Log!D55=\"\",\"\",Log!D55)","v":""},null,null,null,{"$f":"IF(Log!F55=\"\",\"\",Log!F55)","v":""},{"$f":"IF(Log!H55=\"\",\"\",Log!H55)","v":""},"",null,null,null,null,null,null,null,null,null,null,null,null,null,null,null,null,null,null,null,null,null,null,null,null,null,null,null,null,null,null,null,null,null,null,null,null,null,null,null,null,null,null,null,null,null,null,null,null,null,null,null,null,null,null,null,null,null,null,null,null,null,null,null,null,null,null,null,null,null,null,null,{"$f":"Log!A8","v":1},{"$f":"Log!B8","v":"žádost"},{"$f":"Log!C8","v":"Schváleno PO"},{"$f":"Log!D8","v":"Stavební úřad"},{"$f":"Log!E8","v":0},{"$f":"Log!F8","v":"The application number 1 is resolved"},{"$f":"Log!G8","v":1},{"$f":"Log!H8","v":45848.348330787034}]
[null,null,null,null,{"$f":"IF(BM18=\"\",\"\",BM18)","v":""},"","","",null,"","","","",null,"","","","",null,"","","","",null,"","","","",null,{"$f":"IF(Log!A56=\"\",\"\",Log!A56)","v":""},{"$f":"IF(Log!B56=\"\",\"\",Log!B56)","v":""},{"$f":"IF(Log!C56=\"\",\"\",Log!C56)","v":""},{"$f":"IF(Log!D56=\"\",\"\",Log!D56)","v":""},null,null,null,{"$f":"IF(Log!F56=\"\",\"\",Log!F56)","v":""},{"$f":"IF(Log!H56=\"\",\"\",Log!H56)","v":""},"",null,null,null,null,null,null,null,null,null,null,null,null,null,null,null,null,null,null,null,null,null,null,null,null,null,null,null,null,null,null,null,null,null,null,null,null,null,null,null,null,null,null,null,null,null,null,null,null,null,null,null,null,null,null,null,null,null,null,null,null,null,null,null,null,null,null,null,null,null,null,null,{"$f":"Log!A9","v":1},{"$f":"Log!B9","v":"žádost"},{"$f":"Log!C9","v":"Schváleno Pam"},{"$f":"Log!D9","v":"Stavební úřad"},{"$f":"Log!E9","v":0},{"$f":"Log!F9","v":"The application number 1 is resolved"},{"$f":"Log!G9","v":1},{"$f":"Log!H9","v":45848.3483380787}]
[null,null,null,null,{"$f":"IF(BM19=\"\",\"\",BM19)","v":""},"","","",null,"","","","",null,"","","","",null,"","","","",null,"","","","",null,{"$f":"IF(Log!A57=\"\",\"\",Log!A57)","v":""},{"$f":"IF(Log!B57=\"\",\"\",Log!B57)","v":""},{"$f":"IF(Log!C57=\"\",\"\",Log!C57)","v":""},{"$f":"IF(Log!D57=\"\",\"\",Log!D57)","v":""},null,null,null,{"$f":"IF(Log!F57=\"\",\"\",Log!F57)","v":""},{"$f":"IF(Log!H57=\"\",\"\",Log!H57)","v":""},"",null,null,null,null,null,null,null,null,null,null,null,null,null,null,null,null,null,null,null,null,null,null,null,null,null,null,null,null,null,null,null,null,null,null,null,null,null,null,null,null,null,null,null,null,null,null,null,null,null,null,null,null,null,null,null,null,null,null,null,null,null,null,null,null,null,null,null,null,null,null,null,{"$f":"Log!A10","v":1},{"$f":"Log!B10","v":"žádost"},{"$f":"Log!C10","v":"Posouzení záměru OP"},{"$f":"Log!D10","v":"Ochrana přírody"},{"$f":"Log!E10","v":0},{"$f":"Log!F10","v":"The application number 1 is resolved"},{"$f":"Log!G10","v":1},{"$f":"Log!H10","v":45848.347627314812}]
[null,null,null,null,{"$f":"IF(BM20=\"\",\"\",BM20)","v":""},"","","",null,"","","","",null,"","","","",null,"","","","",null,"","","","",null,{"$f":"IF(Log!A58=\"\",\"\",Log!A58)","v":""},{"$f":"IF(Log!B58=\"\",\"\",Log!B58)","v":""},{"$f":"IF(Log!C58=\"\",\"\",Log!C58)","v":""},{"$f":"IF(Log!D58=\"\",\"\",Log!D58)","v":""},null,null,null,{"$f":"IF(Log!F58=\"\",\"\",Log!F58)","v":""},{"$f":"IF(Log!H58=\"\",\"\",Log!H58)","v":""},"",null,null,null,null,null,null,null,null,null,null,null,null,null,null,null,null,null,null,null,null,null,null,null,null,null,null,null,null,null,null,null,null,null,null,null,null,null,null,null,null,null,null,null,null,null,null,null,null,null,null,null,null,null,null,null,null,null,null,null,null,null,null,null,null,null,null,null,null,null,null,null,{"$f":"Log!A11","v":1},{"$f":"Log!B11","v":"žádost"},{"$f":"Log!C11","v":"Posouzení záměru Sous"},{"$f":"Log!D11","v":"Sousedé"},{"$f":"Log!E11","v":0},{"$f":"Log!F11","v":"The application number 1 is resolved"},{"$f":"Log!G11","v":1},{"$f":"Log!H11","v":45848.347630324075}]
[null,null,null,null,{"$f":"IF(BM21=\"\",\"\",BM21)","v":""},"","","",null,"","","","",null,"","","","",null,"","","","",null,"","","","",null,{"$f":"IF(Log!A59=\"\",\"\",Log!A59)","v":""},{"$f":"IF(Log!B59=\"\",\"\",Log!B59)","v":""},{"$f":"IF(Log!C59=\"\",\"\",Log!C59)","v":""},{"$f":"IF(Log!D59=\"\",\"\",Log!D59)","v":""},null,null,null,{"$f":"IF(Log!F59=\"\",\"\",Log!F59)","v":""},{"$f":"IF(Log!H59=\"\",\"\",Log!H59)","v":""},"",null,null,null,null,null,null,null,null,null,null,null,null,null,null,null,null,null,null,null,null,null,null,null,null,null,null,null,null,null,null,null,null,null,null,null,null,null,null,null,null,null,null,null,null,null,null,null,null,null,null,null,null,null,null,null,null,null,null,null,null,null,null,null,null,null,null,null,null,null,null,null,{"$f":"Log!A12","v":1},{"$f":"Log!B12","v":"žádost"},{"$f":"Log!C12","v":"Posouzení záměru DDO"},{"$f":"Log!D12","v":"Další dotčené orgány"},{"$f":"Log!E12","v":0},{"$f":"Log!F12","v":"The response to the application number 1 has been returned to the building office."},{"$f":"Log!G12","v":1},{"$f":"Log!H12","v":45848.347633217592}]
[null,null,null,null,{"$f":"IF(BM22=\"\",\"\",BM22)","v":""},"","","",null,"","","","",null,"","","","",null,"","","","",null,"","","","",null,{"$f":"IF(Log!A60=\"\",\"\",Log!A60)","v":""},{"$f":"IF(Log!B60=\"\",\"\",Log!B60)","v":""},{"$f":"IF(Log!C60=\"\",\"\",Log!C60)","v":""},{"$f":"IF(Log!D60=\"\",\"\",Log!D60)","v":""},null,null,null,{"$f":"IF(Log!F60=\"\",\"\",Log!F60)","v":""},{"$f":"IF(Log!H60=\"\",\"\",Log!H60)","v":""},""]
[null,null,null,null,{"$f":"IF(BM23=\"\",\"\",BM23)","v":""},"","","",null,"","","","",null,"","","","",null,"","","","",null,"","","","",null,{"$f":"IF(Log!A61=\"\",\"\",Log!A61)","v":""},{"$f":"IF(Log!B61=\"\",\"\",Log!B61)","v":""},{"$f":"IF(Log!C61=\"\",\"\",Log!C61)","v":""},{"$f":"IF(Log!D61=\"\",\"\",Log!D61)","v":""},null,null,null,{"$f":"IF(Log!F61=\"\",\"\",Log!F61)","v":""},{"$f":"IF(Log!H61=\"\",\"\",Log!H61)","v":""},""]
[null,null,null,null,{"$f":"IF(BM24=\"\",\"\",BM24)","v":""},"","","",null,null,null,null,null,null,null,null,null,null,null,null,null,null,null,null,null,null,null,null,null,{"$f":"IF(Log!A62=\"\",\"\",Log!A62)","v":""},{"$f":"IF(Log!B62=\"\",\"\",Log!B62)","v":""},{"$f":"IF(Log!C62=\"\",\"\",Log!C62)","v":""},{"$f":"IF(Log!D62=\"\",\"\",Log!D62)","v":""},null,null,null,{"$f":"IF(Log!F62=\"\",\"\",Log!F62)","v":""},{"$f":"IF(Log!H62=\"\",\"\",Log!H62)","v":""}]
[null,null,null,null,{"$f":"IF(BM25=\"\",\"\",BM25)","v":""},"","","",null,null,null,null,null,null,null,null,null,null,null,null,null,null,null,null,null,null,null,null,null,{"$f":"IF(Log!A63=\"\",\"\",Log!A63)","v":""},{"$f":"IF(Log!B63=\"\",\"\",Log!B63)","v":""},{"$f":"IF(Log!C63=\"\",\"\",Log!C63)","v":""},{"$f":"IF(Log!D63=\"\",\"\",Log!D63)","v":""},null,null,null,{"$f":"IF(Log!F63=\"\",\"\",Log!F63)","v":""},{"$f":"IF(Log!H63=\"\",\"\",Log!H63)","v":""}]
[null,null,null,null,{"$f":"IF(BM26=\"\",\"\",BM26)","v":""},"","","",null,null,null,null,null,null,null,null,null,null,null,null,null,null,null,null,null,null,null,null,null,{"$f":"IF(Log!A64=\"\",\"\",Log!A64)","v":""},{"$f":"IF(Log!B64=\"\",\"\",Log!B64)","v":""},{"$f":"IF(Log!C64=\"\",\"\",Log!C64)","v":""},{"$f":"IF(Log!D64=\"\",\"\",Log!D64)","v":""},null,null,null,{"$f":"IF(Log!F64=\"\",\"\",Log!F64)","v":""},{"$f":"IF(Log!H64=\"\",\"\",Log!H64)","v":""}]
[null,null,null,null,{"$f":"IF(BM27=\"\",\"\",BM27)","v":""},"","","",null,null,null,null,null,null,null,null,null,null,null,null,null,null,null,null,null,null,null,null,null,{"$f":"IF(Log!A65=\"\",\"\",Log!A65)","v":""},{"$f":"IF(Log!B65=\"\",\"\",Log!B65)","v":""},{"$f":"IF(Log!C65=\"\",\"\",Log!C65)","v":""},{"$f":"IF(Log!D65=\"\",\"\",Log!D65)","v":""},null,null,null,{"$f":"IF(Log!F65=\"\",\"\",Log!F65)","v":""},{"$f":"IF(Log!H65=\"\",\"\",Log!H65)","v":""}]
[null,null,null,null,null,null,null,null,null,null,null,null,null,null,null,null,null,null,null,null,null,null,null,null,null,null,null,null,null,{"$f":"IF(Log!A66=\"\",\"\",Log!A66)","v":""},{"$f":"IF(Log!B66=\"\",\"\",Log!B66)","v":""},{"$f":"IF(Log!C66=\"\",\"\",Log!C66)","v":""},{"$f":"IF(Log!D66=\"\",\"\",Log!D66)","v":""},null,null,null,{"$f":"IF(Log!F66=\"\",\"\",Log!F66)","v":""},{"$f":"IF(Log!H66=\"\",\"\",Log!H66)","v":""}]
[null,null,null,null,null,null,null,null,null,null,null,null,null,null,null,null,null,null,null,null,null,null,null,null,null,null,null,null,null,{"$f":"IF(Log!A67=\"\",\"\",Log!A67)","v":""},{"$f":"IF(Log!B67=\"\",\"\",Log!B67)","v":""},{"$f":"IF(Log!C67=\"\",\"\",Log!C67)","v":""},{"$f":"IF(Log!D67=\"\",\"\",Log!D67)","v":""},null,null,null,{"$f":"IF(Log!F67=\"\",\"\",Log!F67)","v":""},{"$f":"IF(Log!H67=\"\",\"\",Log!H67)","v":""}]
[null,null,null,null,null,null,null,null,null,null,null,null,null,null,null,null,null,null,null,null,null,null,null,null,null,null,null,null,null,{"$f":"IF(Log!A68=\"\",\"\",Log!A68)","v":""},{"$f":"IF(Log!B68=\"\",\"\",Log!B68)","v":""},{"$f":"IF(Log!C68=\"\",\"\",Log!C68)","v":""},{"$f":"IF(Log!D68=\"\",\"\",Log!D68)","v":""},null,null,null,{"$f":"IF(Log!F68=\"\",\"\",Log!F68)","v":""},{"$f":"IF(Log!H68=\"\",\"\",Log!H68)","v":""}]
[null,null,null,null,null,null,null,null,null,null,null,null,null,null,null,null,null,null,null,null,null,null,null,null,null,null,null,null,null,{"$f":"IF(Log!A69=\"\",\"\",Log!A69)","v":""},{"$f":"IF(Log!B69=\"\",\"\",Log!B69)","v":""},{"$f":"IF(Log!C69=\"\",\"\",Log!C69)","v":""},{"$f":"IF(Log!D69=\"\",\"\",Log!D69)","v":""},null,null,null,{"$f":"IF(Log!F69=\"\",\"\",Log!F69)","v":""},{"$f":"IF(Log!H69=\"\",\"\",Log!H69)","v":""}]
[null,null,null,null,null,null,null,null,null,null,null,null,null,null,null,null,null,null,null,null,null,null,null,null,null,null,null,null,null,{"$f":"IF(Log!A70=\"\",\"\",Log!A70)","v":""},{"$f":"IF(Log!B70=\"\",\"\",Log!B70)","v":""},{"$f":"IF(Log!C70=\"\",\"\",Log!C70)","v":""},{"$f":"IF(Log!D70=\"\",\"\",Log!D70)","v":""},null,null,null,{"$f":"IF(Log!F70=\"\",\"\",Log!F70)","v":""},{"$f":"IF(Log!H70=\"\",\"\",Log!H70)","v":""}]
[null,null,null,null,null,null,null,null,null,null,null,null,null,null,null,null,null,null,null,null,null,null,null,null,null,null,null,null,null,{"$f":"IF(Log!A71=\"\",\"\",Log!A71)","v":""},{"$f":"IF(Log!B71=\"\",\"\",Log!B71)","v":""},{"$f":"IF(Log!C71=\"\",\"\",Log!C71)","v":""},{"$f":"IF(Log!D71=\"\",\"\",Log!D71)","v":""},null,null,null,{"$f":"IF(Log!F71=\"\",\"\",Log!F71)","v":""},{"$f":"IF(Log!H71=\"\",\"\",Log!H71)","v":""}]
[null,null,null,null,null,null,null,null,null,null,null,null,null,null,null,null,null,null,null,null,null,null,null,null,null,null,null,null,null,{"$f":"IF(Log!A72=\"\",\"\",Log!A72)","v":""},{"$f":"IF(Log!B72=\"\",\"\",Log!B72)","v":""},{"$f":"IF(Log!C72=\"\",\"\",Log!C72)","v":""},{"$f":"IF(Log!D72=\"\",\"\",Log!D72)","v":""},null,null,null,{"$f":"IF(Log!F72=\"\",\"\",Log!F72)","v":""},{"$f":"IF(Log!H72=\"\",\"\",Log!H72)","v":""}]
[null,null,null,null,null,null,null,null,null,null,null,null,null,null,null,null,null,null,null,null,null,null,null,null,null,null,null,null,null,{"$f":"IF(Log!A73=\"\",\"\",Log!A73)","v":""},{"$f":"IF(Log!B73=\"\",\"\",Log!B73)","v":""},{"$f":"IF(Log!C73=\"\",\"\",Log!C73)","v":""},{"$f":"IF(Log!D73=\"\",\"\",Log!D73)","v":""},null,null,null,{"$f":"IF(Log!F73=\"\",\"\",Log!F73)","v":""},{"$f":"IF(Log!H73=\"\",\"\",Log!H73)","v":""}]
[null,null,null,null,null,null,null,null,null,null,null,null,null,null,null,null,null,null,null,null,null,null,null,null,null,null,null,null,null,{"$f":"IF(Log!A74=\"\",\"\",Log!A74)","v":""}]
[null,null,null,null,null,null,null,null,null,null,null,null,null,null,null,null,null,null,null,null,null,null,null,null,null,null,null,null,null,{"$f":"IF(Log!A75=\"\",\"\",Log!A75)","v":""}]
[null,null,null,null,null,null,null,null,null,null,null,null,null,null,null,null,null,null,null,null,null,null,null,null,null,null,null,null,null,{"$f":"IF(Log!A76=\"\",\"\",Log!A76)","v":""}]
[null,null,null,null,null,null,null,null,null,null,null,null,null,null,null,null,null,null,null,null,null,null,null,null,null,null,null,null,null,{"$f":"IF(Log!A77=\"\",\"\",Log!A77)","v":""}]
[null,null,null,null,null,null,null,null,null,null,null,null,null,null,null,null,null,null,null,null,null,null,null,null,null,null,null,null,null,{"$f":"IF(Log!A78=\"\",\"\",Log!A78)","v":""}]
[null,null,null,null,null,null,null,null,null,null,null,null,null,null,null,null,null,null,null,null,null,null,null,null,null,null,null,null,null,{"$f":"IF(Log!A79=\"\",\"\",Log!A79)","v":""}]
[]
[]
[]
[]
[]
[]
[]
[]
[]
[]
[]
[]
[]
[]
[]
[]
[]
[]
[]
[]
[]
[]
[null,null,null,null,null,null,null,null,null,null,null,null,null,null,null,null,null,null,null,null,null,null,null,null,null,null,null,null,null,{"$f":"IF(Log!A58=\"\",\"\",Log!A58)","v":""},{"$f":"IF(Log!B58=\"\",\"\",Log!B58)","v":""},{"$f":"IF(Log!C58=\"\",\"\",Log!C58)","v":""},{"$f":"IF(Log!D58=\"\",\"\",Log!D58)","v":""},null,null,null,{"$f":"IF(Log!H58=\"\",\"\",Log!H58)","v":""}]
[null,null,null,null,null,null,null,null,null,null,null,null,null,null,null,null,null,null,null,null,null,null,null,null,null,null,null,null,null,{"$f":"IF(Log!A59=\"\",\"\",Log!A59)","v":""},{"$f":"IF(Log!B59=\"\",\"\",Log!B59)","v":""},{"$f":"IF(Log!C59=\"\",\"\",Log!C59)","v":""},{"$f":"IF(Log!D59=\"\",\"\",Log!D59)","v":""},null,null,null,{"$f":"IF(Log!H59=\"\",\"\",Log!H59)","v":""}]
[null,null,null,null,null,null,null,null,null,null,null,null,null,null,null,null,null,null,null,null,null,null,null,null,null,null,null,null,null,{"$f":"IF(Log!A60=\"\",\"\",Log!A60)","v":""},{"$f":"IF(Log!B60=\"\",\"\",Log!B60)","v":""},{"$f":"IF(Log!C60=\"\",\"\",Log!C60)","v":""},{"$f":"IF(Log!D60=\"\",\"\",Log!D60)","v":""},null,null,null,{"$f":"IF(Log!H60=\"\",\"\",Log!H60)","v":""}]
[null,null,null,null,null,null,null,null,null,null,null,null,null,null,null,null,null,null,null,null,null,null,null,null,null,null,null,null,null,{"$f":"IF(Log!A61=\"\",\"\",Log!A61)","v":""},{"$f":"IF(Log!B61=\"\",\"\",Log!B61)","v":""},{"$f":"IF(Log!C61=\"\",\"\",Log!C61)","v":""},{"$f":"IF(Log!D61=\"\",\"\",Log!D61)","v":""},null,null,null,{"$f":"IF(Log!H61=\"\",\"\",Log!H61)","v":""}]
[null,null,null,null,null,null,null,null,null,null,null,null,null,null,null,null,null,null,null,null,null,null,null,null,null,null,null,null,null,{"$f":"IF(Log!A62=\"\",\"\",Log!A62)","v":""},{"$f":"IF(Log!B62=\"\",\"\",Log!B62)","v":""},{"$f":"IF(Log!C62=\"\",\"\",Log!C62)","v":""},{"$f":"IF(Log!D62=\"\",\"\",Log!D62)","v":""},null,null,null,{"$f":"IF(Log!H62=\"\",\"\",Log!H62)","v":""}]
[null,null,null,null,null,null,null,null,null,null,null,null,null,null,null,null,null,null,null,null,null,null,null,null,null,null,null,null,null,{"$f":"IF(Log!A63=\"\",\"\",Log!A63)","v":""},{"$f":"IF(Log!B63=\"\",\"\",Log!B63)","v":""},{"$f":"IF(Log!C63=\"\",\"\",Log!C63)","v":""},{"$f":"IF(Log!D63=\"\",\"\",Log!D63)","v":""},null,null,null,{"$f":"IF(Log!H63=\"\",\"\",Log!H63)","v":""}]
[null,null,null,null,null,null,null,null,null,null,null,null,null,null,null,null,null,null,null,null,null,null,null,null,null,null,null,null,null,{"$f":"IF(Log!A64=\"\",\"\",Log!A64)","v":""},{"$f":"IF(Log!B64=\"\",\"\",Log!B64)","v":""},{"$f":"IF(Log!C64=\"\",\"\",Log!C64)","v":""},{"$f":"IF(Log!D64=\"\",\"\",Log!D64)","v":""},null,null,null,{"$f":"IF(Log!H64=\"\",\"\",Log!H64)","v":""}]
[null,null,null,null,null,null,null,null,null,null,null,null,null,null,null,null,null,null,null,null,null,null,null,null,null,null,null,null,null,{"$f":"IF(Log!A65=\"\",\"\",Log!A65)","v":""},{"$f":"IF(Log!B65=\"\",\"\",Log!B65)","v":""},{"$f":"IF(Log!C65=\"\",\"\",Log!C65)","v":""},{"$f":"IF(Log!D65=\"\",\"\",Log!D65)","v":""},null,null,null,{"$f":"IF(Log!H65=\"\",\"\",Log!H65)","v":""}]
[null,null,null,null,null,null,null,null,null,null,null,null,null,null,null,null,null,null,null,null,null,null,null,null,null,null,null,null,null,{"$f":"IF(Log!A66=\"\",\"\",Log!A66)","v":""},{"$f":"IF(Log!B66=\"\",\"\",Log!B66)","v":""},{"$f":"IF(Log!C66=\"\",\"\",Log!C66)","v":""},{"$f":"IF(Log!D66=\"\",\"\",Log!D66)","v":""},null,null,null,{"$f":"IF(Log!H66=\"\",\"\",Log!H66)","v":""}]
[null,null,null,null,null,null,null,null,null,null,null,null,null,null,null,null,null,null,null,null,null,null,null,null,null,null,null,null,null,{"$f":"IF(Log!A67=\"\",\"\",Log!A67)","v":""},{"$f":"IF(Log!B67=\"\",\"\",Log!B67)","v":""},{"$f":"IF(Log!C67=\"\",\"\",Log!C67)","v":""},{"$f":"IF(Log!D67=\"\",\"\",Log!D67)","v":""},null,null,null,{"$f":"IF(Log!H67=\"\",\"\",Log!H67)","v":""}]
[null,null,null,null,null,null,null,null,null,null,null,null,null,null,null,null,null,null,null,null,null,null,null,null,null,null,null,null,null,{"$f":"IF(Log!A68=\"\",\"\",Log!A68)","v":""},{"$f":"IF(Log!B68=\"\",\"\",Log!B68)","v":""},{"$f":"IF(Log!C68=\"\",\"\",Log!C68)","v":""},{"$f":"IF(Log!D68=\"\",\"\",Log!D68)","v":""},null,null,null,{"$f":"IF(Log!H68=\"\",\"\",Log!H68)","v":""}]
[null,null,null,null,null,null,null,null,null,null,null,null,null,null,null,null,null,null,null,null,null,null,null,null,null,null,null,null,null,{"$f":"IF(Log!A69=\"\",\"\",Log!A69)","v":""},{"$f":"IF(Log!B69=\"\",\"\",Log!B69)","v":""},{"$f":"IF(Log!C69=\"\",\"\",Log!C69)","v":""},{"$f":"IF(Log!D69=\"\",\"\",Log!D69)","v":""},null,null,null,{"$f":"IF(Log!H69=\"\",\"\",Log!H69)","v":""}]
[null,null,null,null,null,null,null,null,null,null,null,null,null,null,null,null,null,null,null,null,null,null,null,null,null,null,null,null,null,{"$f":"IF(Log!A70=\"\",\"\",Log!A70)","v":""},{"$f":"IF(Log!B70=\"\",\"\",Log!B70)","v":""},{"$f":"IF(Log!C70=\"\",\"\",Log!C70)","v":""},{"$f":"IF(Log!D70=\"\",\"\",Log!D70)","v":""},null,null,null,{"$f":"IF(Log!H70=\"\",\"\",Log!H70)","v":""}]
[null,null,null,null,null,null,null,null,null,null,null,null,null,null,null,null,null,null,null,null,null,null,null,null,null,null,null,null,null,{"$f":"IF(Log!A71=\"\",\"\",Log!A71)","v":""},{"$f":"IF(Log!B71=\"\",\"\",Log!B71)","v":""},{"$f":"IF(Log!C71=\"\",\"\",Log!C71)","v":""},{"$f":"IF(Log!D71=\"\",\"\",Log!D71)","v":""},null,null,null,{"$f":"IF(Log!H71=\"\",\"\",Log!H71)","v":""}]
[null,null,null,null,null,null,null,null,null,null,null,null,null,null,null,null,null,null,null,null,null,null,null,null,null,null,null,null,null,{"$f":"IF(Log!A72=\"\",\"\",Log!A72)","v":""},{"$f":"IF(Log!B72=\"\",\"\",Log!B72)","v":""},{"$f":"IF(Log!C72=\"\",\"\",Log!C72)","v":""},{"$f":"IF(Log!D72=\"\",\"\",Log!D72)","v":""},null,null,null,{"$f":"IF(Log!H72=\"\",\"\",Log!H72)","v":""}]
[null,null,null,null,null,null,null,null,null,null,null,null,null,null,null,null,null,null,null,null,null,null,null,null,null,null,null,null,null,{"$f":"IF(Log!A73=\"\",\"\",Log!A73)","v":""},{"$f":"IF(Log!B73=\"\",\"\",Log!B73)","v":""},{"$f":"IF(Log!C73=\"\",\"\",Log!C73)","v":""},{"$f":"IF(Log!D73=\"\",\"\",Log!D73)","v":""},null,null,null,{"$f":"IF(Log!H73=\"\",\"\",Log!H73)","v":""}]
[null,null,null,null,null,null,null,null,null,null,null,null,null,null,null,null,null,null,null,null,null,null,null,null,null,null,null,null,null,{"$f":"IF(Log!A74=\"\",\"\",Log!A74)","v":""},{"$f":"IF(Log!B74=\"\",\"\",Log!B74)","v":""},{"$f":"IF(Log!C74=\"\",\"\",Log!C74)","v":""},{"$f":"IF(Log!D74=\"\",\"\",Log!D74)","v":""},null,null,null,{"$f":"IF(Log!H74=\"\",\"\",Log!H74)","v":""}]
[null,null,null,null,null,null,null,null,null,null,null,null,null,null,null,null,null,null,null,null,null,null,null,null,null,null,null,null,null,{"$f":"IF(Log!A75=\"\",\"\",Log!A75)","v":""},{"$f":"IF(Log!B75=\"\",\"\",Log!B75)","v":""},{"$f":"IF(Log!C75=\"\",\"\",Log!C75)","v":""},{"$f":"IF(Log!D75=\"\",\"\",Log!D75)","v":""},null,null,null,{"$f":"IF(Log!H75=\"\",\"\",Log!H75)","v":""}]
[null,null,null,null,null,null,null,null,null,null,null,null,null,null,null,null,null,null,null,null,null,null,null,null,null,null,null,null,null,{"$f":"IF(Log!A76=\"\",\"\",Log!A76)","v":""},{"$f":"IF(Log!B76=\"\",\"\",Log!B76)","v":""},{"$f":"IF(Log!C76=\"\",\"\",Log!C76)","v":""},{"$f":"IF(Log!D76=\"\",\"\",Log!D76)","v":""},null,null,null,{"$f":"IF(Log!H76=\"\",\"\",Log!H76)","v":""}]
[null,null,null,null,null,null,null,null,null,null,null,null,null,null,null,null,null,null,null,null,null,null,null,null,null,null,null,null,null,{"$f":"IF(Log!A77=\"\",\"\",Log!A77)","v":""},{"$f":"IF(Log!B77=\"\",\"\",Log!B77)","v":""},{"$f":"IF(Log!C77=\"\",\"\",Log!C77)","v":""},{"$f":"IF(Log!D77=\"\",\"\",Log!D77)","v":""},null,null,null,{"$f":"IF(Log!H77=\"\",\"\",Log!H77)","v":""}]
[null,null,null,null,null,null,null,null,null,null,null,null,null,null,null,null,null,null,null,null,null,null,null,null,null,null,null,null,null,{"$f":"IF(Log!A78=\"\",\"\",Log!A78)","v":""},{"$f":"IF(Log!B78=\"\",\"\",Log!B78)","v":""},{"$f":"IF(Log!C78=\"\",\"\",Log!C78)","v":""},{"$f":"IF(Log!D78=\"\",\"\",Log!D78)","v":""},null,null,null,{"$f":"IF(Log!H78=\"\",\"\",Log!H78)","v":""}]
[null,null,null,null,null,null,null,null,null,null,null,null,null,null,null,null,null,null,null,null,null,null,null,null,null,null,null,null,null,{"$f":"IF(Log!A79=\"\",\"\",Log!A79)","v":""},{"$f":"IF(Log!B79=\"\",\"\",Log!B79)","v":""},{"$f":"IF(Log!C79=\"\",\"\",Log!C79)","v":""},{"$f":"IF(Log!D79=\"\",\"\",Log!D79)","v":""},null,null,null,{"$f":"IF(Log!H79=\"\",\"\",Log!H79)","v":""}]
[null,null,null,null,null,null,null,null,null,null,null,null,null,null,null,null,null,null,null,null,null,null,null,null,null,null,null,null,null,{"$f":"IF(Log!A80=\"\",\"\",Log!A80)","v":""},{"$f":"IF(Log!B80=\"\",\"\",Log!B80)","v":""},{"$f":"IF(Log!C80=\"\",\"\",Log!C80)","v":""},{"$f":"IF(Log!D80=\"\",\"\",Log!D80)","v":""},null,null,null,{"$f":"IF(Log!H80=\"\",\"\",Log!H80)","v":""}]
[null,null,null,null,null,null,null,null,null,null,null,null,null,null,null,null,null,null,null,null,null,null,null,null,null,null,null,null,null,{"$f":"IF(Log!A81=\"\",\"\",Log!A81)","v":""},{"$f":"IF(Log!B81=\"\",\"\",Log!B81)","v":""},{"$f":"IF(Log!C81=\"\",\"\",Log!C81)","v":""},{"$f":"IF(Log!D81=\"\",\"\",Log!D81)","v":""},null,null,null,{"$f":"IF(Log!H81=\"\",\"\",Log!H81)","v":""}]
[null,null,null,null,null,null,null,null,null,null,null,null,null,null,null,null,null,null,null,null,null,null,null,null,null,null,null,null,null,{"$f":"IF(Log!A82=\"\",\"\",Log!A82)","v":""},{"$f":"IF(Log!B82=\"\",\"\",Log!B82)","v":""},{"$f":"IF(Log!C82=\"\",\"\",Log!C82)","v":""},{"$f":"IF(Log!D82=\"\",\"\",Log!D82)","v":""},null,null,null,{"$f":"IF(Log!H82=\"\",\"\",Log!H82)","v":""}]
[null,null,null,null,null,null,null,null,null,null,null,null,null,null,null,null,null,null,null,null,null,null,null,null,null,null,null,null,null,{"$f":"IF(Log!A83=\"\",\"\",Log!A83)","v":""},{"$f":"IF(Log!B83=\"\",\"\",Log!B83)","v":""},{"$f":"IF(Log!C83=\"\",\"\",Log!C83)","v":""},{"$f":"IF(Log!D83=\"\",\"\",Log!D83)","v":""},null,null,null,{"$f":"IF(Log!H83=\"\",\"\",Log!H83)","v":""}]
[null,null,null,null,null,null,null,null,null,null,null,null,null,null,null,null,null,null,null,null,null,null,null,null,null,null,null,null,null,{"$f":"IF(Log!A84=\"\",\"\",Log!A84)","v":""},{"$f":"IF(Log!B84=\"\",\"\",Log!B84)","v":""},{"$f":"IF(Log!C84=\"\",\"\",Log!C84)","v":""},{"$f":"IF(Log!D84=\"\",\"\",Log!D84)","v":""},null,null,null,{"$f":"IF(Log!H84=\"\",\"\",Log!H84)","v":""}]
[null,null,null,null,null,null,null,null,null,null,null,null,null,null,null,null,null,null,null,null,null,null,null,null,null,null,null,null,null,{"$f":"IF(Log!A85=\"\",\"\",Log!A85)","v":""},{"$f":"IF(Log!B85=\"\",\"\",Log!B85)","v":""},{"$f":"IF(Log!C85=\"\",\"\",Log!C85)","v":""},{"$f":"IF(Log!D85=\"\",\"\",Log!D85)","v":""},null,null,null,{"$f":"IF(Log!H85=\"\",\"\",Log!H85)","v":""}]
[null,null,null,null,null,null,null,null,null,null,null,null,null,null,null,null,null,null,null,null,null,null,null,null,null,null,null,null,null,{"$f":"IF(Log!A86=\"\",\"\",Log!A86)","v":""},{"$f":"IF(Log!B86=\"\",\"\",Log!B86)","v":""},{"$f":"IF(Log!C86=\"\",\"\",Log!C86)","v":""},{"$f":"IF(Log!D86=\"\",\"\",Log!D86)","v":""},null,null,null,{"$f":"IF(Log!H86=\"\",\"\",Log!H86)","v":""}]
[null,null,null,null,null,null,null,null,null,null,null,null,null,null,null,null,null,null,null,null,null,null,null,null,null,null,null,null,null,{"$f":"IF(Log!A87=\"\",\"\",Log!A87)","v":""},{"$f":"IF(Log!B87=\"\",\"\",Log!B87)","v":""},{"$f":"IF(Log!C87=\"\",\"\",Log!C87)","v":""},{"$f":"IF(Log!D87=\"\",\"\",Log!D87)","v":""},null,null,null,{"$f":"IF(Log!H87=\"\",\"\",Log!H87)","v":""}]
[null,null,null,null,null,null,null,null,null,null,null,null,null,null,null,null,null,null,null,null,null,null,null,null,null,null,null,null,null,{"$f":"IF(Log!A88=\"\",\"\",Log!A88)","v":""},{"$f":"IF(Log!B88=\"\",\"\",Log!B88)","v":""},{"$f":"IF(Log!C88=\"\",\"\",Log!C88)","v":""},{"$f":"IF(Log!D88=\"\",\"\",Log!D88)","v":""},null,null,null,{"$f":"IF(Log!H88=\"\",\"\",Log!H88)","v":""}]
[null,null,null,null,null,null,null,null,null,null,null,null,null,null,null,null,null,null,null,null,null,null,null,null,null,null,null,null,null,{"$f":"IF(Log!A89=\"\",\"\",Log!A89)","v":""},{"$f":"IF(Log!B89=\"\",\"\",Log!B89)","v":""},{"$f":"IF(Log!C89=\"\",\"\",Log!C89)","v":""},{"$f":"IF(Log!D89=\"\",\"\",Log!D89)","v":""},null,null,null,{"$f":"IF(Log!H89=\"\",\"\",Log!H89)","v":""}]
[null,null,null,null,null,null,null,null,null,null,null,null,null,null,null,null,null,null,null,null,null,null,null,null,null,null,null,null,null,{"$f":"IF(Log!A90=\"\",\"\",Log!A90)","v":""},{"$f":"IF(Log!B90=\"\",\"\",Log!B90)","v":""},{"$f":"IF(Log!C90=\"\",\"\",Log!C90)","v":""},{"$f":"IF(Log!D90=\"\",\"\",Log!D90)","v":""},null,null,null,{"$f":"IF(Log!H90=\"\",\"\",Log!H90)","v":""}]
[null,null,null,null,null,null,null,null,null,null,null,null,null,null,null,null,null,null,null,null,null,null,null,null,null,null,null,null,null,{"$f":"IF(Log!A91=\"\",\"\",Log!A91)","v":""},{"$f":"IF(Log!B91=\"\",\"\",Log!B91)","v":""},{"$f":"IF(Log!C91=\"\",\"\",Log!C91)","v":""},{"$f":"IF(Log!D91=\"\",\"\",Log!D91)","v":""},null,null,null,{"$f":"IF(Log!H91=\"\",\"\",Log!H91)","v":""}]
[null,null,null,null,null,null,null,null,null,null,null,null,null,null,null,null,null,null,null,null,null,null,null,null,null,null,null,null,null,{"$f":"IF(Log!A92=\"\",\"\",Log!A92)","v":""},{"$f":"IF(Log!B92=\"\",\"\",Log!B92)","v":""},{"$f":"IF(Log!C92=\"\",\"\",Log!C92)","v":""},{"$f":"IF(Log!D92=\"\",\"\",Log!D92)","v":""},null,null,null,{"$f":"IF(Log!H92=\"\",\"\",Log!H92)","v":""}]
[null,null,null,null,null,null,null,null,null,null,null,null,null,null,null,null,null,null,null,null,null,null,null,null,null,null,null,null,null,{"$f":"IF(Log!A93=\"\",\"\",Log!A93)","v":""},{"$f":"IF(Log!B93=\"\",\"\",Log!B93)","v":""},{"$f":"IF(Log!C93=\"\",\"\",Log!C93)","v":""},{"$f":"IF(Log!D93=\"\",\"\",Log!D93)","v":""},null,null,null,{"$f":"IF(Log!H93=\"\",\"\",Log!H93)","v":""}]
[null,null,null,null,null,null,null,null,null,null,null,null,null,null,null,null,null,null,null,null,null,null,null,null,null,null,null,null,null,{"$f":"IF(Log!A94=\"\",\"\",Log!A94)","v":""},{"$f":"IF(Log!B94=\"\",\"\",Log!B94)","v":""},{"$f":"IF(Log!C94=\"\",\"\",Log!C94)","v":""},{"$f":"IF(Log!D94=\"\",\"\",Log!D94)","v":""},null,null,null,{"$f":"IF(Log!H94=\"\",\"\",Log!H94)","v":""}]
[null,null,null,null,null,null,null,null,null,null,null,null,null,null,null,null,null,null,null,null,null,null,null,null,null,null,null,null,null,{"$f":"IF(Log!A95=\"\",\"\",Log!A95)","v":""},{"$f":"IF(Log!B95=\"\",\"\",Log!B95)","v":""},{"$f":"IF(Log!C95=\"\",\"\",Log!C95)","v":""},{"$f":"IF(Log!D95=\"\",\"\",Log!D95)","v":""},null,null,null,{"$f":"IF(Log!H95=\"\",\"\",Log!H95)","v":""}]
[null,null,null,null,null,null,null,null,null,null,null,null,null,null,null,null,null,null,null,null,null,null,null,null,null,null,null,null,null,{"$f":"IF(Log!A96=\"\",\"\",Log!A96)","v":""},{"$f":"IF(Log!B96=\"\",\"\",Log!B96)","v":""},{"$f":"IF(Log!C96=\"\",\"\",Log!C96)","v":""},{"$f":"IF(Log!D96=\"\",\"\",Log!D96)","v":""},null,null,null,{"$f":"IF(Log!H96=\"\",\"\",Log!H96)","v":""}]
[null,null,null,null,null,null,null,null,null,null,null,null,null,null,null,null,null,null,null,null,null,null,null,null,null,null,null,null,null,{"$f":"IF(Log!A97=\"\",\"\",Log!A97)","v":""},{"$f":"IF(Log!B97=\"\",\"\",Log!B97)","v":""},{"$f":"IF(Log!C97=\"\",\"\",Log!C97)","v":""},{"$f":"IF(Log!D97=\"\",\"\",Log!D97)","v":""},null,null,null,{"$f":"IF(Log!H97=\"\",\"\",Log!H97)","v":""}]
[null,null,null,null,null,null,null,null,null,null,null,null,null,null,null,null,null,null,null,null,null,null,null,null,null,null,null,null,null,{"$f":"IF(Log!A98=\"\",\"\",Log!A98)","v":""},{"$f":"IF(Log!B98=\"\",\"\",Log!B98)","v":""},{"$f":"IF(Log!C98=\"\",\"\",Log!C98)","v":""},{"$f":"IF(Log!D98=\"\",\"\",Log!D98)","v":""},null,null,null,{"$f":"IF(Log!H98=\"\",\"\",Log!H98)","v":""}]
[null,null,null,null,null,null,null,null,null,null,null,null,null,null,null,null,null,null,null,null,null,null,null,null,null,null,null,null,null,{"$f":"IF(Log!A99=\"\",\"\",Log!A99)","v":""},{"$f":"IF(Log!B99=\"\",\"\",Log!B99)","v":""},{"$f":"IF(Log!C99=\"\",\"\",Log!C99)","v":""},{"$f":"IF(Log!D99=\"\",\"\",Log!D99)","v":""},null,null,null,{"$f":"IF(Log!H99=\"\",\"\",Log!H99)","v":""}]
[null,null,null,null,null,null,null,null,null,null,null,null,null,null,null,null,null,null,null,null,null,null,null,null,null,null,null,null,null,{"$f":"IF(Log!A100=\"\",\"\",Log!A100)","v":""},{"$f":"IF(Log!B100=\"\",\"\",Log!B100)","v":""},{"$f":"IF(Log!C100=\"\",\"\",Log!C100)","v":""},{"$f":"IF(Log!D100=\"\",\"\",Log!D100)","v":""},null,null,null,{"$f":"IF(Log!H100=\"\",\"\",Log!H100)","v":""}]
[null,null,null,null,null,null,null,null,null,null,null,null,null,null,null,null,null,null,null,null,null,null,null,null,null,null,null,null,null,{"$f":"IF(Log!A101=\"\",\"\",Log!A101)","v":""},{"$f":"IF(Log!B101=\"\",\"\",Log!B101)","v":""},{"$f":"IF(Log!C101=\"\",\"\",Log!C101)","v":""},{"$f":"IF(Log!D101=\"\",\"\",Log!D101)","v":""},null,null,null,{"$f":"IF(Log!H101=\"\",\"\",Log!H101)","v":""}]
[null,null,null,null,null,null,null,null,null,null,null,null,null,null,null,null,null,null,null,null,null,null,null,null,null,null,null,null,null,{"$f":"IF(Log!A102=\"\",\"\",Log!A102)","v":""},{"$f":"IF(Log!B102=\"\",\"\",Log!B102)","v":""},{"$f":"IF(Log!C102=\"\",\"\",Log!C102)","v":""},{"$f":"IF(Log!D102=\"\",\"\",Log!D102)","v":""},null,null,null,{"$f":"IF(Log!H102=\"\",\"\",Log!H102)","v":""}]
[null,null,null,null,null,null,null,null,null,null,null,null,null,null,null,null,null,null,null,null,null,null,null,null,null,null,null,null,null,{"$f":"IF(Log!A103=\"\",\"\",Log!A103)","v":""},{"$f":"IF(Log!B103=\"\",\"\",Log!B103)","v":""},{"$f":"IF(Log!C103=\"\",\"\",Log!C103)","v":""},{"$f":"IF(Log!D103=\"\",\"\",Log!D103)","v":""},null,null,null,{"$f":"IF(Log!H103=\"\",\"\",Log!H103)","v":""}]
[null,null,null,null,null,null,null,null,null,null,null,null,null,null,null,null,null,null,null,null,null,null,null,null,null,null,null,null,null,{"$f":"IF(Log!A104=\"\",\"\",Log!A104)","v":""},{"$f":"IF(Log!B104=\"\",\"\",Log!B104)","v":""},{"$f":"IF(Log!C104=\"\",\"\",Log!C104)","v":""},{"$f":"IF(Log!D104=\"\",\"\",Log!D104)","v":""},null,null,null,{"$f":"IF(Log!H104=\"\",\"\",Log!H104)","v":""}]
[null,null,null,null,null,null,null,null,null,null,null,null,null,null,null,null,null,null,null,null,null,null,null,null,null,null,null,null,null,{"$f":"IF(Log!A105=\"\",\"\",Log!A105)","v":""},{"$f":"IF(Log!B105=\"\",\"\",Log!B105)","v":""},{"$f":"IF(Log!C105=\"\",\"\",Log!C105)","v":""},{"$f":"IF(Log!D105=\"\",\"\",Log!D105)","v":""},null,null,null,{"$f":"IF(Log!H105=\"\",\"\",Log!H105)","v":""}]
[null,null,null,null,null,null,null,null,null,null,null,null,null,null,null,null,null,null,null,null,null,null,null,null,null,null,null,null,null,{"$f":"IF(Log!A106=\"\",\"\",Log!A106)","v":""},{"$f":"IF(Log!B106=\"\",\"\",Log!B106)","v":""},{"$f":"IF(Log!C106=\"\",\"\",Log!C106)","v":""},{"$f":"IF(Log!D106=\"\",\"\",Log!D106)","v":""},null,null,null,{"$f":"IF(Log!H106=\"\",\"\",Log!H106)","v":""}]
[null,null,null,null,null,null,null,null,null,null,null,null,null,null,null,null,null,null,null,null,null,null,null,null,null,null,null,null,null,{"$f":"IF(Log!A107=\"\",\"\",Log!A107)","v":""},{"$f":"IF(Log!B107=\"\",\"\",Log!B107)","v":""},{"$f":"IF(Log!C107=\"\",\"\",Log!C107)","v":""},{"$f":"IF(Log!D107=\"\",\"\",Log!D107)","v":""},null,null,null,{"$f":"IF(Log!H107=\"\",\"\",Log!H107)","v":""}]
[null,null,null,null,null,null,null,null,null,null,null,null,null,null,null,null,null,null,null,null,null,null,null,null,null,null,null,null,null,{"$f":"IF(Log!A108=\"\",\"\",Log!A108)","v":""},{"$f":"IF(Log!B108=\"\",\"\",Log!B108)","v":""},{"$f":"IF(Log!C108=\"\",\"\",Log!C108)","v":""},{"$f":"IF(Log!D108=\"\",\"\",Log!D108)","v":""},null,null,null,{"$f":"IF(Log!H108=\"\",\"\",Log!H108)","v":""}]
[null,null,null,null,null,null,null,null,null,null,null,null,null,null,null,null,null,null,null,null,null,null,null,null,null,null,null,null,null,{"$f":"IF(Log!A109=\"\",\"\",Log!A109)","v":""},{"$f":"IF(Log!B109=\"\",\"\",Log!B109)","v":""},{"$f":"IF(Log!C109=\"\",\"\",Log!C109)","v":""},{"$f":"IF(Log!D109=\"\",\"\",Log!D109)","v":""},null,null,null,{"$f":"IF(Log!H109=\"\",\"\",Log!H109)","v":""}]
[null,null,null,null,null,null,null,null,null,null,null,null,null,null,null,null,null,null,null,null,null,null,null,null,null,null,null,null,null,{"$f":"IF(Log!A110=\"\",\"\",Log!A110)","v":""},{"$f":"IF(Log!B110=\"\",\"\",Log!B110)","v":""},{"$f":"IF(Log!C110=\"\",\"\",Log!C110)","v":""},{"$f":"IF(Log!D110=\"\",\"\",Log!D110)","v":""},null,null,null,{"$f":"IF(Log!H110=\"\",\"\",Log!H110)","v":""}]
[null,null,null,null,null,null,null,null,null,null,null,null,null,null,null,null,null,null,null,null,null,null,null,null,null,null,null,null,null,{"$f":"IF(Log!A111=\"\",\"\",Log!A111)","v":""},{"$f":"IF(Log!B111=\"\",\"\",Log!B111)","v":""},{"$f":"IF(Log!C111=\"\",\"\",Log!C111)","v":""},{"$f":"IF(Log!D111=\"\",\"\",Log!D111)","v":""},null,null,null,{"$f":"IF(Log!H111=\"\",\"\",Log!H111)","v":""}]
[null,null,null,null,null,null,null,null,null,null,null,null,null,null,null,null,null,null,null,null,null,null,null,null,null,null,null,null,null,{"$f":"IF(Log!A112=\"\",\"\",Log!A112)","v":""},{"$f":"IF(Log!B112=\"\",\"\",Log!B112)","v":""},{"$f":"IF(Log!C112=\"\",\"\",Log!C112)","v":""},{"$f":"IF(Log!D112=\"\",\"\",Log!D112)","v":""},null,null,null,{"$f":"IF(Log!H112=\"\",\"\",Log!H112)","v":""}]
[null,null,null,null,null,null,null,null,null,null,null,null,null,null,null,null,null,null,null,null,null,null,null,null,null,null,null,null,null,{"$f":"IF(Log!A113=\"\",\"\",Log!A113)","v":""},{"$f":"IF(Log!B113=\"\",\"\",Log!B113)","v":""},{"$f":"IF(Log!C113=\"\",\"\",Log!C113)","v":""},{"$f":"IF(Log!D113=\"\",\"\",Log!D113)","v":""},null,null,null,{"$f":"IF(Log!H113=\"\",\"\",Log!H113)","v":""}]
[null,null,null,null,null,null,null,null,null,null,null,null,null,null,null,null,null,null,null,null,null,null,null,null,null,null,null,null,null,{"$f":"IF(Log!A114=\"\",\"\",Log!A114)","v":""},{"$f":"IF(Log!B114=\"\",\"\",Log!B114)","v":""},{"$f":"IF(Log!C114=\"\",\"\",Log!C114)","v":""},{"$f":"IF(Log!D114=\"\",\"\",Log!D114)","v":""},null,null,null,{"$f":"IF(Log!H114=\"\",\"\",Log!H114)","v":""}]
[null,null,null,null,null,null,null,null,null,null,null,null,null,null,null,null,null,null,null,null,null,null,null,null,null,null,null,null,null,{"$f":"IF(Log!A115=\"\",\"\",Log!A115)","v":""},{"$f":"IF(Log!B115=\"\",\"\",Log!B115)","v":""},{"$f":"IF(Log!C115=\"\",\"\",Log!C115)","v":""},{"$f":"IF(Log!D115=\"\",\"\",Log!D115)","v":""},null,null,null,{"$f":"IF(Log!H115=\"\",\"\",Log!H115)","v":""}]
[null,null,null,null,null,null,null,null,null,null,null,null,null,null,null,null,null,null,null,null,null,null,null,null,null,null,null,null,null,{"$f":"IF(Log!A116=\"\",\"\",Log!A116)","v":""},{"$f":"IF(Log!B116=\"\",\"\",Log!B116)","v":""},{"$f":"IF(Log!C116=\"\",\"\",Log!C116)","v":""},{"$f":"IF(Log!D116=\"\",\"\",Log!D116)","v":""},null,null,null,{"$f":"IF(Log!H116=\"\",\"\",Log!H116)","v":""}]
[null,null,null,null,null,null,null,null,null,null,null,null,null,null,null,null,null,null,null,null,null,null,null,null,null,null,null,null,null,{"$f":"IF(Log!A117=\"\",\"\",Log!A117)","v":""},{"$f":"IF(Log!B117=\"\",\"\",Log!B117)","v":""},{"$f":"IF(Log!C117=\"\",\"\",Log!C117)","v":""},{"$f":"IF(Log!D117=\"\",\"\",Log!D117)","v":""},null,null,null,{"$f":"IF(Log!H117=\"\",\"\",Log!H117)","v":""}]
[null,null,null,null,null,null,null,null,null,null,null,null,null,null,null,null,null,null,null,null,null,null,null,null,null,null,null,null,null,{"$f":"IF(Log!A118=\"\",\"\",Log!A118)","v":""},{"$f":"IF(Log!B118=\"\",\"\",Log!B118)","v":""},{"$f":"IF(Log!C118=\"\",\"\",Log!C118)","v":""},{"$f":"IF(Log!D118=\"\",\"\",Log!D118)","v":""},null,null,null,{"$f":"IF(Log!H118=\"\",\"\",Log!H118)","v":""}]
[null,null,null,null,null,null,null,null,null,null,null,null,null,null,null,null,null,null,null,null,null,null,null,null,null,null,null,null,null,{"$f":"IF(Log!A119=\"\",\"\",Log!A119)","v":""},{"$f":"IF(Log!B119=\"\",\"\",Log!B119)","v":""},{"$f":"IF(Log!C119=\"\",\"\",Log!C119)","v":""},{"$f":"IF(Log!D119=\"\",\"\",Log!D119)","v":""},null,null,null,{"$f":"IF(Log!H119=\"\",\"\",Log!H119)","v":""}]
[null,null,null,null,null,null,null,null,null,null,null,null,null,null,null,null,null,null,null,null,null,null,null,null,null,null,null,null,null,{"$f":"IF(Log!A120=\"\",\"\",Log!A120)","v":""},{"$f":"IF(Log!B120=\"\",\"\",Log!B120)","v":""},{"$f":"IF(Log!C120=\"\",\"\",Log!C120)","v":""},{"$f":"IF(Log!D120=\"\",\"\",Log!D120)","v":""},null,null,null,{"$f":"IF(Log!H120=\"\",\"\",Log!H120)","v":""}]
[null,null,null,null,null,null,null,null,null,null,null,null,null,null,null,null,null,null,null,null,null,null,null,null,null,null,null,null,null,{"$f":"IF(Log!A121=\"\",\"\",Log!A121)","v":""},{"$f":"IF(Log!B121=\"\",\"\",Log!B121)","v":""},{"$f":"IF(Log!C121=\"\",\"\",Log!C121)","v":""},{"$f":"IF(Log!D121=\"\",\"\",Log!D121)","v":""},null,null,null,{"$f":"IF(Log!H121=\"\",\"\",Log!H121)","v":""}]
[null,null,null,null,null,null,null,null,null,null,null,null,null,null,null,null,null,null,null,null,null,null,null,null,null,null,null,null,null,{"$f":"IF(Log!A122=\"\",\"\",Log!A122)","v":""},{"$f":"IF(Log!B122=\"\",\"\",Log!B122)","v":""},{"$f":"IF(Log!C122=\"\",\"\",Log!C122)","v":""},{"$f":"IF(Log!D122=\"\",\"\",Log!D122)","v":""},null,null,null,{"$f":"IF(Log!H122=\"\",\"\",Log!H122)","v":""}]
[null,null,null,null,null,null,null,null,null,null,null,null,null,null,null,null,null,null,null,null,null,null,null,null,null,null,null,null,null,{"$f":"IF(Log!A123=\"\",\"\",Log!A123)","v":""},{"$f":"IF(Log!B123=\"\",\"\",Log!B123)","v":""},{"$f":"IF(Log!C123=\"\",\"\",Log!C123)","v":""},{"$f":"IF(Log!D123=\"\",\"\",Log!D123)","v":""},null,null,null,{"$f":"IF(Log!H123=\"\",\"\",Log!H123)","v":""}]
[null,null,null,null,null,null,null,null,null,null,null,null,null,null,null,null,null,null,null,null,null,null,null,null,null,null,null,null,null,{"$f":"IF(Log!A124=\"\",\"\",Log!A124)","v":""},{"$f":"IF(Log!B124=\"\",\"\",Log!B124)","v":""},{"$f":"IF(Log!C124=\"\",\"\",Log!C124)","v":""},{"$f":"IF(Log!D124=\"\",\"\",Log!D124)","v":""},null,null,null,{"$f":"IF(Log!H124=\"\",\"\",Log!H124)","v":""}]
[null,null,null,null,null,null,null,null,null,null,null,null,null,null,null,null,null,null,null,null,null,null,null,null,null,null,null,null,null,{"$f":"IF(Log!A125=\"\",\"\",Log!A125)","v":""},{"$f":"IF(Log!B125=\"\",\"\",Log!B125)","v":""},{"$f":"IF(Log!C125=\"\",\"\",Log!C125)","v":""},{"$f":"IF(Log!D125=\"\",\"\",Log!D125)","v":""},null,null,null,{"$f":"IF(Log!H125=\"\",\"\",Log!H125)","v":""}]
[null,null,null,null,null,null,null,null,null,null,null,null,null,null,null,null,null,null,null,null,null,null,null,null,null,null,null,null,null,{"$f":"IF(Log!A126=\"\",\"\",Log!A126)","v":""},{"$f":"IF(Log!B126=\"\",\"\",Log!B126)","v":""},{"$f":"IF(Log!C126=\"\",\"\",Log!C126)","v":""},{"$f":"IF(Log!D126=\"\",\"\",Log!D126)","v":""},null,null,null,{"$f":"IF(Log!H126=\"\",\"\",Log!H126)","v":""}]
[null,null,null,null,null,null,null,null,null,null,null,null,null,null,null,null,null,null,null,null,null,null,null,null,null,null,null,null,null,{"$f":"IF(Log!A127=\"\",\"\",Log!A127)","v":""},{"$f":"IF(Log!B127=\"\",\"\",Log!B127)","v":""},{"$f":"IF(Log!C127=\"\",\"\",Log!C127)","v":""},{"$f":"IF(Log!D127=\"\",\"\",Log!D127)","v":""},null,null,null,{"$f":"IF(Log!H127=\"\",\"\",Log!H127)","v":""}]
[null,null,null,null,null,null,null,null,null,null,null,null,null,null,null,null,null,null,null,null,null,null,null,null,null,null,null,null,null,{"$f":"IF(Log!A128=\"\",\"\",Log!A128)","v":""},{"$f":"IF(Log!B128=\"\",\"\",Log!B128)","v":""},{"$f":"IF(Log!C128=\"\",\"\",Log!C128)","v":""},{"$f":"IF(Log!D128=\"\",\"\",Log!D128)","v":""},null,null,null,{"$f":"IF(Log!H128=\"\",\"\",Log!H128)","v":""}]
[null,null,null,null,null,null,null,null,null,null,null,null,null,null,null,null,null,null,null,null,null,null,null,null,null,null,null,null,null,{"$f":"IF(Log!A129=\"\",\"\",Log!A129)","v":""},{"$f":"IF(Log!B129=\"\",\"\",Log!B129)","v":""},{"$f":"IF(Log!C129=\"\",\"\",Log!C129)","v":""},{"$f":"IF(Log!D129=\"\",\"\",Log!D129)","v":""},null,null,null,{"$f":"IF(Log!H129=\"\",\"\",Log!H129)","v":""}]
[null,null,null,null,null,null,null,null,null,null,null,null,null,null,null,null,null,null,null,null,null,null,null,null,null,null,null,null,null,{"$f":"IF(Log!A130=\"\",\"\",Log!A130)","v":""},{"$f":"IF(Log!B130=\"\",\"\",Log!B130)","v":""},{"$f":"IF(Log!C130=\"\",\"\",Log!C130)","v":""},{"$f":"IF(Log!D130=\"\",\"\",Log!D130)","v":""},null,null,null,{"$f":"IF(Log!H130=\"\",\"\",Log!H130)","v":""}]
[null,null,null,null,null,null,null,null,null,null,null,null,null,null,null,null,null,null,null,null,null,null,null,null,null,null,null,null,null,{"$f":"IF(Log!A131=\"\",\"\",Log!A131)","v":""},{"$f":"IF(Log!B131=\"\",\"\",Log!B131)","v":""},{"$f":"IF(Log!C131=\"\",\"\",Log!C131)","v":""},{"$f":"IF(Log!D131=\"\",\"\",Log!D131)","v":""},null,null,null,{"$f":"IF(Log!H131=\"\",\"\",Log!H131)","v":""}]
[null,null,null,null,null,null,null,null,null,null,null,null,null,null,null,null,null,null,null,null,null,null,null,null,null,null,null,null,null,{"$f":"IF(Log!A132=\"\",\"\",Log!A132)","v":""},{"$f":"IF(Log!B132=\"\",\"\",Log!B132)","v":""},{"$f":"IF(Log!C132=\"\",\"\",Log!C132)","v":""},{"$f":"IF(Log!D132=\"\",\"\",Log!D132)","v":""},null,null,null,{"$f":"IF(Log!H132=\"\",\"\",Log!H132)","v":""}]
[null,null,null,null,null,null,null,null,null,null,null,null,null,null,null,null,null,null,null,null,null,null,null,null,null,null,null,null,null,{"$f":"IF(Log!A133=\"\",\"\",Log!A133)","v":""},{"$f":"IF(Log!B133=\"\",\"\",Log!B133)","v":""},{"$f":"IF(Log!C133=\"\",\"\",Log!C133)","v":""},{"$f":"IF(Log!D133=\"\",\"\",Log!D133)","v":""},null,null,null,{"$f":"IF(Log!H133=\"\",\"\",Log!H133)","v":""}]
[null,null,null,null,null,null,null,null,null,null,null,null,null,null,null,null,null,null,null,null,null,null,null,null,null,null,null,null,null,{"$f":"IF(Log!A134=\"\",\"\",Log!A134)","v":""},{"$f":"IF(Log!B134=\"\",\"\",Log!B134)","v":""},{"$f":"IF(Log!C134=\"\",\"\",Log!C134)","v":""},{"$f":"IF(Log!D134=\"\",\"\",Log!D134)","v":""},null,null,null,{"$f":"IF(Log!H134=\"\",\"\",Log!H134)","v":""}]
[null,null,null,null,null,null,null,null,null,null,null,null,null,null,null,null,null,null,null,null,null,null,null,null,null,null,null,null,null,{"$f":"IF(Log!A135=\"\",\"\",Log!A135)","v":""},{"$f":"IF(Log!B135=\"\",\"\",Log!B135)","v":""},{"$f":"IF(Log!C135=\"\",\"\",Log!C135)","v":""},{"$f":"IF(Log!D135=\"\",\"\",Log!D135)","v":""},null,null,null,{"$f":"IF(Log!H135=\"\",\"\",Log!H135)","v":""}]
[null,null,null,null,null,null,null,null,null,null,null,null,null,null,null,null,null,null,null,null,null,null,null,null,null,null,null,null,null,{"$f":"IF(Log!A136=\"\",\"\",Log!A136)","v":""},{"$f":"IF(Log!B136=\"\",\"\",Log!B136)","v":""},{"$f":"IF(Log!C136=\"\",\"\",Log!C136)","v":""},{"$f":"IF(Log!D136=\"\",\"\",Log!D136)","v":""},null,null,null,{"$f":"IF(Log!H136=\"\",\"\",Log!H136)","v":""}]
[null,null,null,null,null,null,null,null,null,null,null,null,null,null,null,null,null,null,null,null,null,null,null,null,null,null,null,null,null,{"$f":"IF(Log!A137=\"\",\"\",Log!A137)","v":""},{"$f":"IF(Log!B137=\"\",\"\",Log!B137)","v":""},{"$f":"IF(Log!C137=\"\",\"\",Log!C137)","v":""},{"$f":"IF(Log!D137=\"\",\"\",Log!D137)","v":""},null,null,null,{"$f":"IF(Log!H137=\"\",\"\",Log!H137)","v":""}]
[null,null,null,null,null,null,null,null,null,null,null,null,null,null,null,null,null,null,null,null,null,null,null,null,null,null,null,null,null,{"$f":"IF(Log!A138=\"\",\"\",Log!A138)","v":""},{"$f":"IF(Log!B138=\"\",\"\",Log!B138)","v":""},{"$f":"IF(Log!C138=\"\",\"\",Log!C138)","v":""},{"$f":"IF(Log!D138=\"\",\"\",Log!D138)","v":""},null,null,null,{"$f":"IF(Log!H138=\"\",\"\",Log!H138)","v":""}]
[null,null,null,null,null,null,null,null,null,null,null,null,null,null,null,null,null,null,null,null,null,null,null,null,null,null,null,null,null,{"$f":"IF(Log!A139=\"\",\"\",Log!A139)","v":""},{"$f":"IF(Log!B139=\"\",\"\",Log!B139)","v":""},{"$f":"IF(Log!C139=\"\",\"\",Log!C139)","v":""},{"$f":"IF(Log!D139=\"\",\"\",Log!D139)","v":""},null,null,null,{"$f":"IF(Log!H139=\"\",\"\",Log!H139)","v":""}]
[null,null,null,null,null,null,null,null,null,null,null,null,null,null,null,null,null,null,null,null,null,null,null,null,null,null,null,null,null,{"$f":"IF(Log!A140=\"\",\"\",Log!A140)","v":""},{"$f":"IF(Log!B140=\"\",\"\",Log!B140)","v":""},{"$f":"IF(Log!C140=\"\",\"\",Log!C140)","v":""},{"$f":"IF(Log!D140=\"\",\"\",Log!D140)","v":""},null,null,null,{"$f":"IF(Log!H140=\"\",\"\",Log!H140)","v":""}]
[null,null,null,null,null,null,null,null,null,null,null,null,null,null,null,null,null,null,null,null,null,null,null,null,null,null,null,null,null,{"$f":"IF(Log!A141=\"\",\"\",Log!A141)","v":""},{"$f":"IF(Log!B141=\"\",\"\",Log!B141)","v":""},{"$f":"IF(Log!C141=\"\",\"\",Log!C141)","v":""},{"$f":"IF(Log!D141=\"\",\"\",Log!D141)","v":""},null,null,null,{"$f":"IF(Log!H141=\"\",\"\",Log!H141)","v":""}]
[null,null,null,null,null,null,null,null,null,null,null,null,null,null,null,null,null,null,null,null,null,null,null,null,null,null,null,null,null,{"$f":"IF(Log!A142=\"\",\"\",Log!A142)","v":""},{"$f":"IF(Log!B142=\"\",\"\",Log!B142)","v":""},{"$f":"IF(Log!C142=\"\",\"\",Log!C142)","v":""},{"$f":"IF(Log!D142=\"\",\"\",Log!D142)","v":""},null,null,null,{"$f":"IF(Log!H142=\"\",\"\",Log!H142)","v":""}]
[null,null,null,null,null,null,null,null,null,null,null,null,null,null,null,null,null,null,null,null,null,null,null,null,null,null,null,null,null,{"$f":"IF(Log!A143=\"\",\"\",Log!A143)","v":""},{"$f":"IF(Log!B143=\"\",\"\",Log!B143)","v":""},{"$f":"IF(Log!C143=\"\",\"\",Log!C143)","v":""},{"$f":"IF(Log!D143=\"\",\"\",Log!D143)","v":""},null,null,null,{"$f":"IF(Log!H143=\"\",\"\",Log!H143)","v":""}]
[null,null,null,null,null,null,null,null,null,null,null,null,null,null,null,null,null,null,null,null,null,null,null,null,null,null,null,null,null,{"$f":"IF(Log!A144=\"\",\"\",Log!A144)","v":""},{"$f":"IF(Log!B144=\"\",\"\",Log!B144)","v":""},{"$f":"IF(Log!C144=\"\",\"\",Log!C144)","v":""},{"$f":"IF(Log!D144=\"\",\"\",Log!D144)","v":""},null,null,null,{"$f":"IF(Log!H144=\"\",\"\",Log!H144)","v":""}]
[null,null,null,null,null,null,null,null,null,null,null,null,null,null,null,null,null,null,null,null,null,null,null,null,null,null,null,null,null,{"$f":"IF(Log!A145=\"\",\"\",Log!A145)","v":""},{"$f":"IF(Log!B145=\"\",\"\",Log!B145)","v":""},{"$f":"IF(Log!C145=\"\",\"\",Log!C145)","v":""},{"$f":"IF(Log!D145=\"\",\"\",Log!D145)","v":""},null,null,null,{"$f":"IF(Log!H145=\"\",\"\",Log!H145)","v":""}]
[null,null,null,null,null,null,null,null,null,null,null,null,null,null,null,null,null,null,null,null,null,null,null,null,null,null,null,null,null,{"$f":"IF(Log!A146=\"\",\"\",Log!A146)","v":""},{"$f":"IF(Log!B146=\"\",\"\",Log!B146)","v":""},{"$f":"IF(Log!C146=\"\",\"\",Log!C146)","v":""},{"$f":"IF(Log!D146=\"\",\"\",Log!D146)","v":""},null,null,null,{"$f":"IF(Log!H146=\"\",\"\",Log!H146)","v":""}]
[null,null,null,null,null,null,null,null,null,null,null,null,null,null,null,null,null,null,null,null,null,null,null,null,null,null,null,null,null,{"$f":"IF(Log!A147=\"\",\"\",Log!A147)","v":""},{"$f":"IF(Log!B147=\"\",\"\",Log!B147)","v":""},{"$f":"IF(Log!C147=\"\",\"\",Log!C147)","v":""},{"$f":"IF(Log!D147=\"\",\"\",Log!D147)","v":""},null,null,null,{"$f":"IF(Log!H147=\"\",\"\",Log!H147)","v":""}]
[null,null,null,null,null,null,null,null,null,null,null,null,null,null,null,null,null,null,null,null,null,null,null,null,null,null,null,null,null,{"$f":"IF(Log!A148=\"\",\"\",Log!A148)","v":""},{"$f":"IF(Log!B148=\"\",\"\",Log!B148)","v":""},{"$f":"IF(Log!C148=\"\",\"\",Log!C148)","v":""},{"$f":"IF(Log!D148=\"\",\"\",Log!D148)","v":""},null,null,null,{"$f":"IF(Log!H148=\"\",\"\",Log!H148)","v":""}]
[null,null,null,null,null,null,null,null,null,null,null,null,null,null,null,null,null,null,null,null,null,null,null,null,null,null,null,null,null,{"$f":"IF(Log!A149=\"\",\"\",Log!A149)","v":""},{"$f":"IF(Log!B149=\"\",\"\",Log!B149)","v":""},{"$f":"IF(Log!C149=\"\",\"\",Log!C149)","v":""},{"$f":"IF(Log!D149=\"\",\"\",Log!D149)","v":""},null,null,null,{"$f":"IF(Log!H149=\"\",\"\",Log!H149)","v":""}]
[null,null,null,null,null,null,null,null,null,null,null,null,null,null,null,null,null,null,null,null,null,null,null,null,null,null,null,null,null,{"$f":"IF(Log!A150=\"\",\"\",Log!A150)","v":""},{"$f":"IF(Log!B150=\"\",\"\",Log!B150)","v":""},{"$f":"IF(Log!C150=\"\",\"\",Log!C150)","v":""},{"$f":"IF(Log!D150=\"\",\"\",Log!D150)","v":""},null,null,null,{"$f":"IF(Log!H150=\"\",\"\",Log!H150)","v":""}]
[null,null,null,null,null,null,null,null,null,null,null,null,null,null,null,null,null,null,null,null,null,null,null,null,null,null,null,null,null,{"$f":"IF(Log!A151=\"\",\"\",Log!A151)","v":""},{"$f":"IF(Log!B151=\"\",\"\",Log!B151)","v":""},{"$f":"IF(Log!C151=\"\",\"\",Log!C151)","v":""},{"$f":"IF(Log!D151=\"\",\"\",Log!D151)","v":""},null,null,null,{"$f":"IF(Log!H151=\"\",\"\",Log!H151)","v":""}]
[null,null,null,null,null,null,null,null,null,null,null,null,null,null,null,null,null,null,null,null,null,null,null,null,null,null,null,null,null,{"$f":"IF(Log!A152=\"\",\"\",Log!A152)","v":""},{"$f":"IF(Log!B152=\"\",\"\",Log!B152)","v":""},{"$f":"IF(Log!C152=\"\",\"\",Log!C152)","v":""},{"$f":"IF(Log!D152=\"\",\"\",Log!D152)","v":""},null,null,null,{"$f":"IF(Log!H152=\"\",\"\",Log!H152)","v":""}]
[null,null,null,null,null,null,null,null,null,null,null,null,null,null,null,null,null,null,null,null,null,null,null,null,null,null,null,null,null,{"$f":"IF(Log!A153=\"\",\"\",Log!A153)","v":""},{"$f":"IF(Log!B153=\"\",\"\",Log!B153)","v":""},{"$f":"IF(Log!C153=\"\",\"\",Log!C153)","v":""},{"$f":"IF(Log!D153=\"\",\"\",Log!D153)","v":""},null,null,null,{"$f":"IF(Log!H153=\"\",\"\",Log!H153)","v":""}]
[null,null,null,null,null,null,null,null,null,null,null,null,null,null,null,null,null,null,null,null,null,null,null,null,null,null,null,null,null,{"$f":"IF(Log!A154=\"\",\"\",Log!A154)","v":""},{"$f":"IF(Log!B154=\"\",\"\",Log!B154)","v":""},{"$f":"IF(Log!C154=\"\",\"\",Log!C154)","v":""},{"$f":"IF(Log!D154=\"\",\"\",Log!D154)","v":""},null,null,null,{"$f":"IF(Log!H154=\"\",\"\",Log!H154)","v":""}]
[null,null,null,null,null,null,null,null,null,null,null,null,null,null,null,null,null,null,null,null,null,null,null,null,null,null,null,null,null,{"$f":"IF(Log!A155=\"\",\"\",Log!A155)","v":""},{"$f":"IF(Log!B155=\"\",\"\",Log!B155)","v":""},{"$f":"IF(Log!C155=\"\",\"\",Log!C155)","v":""},{"$f":"IF(Log!D155=\"\",\"\",Log!D155)","v":""},null,null,null,{"$f":"IF(Log!H155=\"\",\"\",Log!H155)","v":""}]
[null,null,null,null,null,null,null,null,null,null,null,null,null,null,null,null,null,null,null,null,null,null,null,null,null,null,null,null,null,{"$f":"IF(Log!A156=\"\",\"\",Log!A156)","v":""},{"$f":"IF(Log!B156=\"\",\"\",Log!B156)","v":""},{"$f":"IF(Log!C156=\"\",\"\",Log!C156)","v":""},{"$f":"IF(Log!D156=\"\",\"\",Log!D156)","v":""},null,null,null,{"$f":"IF(Log!H156=\"\",\"\",Log!H156)","v":""}]
[null,null,null,null,null,null,null,null,null,null,null,null,null,null,null,null,null,null,null,null,null,null,null,null,null,null,null,null,null,{"$f":"IF(Log!A157=\"\",\"\",Log!A157)","v":""},{"$f":"IF(Log!B157=\"\",\"\",Log!B157)","v":""},{"$f":"IF(Log!C157=\"\",\"\",Log!C157)","v":""},{"$f":"IF(Log!D157=\"\",\"\",Log!D157)","v":""},null,null,null,{"$f":"IF(Log!H157=\"\",\"\",Log!H157)","v":""}]
[null,null,null,null,null,null,null,null,null,null,null,null,null,null,null,null,null,null,null,null,null,null,null,null,null,null,null,null,null,{"$f":"IF(Log!A158=\"\",\"\",Log!A158)","v":""},{"$f":"IF(Log!B158=\"\",\"\",Log!B158)","v":""},{"$f":"IF(Log!C158=\"\",\"\",Log!C158)","v":""},{"$f":"IF(Log!D158=\"\",\"\",Log!D158)","v":""},null,null,null,{"$f":"IF(Log!H158=\"\",\"\",Log!H158)","v":""}]
[null,null,null,null,null,null,null,null,null,null,null,null,null,null,null,null,null,null,null,null,null,null,null,null,null,null,null,null,null,{"$f":"IF(Log!A159=\"\",\"\",Log!A159)","v":""},{"$f":"IF(Log!B159=\"\",\"\",Log!B159)","v":""},{"$f":"IF(Log!C159=\"\",\"\",Log!C159)","v":""},{"$f":"IF(Log!D159=\"\",\"\",Log!D159)","v":""},null,null,null,{"$f":"IF(Log!H159=\"\",\"\",Log!H159)","v":""}]
[null,null,null,null,null,null,null,null,null,null,null,null,null,null,null,null,null,null,null,null,null,null,null,null,null,null,null,null,null,{"$f":"IF(Log!A160=\"\",\"\",Log!A160)","v":""},{"$f":"IF(Log!B160=\"\",\"\",Log!B160)","v":""},{"$f":"IF(Log!C160=\"\",\"\",Log!C160)","v":""},{"$f":"IF(Log!D160=\"\",\"\",Log!D160)","v":""},null,null,null,{"$f":"IF(Log!H160=\"\",\"\",Log!H160)","v":""}]
[null,null,null,null,null,null,null,null,null,null,null,null,null,null,null,null,null,null,null,null,null,null,null,null,null,null,null,null,null,{"$f":"IF(Log!A161=\"\",\"\",Log!A161)","v":""},{"$f":"IF(Log!B161=\"\",\"\",Log!B161)","v":""},{"$f":"IF(Log!C161=\"\",\"\",Log!C161)","v":""},{"$f":"IF(Log!D161=\"\",\"\",Log!D161)","v":""},null,null,null,{"$f":"IF(Log!H161=\"\",\"\",Log!H161)","v":""}]
[null,null,null,null,null,null,null,null,null,null,null,null,null,null,null,null,null,null,null,null,null,null,null,null,null,null,null,null,null,{"$f":"IF(Log!A162=\"\",\"\",Log!A162)","v":""},{"$f":"IF(Log!B162=\"\",\"\",Log!B162)","v":""},{"$f":"IF(Log!C162=\"\",\"\",Log!C162)","v":""},{"$f":"IF(Log!D162=\"\",\"\",Log!D162)","v":""},null,null,null,{"$f":"IF(Log!H162=\"\",\"\",Log!H162)","v":""}]
[null,null,null,null,null,null,null,null,null,null,null,null,null,null,null,null,null,null,null,null,null,null,null,null,null,null,null,null,null,{"$f":"IF(Log!A163=\"\",\"\",Log!A163)","v":""},{"$f":"IF(Log!B163=\"\",\"\",Log!B163)","v":""},{"$f":"IF(Log!C163=\"\",\"\",Log!C163)","v":""},{"$f":"IF(Log!D163=\"\",\"\",Log!D163)","v":""},null,null,null,{"$f":"IF(Log!H163=\"\",\"\",Log!H163)","v":""}]
[null,null,null,null,null,null,null,null,null,null,null,null,null,null,null,null,null,null,null,null,null,null,null,null,null,null,null,null,null,{"$f":"IF(Log!A164=\"\",\"\",Log!A164)","v":""},{"$f":"IF(Log!B164=\"\",\"\",Log!B164)","v":""},{"$f":"IF(Log!C164=\"\",\"\",Log!C164)","v":""},{"$f":"IF(Log!D164=\"\",\"\",Log!D164)","v":""},null,null,null,{"$f":"IF(Log!H164=\"\",\"\",Log!H164)","v":""}]
[null,null,null,null,null,null,null,null,null,null,null,null,null,null,null,null,null,null,null,null,null,null,null,null,null,null,null,null,null,{"$f":"IF(Log!A165=\"\",\"\",Log!A165)","v":""},{"$f":"IF(Log!B165=\"\",\"\",Log!B165)","v":""},{"$f":"IF(Log!C165=\"\",\"\",Log!C165)","v":""},{"$f":"IF(Log!D165=\"\",\"\",Log!D165)","v":""},null,null,null,{"$f":"IF(Log!H165=\"\",\"\",Log!H165)","v":""}]
[null,null,null,null,null,null,null,null,null,null,null,null,null,null,null,null,null,null,null,null,null,null,null,null,null,null,null,null,null,{"$f":"IF(Log!A166=\"\",\"\",Log!A166)","v":""},{"$f":"IF(Log!B166=\"\",\"\",Log!B166)","v":""},{"$f":"IF(Log!C166=\"\",\"\",Log!C166)","v":""},{"$f":"IF(Log!D166=\"\",\"\",Log!D166)","v":""},null,null,null,{"$f":"IF(Log!H166=\"\",\"\",Log!H166)","v":""}]
[null,null,null,null,null,null,null,null,null,null,null,null,null,null,null,null,null,null,null,null,null,null,null,null,null,null,null,null,null,{"$f":"IF(Log!A167=\"\",\"\",Log!A167)","v":""},{"$f":"IF(Log!B167=\"\",\"\",Log!B167)","v":""},{"$f":"IF(Log!C167=\"\",\"\",Log!C167)","v":""},{"$f":"IF(Log!D167=\"\",\"\",Log!D167)","v":""},null,null,null,{"$f":"IF(Log!H167=\"\",\"\",Log!H167)","v":""}]
[null,null,null,null,null,null,null,null,null,null,null,null,null,null,null,null,null,null,null,null,null,null,null,null,null,null,null,null,null,{"$f":"IF(Log!A168=\"\",\"\",Log!A168)","v":""},{"$f":"IF(Log!B168=\"\",\"\",Log!B168)","v":""},{"$f":"IF(Log!C168=\"\",\"\",Log!C168)","v":""},{"$f":"IF(Log!D168=\"\",\"\",Log!D168)","v":""},null,null,null,{"$f":"IF(Log!H168=\"\",\"\",Log!H168)","v":""}]
[null,null,null,null,null,null,null,null,null,null,null,null,null,null,null,null,null,null,null,null,null,null,null,null,null,null,null,null,null,{"$f":"IF(Log!A169=\"\",\"\",Log!A169)","v":""},{"$f":"IF(Log!B169=\"\",\"\",Log!B169)","v":""},{"$f":"IF(Log!C169=\"\",\"\",Log!C169)","v":""},{"$f":"IF(Log!D169=\"\",\"\",Log!D169)","v":""},null,null,null,{"$f":"IF(Log!H169=\"\",\"\",Log!H169)","v":""}]
[null,null,null,null,null,null,null,null,null,null,null,null,null,null,null,null,null,null,null,null,null,null,null,null,null,null,null,null,null,{"$f":"IF(Log!A170=\"\",\"\",Log!A170)","v":""},{"$f":"IF(Log!B170=\"\",\"\",Log!B170)","v":""},{"$f":"IF(Log!C170=\"\",\"\",Log!C170)","v":""},{"$f":"IF(Log!D170=\"\",\"\",Log!D170)","v":""},null,null,null,{"$f":"IF(Log!H170=\"\",\"\",Log!H170)","v":""}]
[null,null,null,null,null,null,null,null,null,null,null,null,null,null,null,null,null,null,null,null,null,null,null,null,null,null,null,null,null,{"$f":"IF(Log!A171=\"\",\"\",Log!A171)","v":""},{"$f":"IF(Log!B171=\"\",\"\",Log!B171)","v":""},{"$f":"IF(Log!C171=\"\",\"\",Log!C171)","v":""},{"$f":"IF(Log!D171=\"\",\"\",Log!D171)","v":""},null,null,null,{"$f":"IF(Log!H171=\"\",\"\",Log!H171)","v":""}]
[null,null,null,null,null,null,null,null,null,null,null,null,null,null,null,null,null,null,null,null,null,null,null,null,null,null,null,null,null,{"$f":"IF(Log!A172=\"\",\"\",Log!A172)","v":""},{"$f":"IF(Log!B172=\"\",\"\",Log!B172)","v":""},{"$f":"IF(Log!C172=\"\",\"\",Log!C172)","v":""},{"$f":"IF(Log!D172=\"\",\"\",Log!D172)","v":""},null,null,null,{"$f":"IF(Log!H172=\"\",\"\",Log!H172)","v":""}]
[null,null,null,null,null,null,null,null,null,null,null,null,null,null,null,null,null,null,null,null,null,null,null,null,null,null,null,null,null,{"$f":"IF(Log!A173=\"\",\"\",Log!A173)","v":""},{"$f":"IF(Log!B173=\"\",\"\",Log!B173)","v":""},{"$f":"IF(Log!C173=\"\",\"\",Log!C173)","v":""},{"$f":"IF(Log!D173=\"\",\"\",Log!D173)","v":""},null,null,null,{"$f":"IF(Log!H173=\"\",\"\",Log!H173)","v":""}]
[null,null,null,null,null,null,null,null,null,null,null,null,null,null,null,null,null,null,null,null,null,null,null,null,null,null,null,null,null,{"$f":"IF(Log!A174=\"\",\"\",Log!A174)","v":""},{"$f":"IF(Log!B174=\"\",\"\",Log!B174)","v":""},{"$f":"IF(Log!C174=\"\",\"\",Log!C174)","v":""},{"$f":"IF(Log!D174=\"\",\"\",Log!D174)","v":""},null,null,null,{"$f":"IF(Log!H174=\"\",\"\",Log!H174)","v":""}]
[null,null,null,null,null,null,null,null,null,null,null,null,null,null,null,null,null,null,null,null,null,null,null,null,null,null,null,null,null,{"$f":"IF(Log!A175=\"\",\"\",Log!A175)","v":""},{"$f":"IF(Log!B175=\"\",\"\",Log!B175)","v":""},{"$f":"IF(Log!C175=\"\",\"\",Log!C175)","v":""},{"$f":"IF(Log!D175=\"\",\"\",Log!D175)","v":""},null,null,null,{"$f":"IF(Log!H175=\"\",\"\",Log!H175)","v":""}]
[null,null,null,null,null,null,null,null,null,null,null,null,null,null,null,null,null,null,null,null,null,null,null,null,null,null,null,null,null,{"$f":"IF(Log!A176=\"\",\"\",Log!A176)","v":""},{"$f":"IF(Log!B176=\"\",\"\",Log!B176)","v":""},{"$f":"IF(Log!C176=\"\",\"\",Log!C176)","v":""},{"$f":"IF(Log!D176=\"\",\"\",Log!D176)","v":""},null,null,null,{"$f":"IF(Log!H176=\"\",\"\",Log!H176)","v":""}]
[null,null,null,null,null,null,null,null,null,null,null,null,null,null,null,null,null,null,null,null,null,null,null,null,null,null,null,null,null,{"$f":"IF(Log!A177=\"\",\"\",Log!A177)","v":""},{"$f":"IF(Log!B177=\"\",\"\",Log!B177)","v":""},{"$f":"IF(Log!C177=\"\",\"\",Log!C177)","v":""},{"$f":"IF(Log!D177=\"\",\"\",Log!D177)","v":""},null,null,null,{"$f":"IF(Log!H177=\"\",\"\",Log!H177)","v":""}]
[null,null,null,null,null,null,null,null,null,null,null,null,null,null,null,null,null,null,null,null,null,null,null,null,null,null,null,null,null,{"$f":"IF(Log!A178=\"\",\"\",Log!A178)","v":""},{"$f":"IF(Log!B178=\"\",\"\",Log!B178)","v":""},{"$f":"IF(Log!C178=\"\",\"\",Log!C178)","v":""},{"$f":"IF(Log!D178=\"\",\"\",Log!D178)","v":""},null,null,null,{"$f":"IF(Log!H178=\"\",\"\",Log!H178)","v":""}]
[null,null,null,null,null,null,null,null,null,null,null,null,null,null,null,null,null,null,null,null,null,null,null,null,null,null,null,null,null,{"$f":"IF(Log!A179=\"\",\"\",Log!A179)","v":""},{"$f":"IF(Log!B179=\"\",\"\",Log!B179)","v":""},{"$f":"IF(Log!C179=\"\",\"\",Log!C179)","v":""},{"$f":"IF(Log!D179=\"\",\"\",Log!D179)","v":""},null,null,null,{"$f":"IF(Log!H179=\"\",\"\",Log!H179)","v":""}]
[null,null,null,null,null,null,null,null,null,null,null,null,null,null,null,null,null,null,null,null,null,null,null,null,null,null,null,null,null,{"$f":"IF(Log!A180=\"\",\"\",Log!A180)","v":""},{"$f":"IF(Log!B180=\"\",\"\",Log!B180)","v":""},{"$f":"IF(Log!C180=\"\",\"\",Log!C180)","v":""},{"$f":"IF(Log!D180=\"\",\"\",Log!D180)","v":""},null,null,null,{"$f":"IF(Log!H180=\"\",\"\",Log!H180)","v":""}]
[null,null,null,null,null,null,null,null,null,null,null,null,null,null,null,null,null,null,null,null,null,null,null,null,null,null,null,null,null,{"$f":"IF(Log!A181=\"\",\"\",Log!A181)","v":""},{"$f":"IF(Log!B181=\"\",\"\",Log!B181)","v":""},{"$f":"IF(Log!C181=\"\",\"\",Log!C181)","v":""},{"$f":"IF(Log!D181=\"\",\"\",Log!D181)","v":""},null,null,null,{"$f":"IF(Log!H181=\"\",\"\",Log!H181)","v":""}]
[null,null,null,null,null,null,null,null,null,null,null,null,null,null,null,null,null,null,null,null,null,null,null,null,null,null,null,null,null,{"$f":"IF(Log!A182=\"\",\"\",Log!A182)","v":""},{"$f":"IF(Log!B182=\"\",\"\",Log!B182)","v":""},{"$f":"IF(Log!C182=\"\",\"\",Log!C182)","v":""},{"$f":"IF(Log!D182=\"\",\"\",Log!D182)","v":""},null,null,null,{"$f":"IF(Log!H182=\"\",\"\",Log!H182)","v":""}]
[null,null,null,null,null,null,null,null,null,null,null,null,null,null,null,null,null,null,null,null,null,null,null,null,null,null,null,null,null,{"$f":"IF(Log!A183=\"\",\"\",Log!A183)","v":""},{"$f":"IF(Log!B183=\"\",\"\",Log!B183)","v":""},{"$f":"IF(Log!C183=\"\",\"\",Log!C183)","v":""},{"$f":"IF(Log!D183=\"\",\"\",Log!D183)","v":""},null,null,null,{"$f":"IF(Log!H183=\"\",\"\",Log!H183)","v":""}]
[null,null,null,null,null,null,null,null,null,null,null,null,null,null,null,null,null,null,null,null,null,null,null,null,null,null,null,null,null,{"$f":"IF(Log!A184=\"\",\"\",Log!A184)","v":""},{"$f":"IF(Log!B184=\"\",\"\",Log!B184)","v":""},{"$f":"IF(Log!C184=\"\",\"\",Log!C184)","v":""},{"$f":"IF(Log!D184=\"\",\"\",Log!D184)","v":""},null,null,null,{"$f":"IF(Log!H184=\"\",\"\",Log!H184)","v":""}]
[null,null,null,null,null,null,null,null,null,null,null,null,null,null,null,null,null,null,null,null,null,null,null,null,null,null,null,null,null,{"$f":"IF(Log!A185=\"\",\"\",Log!A185)","v":""},{"$f":"IF(Log!B185=\"\",\"\",Log!B185)","v":""},{"$f":"IF(Log!C185=\"\",\"\",Log!C185)","v":""},{"$f":"IF(Log!D185=\"\",\"\",Log!D185)","v":""},null,null,null,{"$f":"IF(Log!H185=\"\",\"\",Log!H185)","v":""}]
[null,null,null,null,null,null,null,null,null,null,null,null,null,null,null,null,null,null,null,null,null,null,null,null,null,null,null,null,null,{"$f":"IF(Log!A186=\"\",\"\",Log!A186)","v":""},{"$f":"IF(Log!B186=\"\",\"\",Log!B186)","v":""},{"$f":"IF(Log!C186=\"\",\"\",Log!C186)","v":""},{"$f":"IF(Log!D186=\"\",\"\",Log!D186)","v":""},null,null,null,{"$f":"IF(Log!H186=\"\",\"\",Log!H186)","v":""}]
[null,null,null,null,null,null,null,null,null,null,null,null,null,null,null,null,null,null,null,null,null,null,null,null,null,null,null,null,null,{"$f":"IF(Log!A187=\"\",\"\",Log!A187)","v":""},{"$f":"IF(Log!B187=\"\",\"\",Log!B187)","v":""},{"$f":"IF(Log!C187=\"\",\"\",Log!C187)","v":""},{"$f":"IF(Log!D187=\"\",\"\",Log!D187)","v":""},null,null,null,{"$f":"IF(Log!H187=\"\",\"\",Log!H187)","v":""}]
[null,null,null,null,null,null,null,null,null,null,null,null,null,null,null,null,null,null,null,null,null,null,null,null,null,null,null,null,null,{"$f":"IF(Log!A188=\"\",\"\",Log!A188)","v":""},{"$f":"IF(Log!B188=\"\",\"\",Log!B188)","v":""},{"$f":"IF(Log!C188=\"\",\"\",Log!C188)","v":""},{"$f":"IF(Log!D188=\"\",\"\",Log!D188)","v":""},null,null,null,{"$f":"IF(Log!H188=\"\",\"\",Log!H188)","v":""}]
[null,null,null,null,null,null,null,null,null,null,null,null,null,null,null,null,null,null,null,null,null,null,null,null,null,null,null,null,null,{"$f":"IF(Log!A189=\"\",\"\",Log!A189)","v":""},{"$f":"IF(Log!B189=\"\",\"\",Log!B189)","v":""},{"$f":"IF(Log!C189=\"\",\"\",Log!C189)","v":""},{"$f":"IF(Log!D189=\"\",\"\",Log!D189)","v":""},null,null,null,{"$f":"IF(Log!H189=\"\",\"\",Log!H189)","v":""}]
[null,null,null,null,null,null,null,null,null,null,null,null,null,null,null,null,null,null,null,null,null,null,null,null,null,null,null,null,null,{"$f":"IF(Log!A190=\"\",\"\",Log!A190)","v":""},{"$f":"IF(Log!B190=\"\",\"\",Log!B190)","v":""},{"$f":"IF(Log!C190=\"\",\"\",Log!C190)","v":""},{"$f":"IF(Log!D190=\"\",\"\",Log!D190)","v":""},null,null,null,{"$f":"IF(Log!H190=\"\",\"\",Log!H190)","v":""}]
[null,null,null,null,null,null,null,null,null,null,null,null,null,null,null,null,null,null,null,null,null,null,null,null,null,null,null,null,null,{"$f":"IF(Log!A191=\"\",\"\",Log!A191)","v":""},{"$f":"IF(Log!B191=\"\",\"\",Log!B191)","v":""},{"$f":"IF(Log!C191=\"\",\"\",Log!C191)","v":""},{"$f":"IF(Log!D191=\"\",\"\",Log!D191)","v":""},null,null,null,{"$f":"IF(Log!H191=\"\",\"\",Log!H191)","v":""}]
[null,null,null,null,null,null,null,null,null,null,null,null,null,null,null,null,null,null,null,null,null,null,null,null,null,null,null,null,null,{"$f":"IF(Log!A192=\"\",\"\",Log!A192)","v":""},{"$f":"IF(Log!B192=\"\",\"\",Log!B192)","v":""},{"$f":"IF(Log!C192=\"\",\"\",Log!C192)","v":""},{"$f":"IF(Log!D192=\"\",\"\",Log!D192)","v":""},null,null,null,{"$f":"IF(Log!H192=\"\",\"\",Log!H192)","v":""}]
[null,null,null,null,null,null,null,null,null,null,null,null,null,null,null,null,null,null,null,null,null,null,null,null,null,null,null,null,null,{"$f":"IF(Log!A193=\"\",\"\",Log!A193)","v":""},{"$f":"IF(Log!B193=\"\",\"\",Log!B193)","v":""},{"$f":"IF(Log!C193=\"\",\"\",Log!C193)","v":""},{"$f":"IF(Log!D193=\"\",\"\",Log!D193)","v":""},null,null,null,{"$f":"IF(Log!H193=\"\",\"\",Log!H193)","v":""}]
[null,null,null,null,null,null,null,null,null,null,null,null,null,null,null,null,null,null,null,null,null,null,null,null,null,null,null,null,null,{"$f":"IF(Log!A194=\"\",\"\",Log!A194)","v":""},{"$f":"IF(Log!B194=\"\",\"\",Log!B194)","v":""},{"$f":"IF(Log!C194=\"\",\"\",Log!C194)","v":""},{"$f":"IF(Log!D194=\"\",\"\",Log!D194)","v":""},null,null,null,{"$f":"IF(Log!H194=\"\",\"\",Log!H194)","v":""}]
[null,null,null,null,null,null,null,null,null,null,null,null,null,null,null,null,null,null,null,null,null,null,null,null,null,null,null,null,null,{"$f":"IF(Log!A195=\"\",\"\",Log!A195)","v":""},{"$f":"IF(Log!B195=\"\",\"\",Log!B195)","v":""},{"$f":"IF(Log!C195=\"\",\"\",Log!C195)","v":""},{"$f":"IF(Log!D195=\"\",\"\",Log!D195)","v":""},null,null,null,{"$f":"IF(Log!H195=\"\",\"\",Log!H195)","v":""}]
[null,null,null,null,null,null,null,null,null,null,null,null,null,null,null,null,null,null,null,null,null,null,null,null,null,null,null,null,null,{"$f":"IF(Log!A196=\"\",\"\",Log!A196)","v":""},{"$f":"IF(Log!B196=\"\",\"\",Log!B196)","v":""},{"$f":"IF(Log!C196=\"\",\"\",Log!C196)","v":""},{"$f":"IF(Log!D196=\"\",\"\",Log!D196)","v":""},null,null,null,{"$f":"IF(Log!H196=\"\",\"\",Log!H196)","v":""}]
[null,null,null,null,null,null,null,null,null,null,null,null,null,null,null,null,null,null,null,null,null,null,null,null,null,null,null,null,null,{"$f":"IF(Log!A197=\"\",\"\",Log!A197)","v":""},{"$f":"IF(Log!B197=\"\",\"\",Log!B197)","v":""},{"$f":"IF(Log!C197=\"\",\"\",Log!C197)","v":""},{"$f":"IF(Log!D197=\"\",\"\",Log!D197)","v":""},null,null,null,{"$f":"IF(Log!H197=\"\",\"\",Log!H197)","v":""}]
[null,null,null,null,null,null,null,null,null,null,null,null,null,null,null,null,null,null,null,null,null,null,null,null,null,null,null,null,null,{"$f":"IF(Log!A198=\"\",\"\",Log!A198)","v":""},{"$f":"IF(Log!B198=\"\",\"\",Log!B198)","v":""},{"$f":"IF(Log!C198=\"\",\"\",Log!C198)","v":""},{"$f":"IF(Log!D198=\"\",\"\",Log!D198)","v":""},null,null,null,{"$f":"IF(Log!H198=\"\",\"\",Log!H198)","v":""}]
[null,null,null,null,null,null,null,null,null,null,null,null,null,null,null,null,null,null,null,null,null,null,null,null,null,null,null,null,null,{"$f":"IF(Log!A199=\"\",\"\",Log!A199)","v":""},{"$f":"IF(Log!B199=\"\",\"\",Log!B199)","v":""},{"$f":"IF(Log!C199=\"\",\"\",Log!C199)","v":""},{"$f":"IF(Log!D199=\"\",\"\",Log!D199)","v":""},null,null,null,{"$f":"IF(Log!H199=\"\",\"\",Log!H199)","v":""}]
[null,null,null,null,null,null,null,null,null,null,null,null,null,null,null,null,null,null,null,null,null,null,null,null,null,null,null,null,null,{"$f":"IF(Log!A200=\"\",\"\",Log!A200)","v":""},{"$f":"IF(Log!B200=\"\",\"\",Log!B200)","v":""},{"$f":"IF(Log!C200=\"\",\"\",Log!C200)","v":""},{"$f":"IF(Log!D200=\"\",\"\",Log!D200)","v":""},null,null,null,{"$f":"IF(Log!H200=\"\",\"\",Log!H200)","v":""}]
[null,null,null,null,null,null,null,null,null,null,null,null,null,null,null,null,null,null,null,null,null,null,null,null,null,null,null,null,null,{"$f":"IF(Log!A201=\"\",\"\",Log!A201)","v":""},{"$f":"IF(Log!B201=\"\",\"\",Log!B201)","v":""},{"$f":"IF(Log!C201=\"\",\"\",Log!C201)","v":""},{"$f":"IF(Log!D201=\"\",\"\",Log!D201)","v":""},null,null,null,{"$f":"IF(Log!H201=\"\",\"\",Log!H201)","v":""}]
[null,null,null,null,null,null,null,null,null,null,null,null,null,null,null,null,null,null,null,null,null,null,null,null,null,null,null,null,null,{"$f":"IF(Log!A202=\"\",\"\",Log!A202)","v":""},{"$f":"IF(Log!B202=\"\",\"\",Log!B202)","v":""},{"$f":"IF(Log!C202=\"\",\"\",Log!C202)","v":""},{"$f":"IF(Log!D202=\"\",\"\",Log!D202)","v":""},null,null,null,{"$f":"IF(Log!H202=\"\",\"\",Log!H202)","v":""}]
[null,null,null,null,null,null,null,null,null,null,null,null,null,null,null,null,null,null,null,null,null,null,null,null,null,null,null,null,null,{"$f":"IF(Log!A203=\"\",\"\",Log!A203)","v":""},{"$f":"IF(Log!B203=\"\",\"\",Log!B203)","v":""},{"$f":"IF(Log!C203=\"\",\"\",Log!C203)","v":""},{"$f":"IF(Log!D203=\"\",\"\",Log!D203)","v":""},null,null,null,{"$f":"IF(Log!H203=\"\",\"\",Log!H203)","v":""}]
[null,null,null,null,null,null,null,null,null,null,null,null,null,null,null,null,null,null,null,null,null,null,null,null,null,null,null,null,null,{"$f":"IF(Log!A204=\"\",\"\",Log!A204)","v":""},{"$f":"IF(Log!B204=\"\",\"\",Log!B204)","v":""},{"$f":"IF(Log!C204=\"\",\"\",Log!C204)","v":""},{"$f":"IF(Log!D204=\"\",\"\",Log!D204)","v":""},null,null,null,{"$f":"IF(Log!H204=\"\",\"\",Log!H204)","v":""}]
[null,null,null,null,null,null,null,null,null,null,null,null,null,null,null,null,null,null,null,null,null,null,null,null,null,null,null,null,null,{"$f":"IF(Log!A205=\"\",\"\",Log!A205)","v":""},{"$f":"IF(Log!B205=\"\",\"\",Log!B205)","v":""},{"$f":"IF(Log!C205=\"\",\"\",Log!C205)","v":""},{"$f":"IF(Log!D205=\"\",\"\",Log!D205)","v":""},null,null,null,{"$f":"IF(Log!H205=\"\",\"\",Log!H205)","v":""}]
[null,null,null,null,null,null,null,null,null,null,null,null,null,null,null,null,null,null,null,null,null,null,null,null,null,null,null,null,null,{"$f":"IF(Log!A206=\"\",\"\",Log!A206)","v":""},{"$f":"IF(Log!B206=\"\",\"\",Log!B206)","v":""},{"$f":"IF(Log!C206=\"\",\"\",Log!C206)","v":""},{"$f":"IF(Log!D206=\"\",\"\",Log!D206)","v":""},null,null,null,{"$f":"IF(Log!H206=\"\",\"\",Log!H206)","v":""}]
[null,null,null,null,null,null,null,null,null,null,null,null,null,null,null,null,null,null,null,null,null,null,null,null,null,null,null,null,null,{"$f":"IF(Log!A207=\"\",\"\",Log!A207)","v":""},{"$f":"IF(Log!B207=\"\",\"\",Log!B207)","v":""},{"$f":"IF(Log!C207=\"\",\"\",Log!C207)","v":""},{"$f":"IF(Log!D207=\"\",\"\",Log!D207)","v":""},null,null,null,{"$f":"IF(Log!H207=\"\",\"\",Log!H207)","v":""}]
[null,null,null,null,null,null,null,null,null,null,null,null,null,null,null,null,null,null,null,null,null,null,null,null,null,null,null,null,null,{"$f":"IF(Log!A208=\"\",\"\",Log!A208)","v":""},{"$f":"IF(Log!B208=\"\",\"\",Log!B208)","v":""},{"$f":"IF(Log!C208=\"\",\"\",Log!C208)","v":""},{"$f":"IF(Log!D208=\"\",\"\",Log!D208)","v":""},null,null,null,{"$f":"IF(Log!H208=\"\",\"\",Log!H208)","v":""}]
[null,null,null,null,null,null,null,null,null,null,null,null,null,null,null,null,null,null,null,null,null,null,null,null,null,null,null,null,null,{"$f":"IF(Log!A209=\"\",\"\",Log!A209)","v":""},{"$f":"IF(Log!B209=\"\",\"\",Log!B209)","v":""},{"$f":"IF(Log!C209=\"\",\"\",Log!C209)","v":""},{"$f":"IF(Log!D209=\"\",\"\",Log!D209)","v":""},null,null,null,{"$f":"IF(Log!H209=\"\",\"\",Log!H209)","v":""}]
[null,null,null,null,null,null,null,null,null,null,null,null,null,null,null,null,null,null,null,null,null,null,null,null,null,null,null,null,null,{"$f":"IF(Log!A210=\"\",\"\",Log!A210)","v":""},{"$f":"IF(Log!B210=\"\",\"\",Log!B210)","v":""},{"$f":"IF(Log!C210=\"\",\"\",Log!C210)","v":""},{"$f":"IF(Log!D210=\"\",\"\",Log!D210)","v":""},null,null,null,{"$f":"IF(Log!H210=\"\",\"\",Log!H210)","v":""}]
[null,null,null,null,null,null,null,null,null,null,null,null,null,null,null,null,null,null,null,null,null,null,null,null,null,null,null,null,null,{"$f":"IF(Log!A211=\"\",\"\",Log!A211)","v":""},{"$f":"IF(Log!B211=\"\",\"\",Log!B211)","v":""},{"$f":"IF(Log!C211=\"\",\"\",Log!C211)","v":""},{"$f":"IF(Log!D211=\"\",\"\",Log!D211)","v":""},null,null,null,{"$f":"IF(Log!H211=\"\",\"\",Log!H211)","v":""}]
[null,null,null,null,null,null,null,null,null,null,null,null,null,null,null,null,null,null,null,null,null,null,null,null,null,null,null,null,null,{"$f":"IF(Log!A212=\"\",\"\",Log!A212)","v":""},{"$f":"IF(Log!B212=\"\",\"\",Log!B212)","v":""},{"$f":"IF(Log!C212=\"\",\"\",Log!C212)","v":""},{"$f":"IF(Log!D212=\"\",\"\",Log!D212)","v":""},null,null,null,{"$f":"IF(Log!H212=\"\",\"\",Log!H212)","v":""}]
[null,null,null,null,null,null,null,null,null,null,null,null,null,null,null,null,null,null,null,null,null,null,null,null,null,null,null,null,null,{"$f":"IF(Log!A213=\"\",\"\",Log!A213)","v":""},{"$f":"IF(Log!B213=\"\",\"\",Log!B213)","v":""},{"$f":"IF(Log!C213=\"\",\"\",Log!C213)","v":""},{"$f":"IF(Log!D213=\"\",\"\",Log!D213)","v":""},null,null,null,{"$f":"IF(Log!H213=\"\",\"\",Log!H213)","v":""}]
[null,null,null,null,null,null,null,null,null,null,null,null,null,null,null,null,null,null,null,null,null,null,null,null,null,null,null,null,null,{"$f":"IF(Log!A214=\"\",\"\",Log!A214)","v":""},{"$f":"IF(Log!B214=\"\",\"\",Log!B214)","v":""},{"$f":"IF(Log!C214=\"\",\"\",Log!C214)","v":""},{"$f":"IF(Log!D214=\"\",\"\",Log!D214)","v":""},null,null,null,{"$f":"IF(Log!H214=\"\",\"\",Log!H214)","v":""}]
[null,null,null,null,null,null,null,null,null,null,null,null,null,null,null,null,null,null,null,null,null,null,null,null,null,null,null,null,null,{"$f":"IF(Log!A215=\"\",\"\",Log!A215)","v":""},{"$f":"IF(Log!B215=\"\",\"\",Log!B215)","v":""},{"$f":"IF(Log!C215=\"\",\"\",Log!C215)","v":""},{"$f":"IF(Log!D215=\"\",\"\",Log!D215)","v":""},null,null,null,{"$f":"IF(Log!H215=\"\",\"\",Log!H215)","v":""}]
[null,null,null,null,null,null,null,null,null,null,null,null,null,null,null,null,null,null,null,null,null,null,null,null,null,null,null,null,null,{"$f":"IF(Log!A216=\"\",\"\",Log!A216)","v":""},{"$f":"IF(Log!B216=\"\",\"\",Log!B216)","v":""},{"$f":"IF(Log!C216=\"\",\"\",Log!C216)","v":""},{"$f":"IF(Log!D216=\"\",\"\",Log!D216)","v":""},null,null,null,{"$f":"IF(Log!H216=\"\",\"\",Log!H216)","v":""}]
[null,null,null,null,null,null,null,null,null,null,null,null,null,null,null,null,null,null,null,null,null,null,null,null,null,null,null,null,null,{"$f":"IF(Log!A217=\"\",\"\",Log!A217)","v":""},{"$f":"IF(Log!B217=\"\",\"\",Log!B217)","v":""},{"$f":"IF(Log!C217=\"\",\"\",Log!C217)","v":""},{"$f":"IF(Log!D217=\"\",\"\",Log!D217)","v":""},null,null,null,{"$f":"IF(Log!H217=\"\",\"\",Log!H217)","v":""}]
[null,null,null,null,null,null,null,null,null,null,null,null,null,null,null,null,null,null,null,null,null,null,null,null,null,null,null,null,null,{"$f":"IF(Log!A218=\"\",\"\",Log!A218)","v":""},{"$f":"IF(Log!B218=\"\",\"\",Log!B218)","v":""},{"$f":"IF(Log!C218=\"\",\"\",Log!C218)","v":""},{"$f":"IF(Log!D218=\"\",\"\",Log!D218)","v":""},null,null,null,{"$f":"IF(Log!H218=\"\",\"\",Log!H218)","v":""}]
[null,null,null,null,null,null,null,null,null,null,null,null,null,null,null,null,null,null,null,null,null,null,null,null,null,null,null,null,null,{"$f":"IF(Log!A219=\"\",\"\",Log!A219)","v":""},{"$f":"IF(Log!B219=\"\",\"\",Log!B219)","v":""},{"$f":"IF(Log!C219=\"\",\"\",Log!C219)","v":""},{"$f":"IF(Log!D219=\"\",\"\",Log!D219)","v":""},null,null,null,{"$f":"IF(Log!H219=\"\",\"\",Log!H219)","v":""}]
[null,null,null,null,null,null,null,null,null,null,null,null,null,null,null,null,null,null,null,null,null,null,null,null,null,null,null,null,null,{"$f":"IF(Log!A220=\"\",\"\",Log!A220)","v":""},{"$f":"IF(Log!B220=\"\",\"\",Log!B220)","v":""},{"$f":"IF(Log!C220=\"\",\"\",Log!C220)","v":""},{"$f":"IF(Log!D220=\"\",\"\",Log!D220)","v":""},null,null,null,{"$f":"IF(Log!H220=\"\",\"\",Log!H220)","v":""}]
[null,null,null,null,null,null,null,null,null,null,null,null,null,null,null,null,null,null,null,null,null,null,null,null,null,null,null,null,null,{"$f":"IF(Log!A221=\"\",\"\",Log!A221)","v":""},{"$f":"IF(Log!B221=\"\",\"\",Log!B221)","v":""},{"$f":"IF(Log!C221=\"\",\"\",Log!C221)","v":""},{"$f":"IF(Log!D221=\"\",\"\",Log!D221)","v":""},null,null,null,{"$f":"IF(Log!H221=\"\",\"\",Log!H221)","v":""}]
[null,null,null,null,null,null,null,null,null,null,null,null,null,null,null,null,null,null,null,null,null,null,null,null,null,null,null,null,null,{"$f":"IF(Log!A222=\"\",\"\",Log!A222)","v":""},{"$f":"IF(Log!B222=\"\",\"\",Log!B222)","v":""},{"$f":"IF(Log!C222=\"\",\"\",Log!C222)","v":""},{"$f":"IF(Log!D222=\"\",\"\",Log!D222)","v":""},null,null,null,{"$f":"IF(Log!H222=\"\",\"\",Log!H222)","v":""}]
[null,null,null,null,null,null,null,null,null,null,null,null,null,null,null,null,null,null,null,null,null,null,null,null,null,null,null,null,null,{"$f":"IF(Log!A223=\"\",\"\",Log!A223)","v":""},{"$f":"IF(Log!B223=\"\",\"\",Log!B223)","v":""},{"$f":"IF(Log!C223=\"\",\"\",Log!C223)","v":""},{"$f":"IF(Log!D223=\"\",\"\",Log!D223)","v":""},null,null,null,{"$f":"IF(Log!H223=\"\",\"\",Log!H223)","v":""}]
[null,null,null,null,null,null,null,null,null,null,null,null,null,null,null,null,null,null,null,null,null,null,null,null,null,null,null,null,null,{"$f":"IF(Log!A224=\"\",\"\",Log!A224)","v":""},{"$f":"IF(Log!B224=\"\",\"\",Log!B224)","v":""},{"$f":"IF(Log!C224=\"\",\"\",Log!C224)","v":""},{"$f":"IF(Log!D224=\"\",\"\",Log!D224)","v":""},null,null,null,{"$f":"IF(Log!H224=\"\",\"\",Log!H224)","v":""}]
[null,null,null,null,null,null,null,null,null,null,null,null,null,null,null,null,null,null,null,null,null,null,null,null,null,null,null,null,null,{"$f":"IF(Log!A225=\"\",\"\",Log!A225)","v":""},{"$f":"IF(Log!B225=\"\",\"\",Log!B225)","v":""},{"$f":"IF(Log!C225=\"\",\"\",Log!C225)","v":""},{"$f":"IF(Log!D225=\"\",\"\",Log!D225)","v":""},null,null,null,{"$f":"IF(Log!H225=\"\",\"\",Log!H225)","v":""}]
[null,null,null,null,null,null,null,null,null,null,null,null,null,null,null,null,null,null,null,null,null,null,null,null,null,null,null,null,null,{"$f":"IF(Log!A226=\"\",\"\",Log!A226)","v":""},{"$f":"IF(Log!B226=\"\",\"\",Log!B226)","v":""},{"$f":"IF(Log!C226=\"\",\"\",Log!C226)","v":""},{"$f":"IF(Log!D226=\"\",\"\",Log!D226)","v":""},null,null,null,{"$f":"IF(Log!H226=\"\",\"\",Log!H226)","v":""}]
[null,null,null,null,null,null,null,null,null,null,null,null,null,null,null,null,null,null,null,null,null,null,null,null,null,null,null,null,null,{"$f":"IF(Log!A227=\"\",\"\",Log!A227)","v":""},{"$f":"IF(Log!B227=\"\",\"\",Log!B227)","v":""},{"$f":"IF(Log!C227=\"\",\"\",Log!C227)","v":""},{"$f":"IF(Log!D227=\"\",\"\",Log!D227)","v":""},null,null,null,{"$f":"IF(Log!H227=\"\",\"\",Log!H227)","v":""}]
[null,null,null,null,null,null,null,null,null,null,null,null,null,null,null,null,null,null,null,null,null,null,null,null,null,null,null,null,null,{"$f":"IF(Log!A228=\"\",\"\",Log!A228)","v":""},{"$f":"IF(Log!B228=\"\",\"\",Log!B228)","v":""},{"$f":"IF(Log!C228=\"\",\"\",Log!C228)","v":""},{"$f":"IF(Log!D228=\"\",\"\",Log!D228)","v":""},null,null,null,{"$f":"IF(Log!H228=\"\",\"\",Log!H228)","v":""}]
[null,null,null,null,null,null,null,null,null,null,null,null,null,null,null,null,null,null,null,null,null,null,null,null,null,null,null,null,null,{"$f":"IF(Log!A229=\"\",\"\",Log!A229)","v":""},{"$f":"IF(Log!B229=\"\",\"\",Log!B229)","v":""},{"$f":"IF(Log!C229=\"\",\"\",Log!C229)","v":""},{"$f":"IF(Log!D229=\"\",\"\",Log!D229)","v":""},null,null,null,{"$f":"IF(Log!H229=\"\",\"\",Log!H229)","v":""}]
[null,null,null,null,null,null,null,null,null,null,null,null,null,null,null,null,null,null,null,null,null,null,null,null,null,null,null,null,null,{"$f":"IF(Log!A230=\"\",\"\",Log!A230)","v":""},{"$f":"IF(Log!B230=\"\",\"\",Log!B230)","v":""},{"$f":"IF(Log!C230=\"\",\"\",Log!C230)","v":""},{"$f":"IF(Log!D230=\"\",\"\",Log!D230)","v":""},null,null,null,{"$f":"IF(Log!H230=\"\",\"\",Log!H230)","v":""}]
[null,null,null,null,null,null,null,null,null,null,null,null,null,null,null,null,null,null,null,null,null,null,null,null,null,null,null,null,null,{"$f":"IF(Log!A231=\"\",\"\",Log!A231)","v":""},{"$f":"IF(Log!B231=\"\",\"\",Log!B231)","v":""},{"$f":"IF(Log!C231=\"\",\"\",Log!C231)","v":""},{"$f":"IF(Log!D231=\"\",\"\",Log!D231)","v":""},null,null,null,{"$f":"IF(Log!H231=\"\",\"\",Log!H231)","v":""}]
[null,null,null,null,null,null,null,null,null,null,null,null,null,null,null,null,null,null,null,null,null,null,null,null,null,null,null,null,null,{"$f":"IF(Log!A232=\"\",\"\",Log!A232)","v":""},{"$f":"IF(Log!B232=\"\",\"\",Log!B232)","v":""},{"$f":"IF(Log!C232=\"\",\"\",Log!C232)","v":""},{"$f":"IF(Log!D232=\"\",\"\",Log!D232)","v":""},null,null,null,{"$f":"IF(Log!H232=\"\",\"\",Log!H232)","v":""}]
[null,null,null,null,null,null,null,null,null,null,null,null,null,null,null,null,null,null,null,null,null,null,null,null,null,null,null,null,null,{"$f":"IF(Log!A233=\"\",\"\",Log!A233)","v":""},{"$f":"IF(Log!B233=\"\",\"\",Log!B233)","v":""},{"$f":"IF(Log!C233=\"\",\"\",Log!C233)","v":""},{"$f":"IF(Log!D233=\"\",\"\",Log!D233)","v":""},null,null,null,{"$f":"IF(Log!H233=\"\",\"\",Log!H233)","v":""}]
[null,null,null,null,null,null,null,null,null,null,null,null,null,null,null,null,null,null,null,null,null,null,null,null,null,null,null,null,null,{"$f":"IF(Log!A234=\"\",\"\",Log!A234)","v":""},{"$f":"IF(Log!B234=\"\",\"\",Log!B234)","v":""},{"$f":"IF(Log!C234=\"\",\"\",Log!C234)","v":""},{"$f":"IF(Log!D234=\"\",\"\",Log!D234)","v":""},null,null,null,{"$f":"IF(Log!H234=\"\",\"\",Log!H234)","v":""}]
[null,null,null,null,null,null,null,null,null,null,null,null,null,null,null,null,null,null,null,null,null,null,null,null,null,null,null,null,null,{"$f":"IF(Log!A235=\"\",\"\",Log!A235)","v":""},{"$f":"IF(Log!B235=\"\",\"\",Log!B235)","v":""},{"$f":"IF(Log!C235=\"\",\"\",Log!C235)","v":""},{"$f":"IF(Log!D235=\"\",\"\",Log!D235)","v":""},null,null,null,{"$f":"IF(Log!H235=\"\",\"\",Log!H235)","v":""}]
[null,null,null,null,null,null,null,null,null,null,null,null,null,null,null,null,null,null,null,null,null,null,null,null,null,null,null,null,null,{"$f":"IF(Log!A236=\"\",\"\",Log!A236)","v":""},{"$f":"IF(Log!B236=\"\",\"\",Log!B236)","v":""},{"$f":"IF(Log!C236=\"\",\"\",Log!C236)","v":""},{"$f":"IF(Log!D236=\"\",\"\",Log!D236)","v":""},null,null,null,{"$f":"IF(Log!H236=\"\",\"\",Log!H236)","v":""}]
[null,null,null,null,null,null,null,null,null,null,null,null,null,null,null,null,null,null,null,null,null,null,null,null,null,null,null,null,null,{"$f":"IF(Log!A237=\"\",\"\",Log!A237)","v":""},{"$f":"IF(Log!B237=\"\",\"\",Log!B237)","v":""},{"$f":"IF(Log!C237=\"\",\"\",Log!C237)","v":""},{"$f":"IF(Log!D237=\"\",\"\",Log!D237)","v":""},null,null,null,{"$f":"IF(Log!H237=\"\",\"\",Log!H237)","v":""}]
[null,null,null,null,null,null,null,null,null,null,null,null,null,null,null,null,null,null,null,null,null,null,null,null,null,null,null,null,null,{"$f":"IF(Log!A238=\"\",\"\",Log!A238)","v":""},{"$f":"IF(Log!B238=\"\",\"\",Log!B238)","v":""},{"$f":"IF(Log!C238=\"\",\"\",Log!C238)","v":""},{"$f":"IF(Log!D238=\"\",\"\",Log!D238)","v":""},null,null,null,{"$f":"IF(Log!H238=\"\",\"\",Log!H238)","v":""}]
[null,null,null,null,null,null,null,null,null,null,null,null,null,null,null,null,null,null,null,null,null,null,null,null,null,null,null,null,null,{"$f":"IF(Log!A239=\"\",\"\",Log!A239)","v":""},{"$f":"IF(Log!B239=\"\",\"\",Log!B239)","v":""},{"$f":"IF(Log!C239=\"\",\"\",Log!C239)","v":""},{"$f":"IF(Log!D239=\"\",\"\",Log!D239)","v":""},null,null,null,{"$f":"IF(Log!H239=\"\",\"\",Log!H239)","v":""}]
[null,null,null,null,null,null,null,null,null,null,null,null,null,null,null,null,null,null,null,null,null,null,null,null,null,null,null,null,null,{"$f":"IF(Log!A240=\"\",\"\",Log!A240)","v":""},{"$f":"IF(Log!B240=\"\",\"\",Log!B240)","v":""},{"$f":"IF(Log!C240=\"\",\"\",Log!C240)","v":""},{"$f":"IF(Log!D240=\"\",\"\",Log!D240)","v":""},null,null,null,{"$f":"IF(Log!H240=\"\",\"\",Log!H240)","v":""}]
[null,null,null,null,null,null,null,null,null,null,null,null,null,null,null,null,null,null,null,null,null,null,null,null,null,null,null,null,null,{"$f":"IF(Log!A241=\"\",\"\",Log!A241)","v":""},{"$f":"IF(Log!B241=\"\",\"\",Log!B241)","v":""},{"$f":"IF(Log!C241=\"\",\"\",Log!C241)","v":""},{"$f":"IF(Log!D241=\"\",\"\",Log!D241)","v":""},null,null,null,{"$f":"IF(Log!H241=\"\",\"\",Log!H241)","v":""}]
[null,null,null,null,null,null,null,null,null,null,null,null,null,null,null,null,null,null,null,null,null,null,null,null,null,null,null,null,null,{"$f":"IF(Log!A242=\"\",\"\",Log!A242)","v":""},{"$f":"IF(Log!B242=\"\",\"\",Log!B242)","v":""},{"$f":"IF(Log!C242=\"\",\"\",Log!C242)","v":""},{"$f":"IF(Log!D242=\"\",\"\",Log!D242)","v":""},null,null,null,{"$f":"IF(Log!H242=\"\",\"\",Log!H242)","v":""}]
[null,null,null,null,null,null,null,null,null,null,null,null,null,null,null,null,null,null,null,null,null,null,null,null,null,null,null,null,null,{"$f":"IF(Log!A243=\"\",\"\",Log!A243)","v":""},{"$f":"IF(Log!B243=\"\",\"\",Log!B243)","v":""},{"$f":"IF(Log!C243=\"\",\"\",Log!C243)","v":""},{"$f":"IF(Log!D243=\"\",\"\",Log!D243)","v":""},null,null,null,{"$f":"IF(Log!H243=\"\",\"\",Log!H243)","v":""}]
[null,null,null,null,null,null,null,null,null,null,null,null,null,null,null,null,null,null,null,null,null,null,null,null,null,null,null,null,null,{"$f":"IF(Log!A244=\"\",\"\",Log!A244)","v":""},{"$f":"IF(Log!B244=\"\",\"\",Log!B244)","v":""},{"$f":"IF(Log!C244=\"\",\"\",Log!C244)","v":""},{"$f":"IF(Log!D244=\"\",\"\",Log!D244)","v":""},null,null,null,{"$f":"IF(Log!H244=\"\",\"\",Log!H244)","v":""}]
[null,null,null,null,null,null,null,null,null,null,null,null,null,null,null,null,null,null,null,null,null,null,null,null,null,null,null,null,null,{"$f":"IF(Log!A245=\"\",\"\",Log!A245)","v":""},{"$f":"IF(Log!B245=\"\",\"\",Log!B245)","v":""},{"$f":"IF(Log!C245=\"\",\"\",Log!C245)","v":""},{"$f":"IF(Log!D245=\"\",\"\",Log!D245)","v":""},null,null,null,{"$f":"IF(Log!H245=\"\",\"\",Log!H245)","v":""}]
[null,null,null,null,null,null,null,null,null,null,null,null,null,null,null,null,null,null,null,null,null,null,null,null,null,null,null,null,null,{"$f":"IF(Log!A246=\"\",\"\",Log!A246)","v":""},{"$f":"IF(Log!B246=\"\",\"\",Log!B246)","v":""},{"$f":"IF(Log!C246=\"\",\"\",Log!C246)","v":""},{"$f":"IF(Log!D246=\"\",\"\",Log!D246)","v":""},null,null,null,{"$f":"IF(Log!H246=\"\",\"\",Log!H246)","v":""}]
[null,null,null,null,null,null,null,null,null,null,null,null,null,null,null,null,null,null,null,null,null,null,null,null,null,null,null,null,null,{"$f":"IF(Log!A247=\"\",\"\",Log!A247)","v":""},{"$f":"IF(Log!B247=\"\",\"\",Log!B247)","v":""},{"$f":"IF(Log!C247=\"\",\"\",Log!C247)","v":""},{"$f":"IF(Log!D247=\"\",\"\",Log!D247)","v":""},null,null,null,{"$f":"IF(Log!H247=\"\",\"\",Log!H247)","v":""}]
[null,null,null,null,null,null,null,null,null,null,null,null,null,null,null,null,null,null,null,null,null,null,null,null,null,null,null,null,null,{"$f":"IF(Log!A248=\"\",\"\",Log!A248)","v":""},{"$f":"IF(Log!B248=\"\",\"\",Log!B248)","v":""},{"$f":"IF(Log!C248=\"\",\"\",Log!C248)","v":""},{"$f":"IF(Log!D248=\"\",\"\",Log!D248)","v":""},null,null,null,{"$f":"IF(Log!H248=\"\",\"\",Log!H248)","v":""}]
[null,null,null,null,null,null,null,null,null,null,null,null,null,null,null,null,null,null,null,null,null,null,null,null,null,null,null,null,null,{"$f":"IF(Log!A249=\"\",\"\",Log!A249)","v":""},{"$f":"IF(Log!B249=\"\",\"\",Log!B249)","v":""},{"$f":"IF(Log!C249=\"\",\"\",Log!C249)","v":""},{"$f":"IF(Log!D249=\"\",\"\",Log!D249)","v":""},null,null,null,{"$f":"IF(Log!H249=\"\",\"\",Log!H249)","v":""}]
[null,null,null,null,null,null,null,null,null,null,null,null,null,null,null,null,null,null,null,null,null,null,null,null,null,null,null,null,null,{"$f":"IF(Log!A250=\"\",\"\",Log!A250)","v":""},{"$f":"IF(Log!B250=\"\",\"\",Log!B250)","v":""},{"$f":"IF(Log!C250=\"\",\"\",Log!C250)","v":""},{"$f":"IF(Log!D250=\"\",\"\",Log!D250)","v":""},null,null,null,{"$f":"IF(Log!H250=\"\",\"\",Log!H250)","v":""}]
[null,null,null,null,null,null,null,null,null,null,null,null,null,null,null,null,null,null,null,null,null,null,null,null,null,null,null,null,null,{"$f":"IF(Log!A251=\"\",\"\",Log!A251)","v":""},{"$f":"IF(Log!B251=\"\",\"\",Log!B251)","v":""},{"$f":"IF(Log!C251=\"\",\"\",Log!C251)","v":""},{"$f":"IF(Log!D251=\"\",\"\",Log!D251)","v":""},null,null,null,{"$f":"IF(Log!H251=\"\",\"\",Log!H251)","v":""}]
[null,null,null,null,null,null,null,null,null,null,null,null,null,null,null,null,null,null,null,null,null,null,null,null,null,null,null,null,null,{"$f":"IF(Log!A252=\"\",\"\",Log!A252)","v":""},{"$f":"IF(Log!B252=\"\",\"\",Log!B252)","v":""},{"$f":"IF(Log!C252=\"\",\"\",Log!C252)","v":""},{"$f":"IF(Log!D252=\"\",\"\",Log!D252)","v":""},null,null,null,{"$f":"IF(Log!H252=\"\",\"\",Log!H252)","v":""}]
[null,null,null,null,null,null,null,null,null,null,null,null,null,null,null,null,null,null,null,null,null,null,null,null,null,null,null,null,null,{"$f":"IF(Log!A253=\"\",\"\",Log!A253)","v":""},{"$f":"IF(Log!B253=\"\",\"\",Log!B253)","v":""},{"$f":"IF(Log!C253=\"\",\"\",Log!C253)","v":""},{"$f":"IF(Log!D253=\"\",\"\",Log!D253)","v":""},null,null,null,{"$f":"IF(Log!H253=\"\",\"\",Log!H253)","v":""}]
[null,null,null,null,null,null,null,null,null,null,null,null,null,null,null,null,null,null,null,null,null,null,null,null,null,null,null,null,null,{"$f":"IF(Log!A254=\"\",\"\",Log!A254)","v":""},{"$f":"IF(Log!B254=\"\",\"\",Log!B254)","v":""},{"$f":"IF(Log!C254=\"\",\"\",Log!C254)","v":""},{"$f":"IF(Log!D254=\"\",\"\",Log!D254)","v":""},null,null,null,{"$f":"IF(Log!H254=\"\",\"\",Log!H254)","v":""}]
[null,null,null,null,null,null,null,null,null,null,null,null,null,null,null,null,null,null,null,null,null,null,null,null,null,null,null,null,null,{"$f":"IF(Log!A255=\"\",\"\",Log!A255)","v":""},{"$f":"IF(Log!B255=\"\",\"\",Log!B255)","v":""},{"$f":"IF(Log!C255=\"\",\"\",Log!C255)","v":""},{"$f":"IF(Log!D255=\"\",\"\",Log!D255)","v":""},null,null,null,{"$f":"IF(Log!H255=\"\",\"\",Log!H255)","v":""}]
[null,null,null,null,null,null,null,null,null,null,null,null,null,null,null,null,null,null,null,null,null,null,null,null,null,null,null,null,null,{"$f":"IF(Log!A256=\"\",\"\",Log!A256)","v":""},{"$f":"IF(Log!B256=\"\",\"\",Log!B256)","v":""},{"$f":"IF(Log!C256=\"\",\"\",Log!C256)","v":""},{"$f":"IF(Log!D256=\"\",\"\",Log!D256)","v":""},null,null,null,{"$f":"IF(Log!H256=\"\",\"\",Log!H256)","v":""}]
[null,null,null,null,null,null,null,null,null,null,null,null,null,null,null,null,null,null,null,null,null,null,null,null,null,null,null,null,null,{"$f":"IF(Log!A257=\"\",\"\",Log!A257)","v":""},{"$f":"IF(Log!B257=\"\",\"\",Log!B257)","v":""},{"$f":"IF(Log!C257=\"\",\"\",Log!C257)","v":""},{"$f":"IF(Log!D257=\"\",\"\",Log!D257)","v":""},null,null,null,{"$f":"IF(Log!H257=\"\",\"\",Log!H257)","v":""}]
[null,null,null,null,null,null,null,null,null,null,null,null,null,null,null,null,null,null,null,null,null,null,null,null,null,null,null,null,null,{"$f":"IF(Log!A258=\"\",\"\",Log!A258)","v":""},{"$f":"IF(Log!B258=\"\",\"\",Log!B258)","v":""},{"$f":"IF(Log!C258=\"\",\"\",Log!C258)","v":""},{"$f":"IF(Log!D258=\"\",\"\",Log!D258)","v":""},null,null,null,{"$f":"IF(Log!H258=\"\",\"\",Log!H258)","v":""}]
[null,null,null,null,null,null,null,null,null,null,null,null,null,null,null,null,null,null,null,null,null,null,null,null,null,null,null,null,null,{"$f":"IF(Log!A259=\"\",\"\",Log!A259)","v":""},{"$f":"IF(Log!B259=\"\",\"\",Log!B259)","v":""},{"$f":"IF(Log!C259=\"\",\"\",Log!C259)","v":""},{"$f":"IF(Log!D259=\"\",\"\",Log!D259)","v":""},null,null,null,{"$f":"IF(Log!H259=\"\",\"\",Log!H259)","v":""}]
[null,null,null,null,null,null,null,null,null,null,null,null,null,null,null,null,null,null,null,null,null,null,null,null,null,null,null,null,null,{"$f":"IF(Log!A260=\"\",\"\",Log!A260)","v":""},{"$f":"IF(Log!B260=\"\",\"\",Log!B260)","v":""},{"$f":"IF(Log!C260=\"\",\"\",Log!C260)","v":""},{"$f":"IF(Log!D260=\"\",\"\",Log!D260)","v":""},null,null,null,{"$f":"IF(Log!H260=\"\",\"\",Log!H260)","v":""}]
[null,null,null,null,null,null,null,null,null,null,null,null,null,null,null,null,null,null,null,null,null,null,null,null,null,null,null,null,null,{"$f":"IF(Log!A261=\"\",\"\",Log!A261)","v":""},{"$f":"IF(Log!B261=\"\",\"\",Log!B261)","v":""},{"$f":"IF(Log!C261=\"\",\"\",Log!C261)","v":""},{"$f":"IF(Log!D261=\"\",\"\",Log!D261)","v":""},null,null,null,{"$f":"IF(Log!H261=\"\",\"\",Log!H261)","v":""}]
[null,null,null,null,null,null,null,null,null,null,null,null,null,null,null,null,null,null,null,null,null,null,null,null,null,null,null,null,null,{"$f":"IF(Log!A262=\"\",\"\",Log!A262)","v":""},{"$f":"IF(Log!B262=\"\",\"\",Log!B262)","v":""},{"$f":"IF(Log!C262=\"\",\"\",Log!C262)","v":""},{"$f":"IF(Log!D262=\"\",\"\",Log!D262)","v":""},null,null,null,{"$f":"IF(Log!H262=\"\",\"\",Log!H262)","v":""}]
[null,null,null,null,null,null,null,null,null,null,null,null,null,null,null,null,null,null,null,null,null,null,null,null,null,null,null,null,null,{"$f":"IF(Log!A263=\"\",\"\",Log!A263)","v":""},{"$f":"IF(Log!B263=\"\",\"\",Log!B263)","v":""},{"$f":"IF(Log!C263=\"\",\"\",Log!C263)","v":""},{"$f":"IF(Log!D263=\"\",\"\",Log!D263)","v":""},null,null,null,{"$f":"IF(Log!H263=\"\",\"\",Log!H263)","v":""}]
[null,null,null,null,null,null,null,null,null,null,null,null,null,null,null,null,null,null,null,null,null,null,null,null,null,null,null,null,null,{"$f":"IF(Log!A264=\"\",\"\",Log!A264)","v":""},{"$f":"IF(Log!B264=\"\",\"\",Log!B264)","v":""},{"$f":"IF(Log!C264=\"\",\"\",Log!C264)","v":""},{"$f":"IF(Log!D264=\"\",\"\",Log!D264)","v":""},null,null,null,{"$f":"IF(Log!H264=\"\",\"\",Log!H264)","v":""}]
[null,null,null,null,null,null,null,null,null,null,null,null,null,null,null,null,null,null,null,null,null,null,null,null,null,null,null,null,null,{"$f":"IF(Log!A265=\"\",\"\",Log!A265)","v":""},{"$f":"IF(Log!B265=\"\",\"\",Log!B265)","v":""},{"$f":"IF(Log!C265=\"\",\"\",Log!C265)","v":""},{"$f":"IF(Log!D265=\"\",\"\",Log!D265)","v":""},null,null,null,{"$f":"IF(Log!H265=\"\",\"\",Log!H265)","v":""}]
[null,null,null,null,null,null,null,null,null,null,null,null,null,null,null,null,null,null,null,null,null,null,null,null,null,null,null,null,null,{"$f":"IF(Log!A266=\"\",\"\",Log!A266)","v":""},{"$f":"IF(Log!B266=\"\",\"\",Log!B266)","v":""},{"$f":"IF(Log!C266=\"\",\"\",Log!C266)","v":""},{"$f":"IF(Log!D266=\"\",\"\",Log!D266)","v":""},null,null,null,{"$f":"IF(Log!H266=\"\",\"\",Log!H266)","v":""}]
[null,null,null,null,null,null,null,null,null,null,null,null,null,null,null,null,null,null,null,null,null,null,null,null,null,null,null,null,null,{"$f":"IF(Log!A267=\"\",\"\",Log!A267)","v":""},{"$f":"IF(Log!B267=\"\",\"\",Log!B267)","v":""},{"$f":"IF(Log!C267=\"\",\"\",Log!C267)","v":""},{"$f":"IF(Log!D267=\"\",\"\",Log!D267)","v":""},null,null,null,{"$f":"IF(Log!H267=\"\",\"\",Log!H267)","v":""}]
[null,null,null,null,null,null,null,null,null,null,null,null,null,null,null,null,null,null,null,null,null,null,null,null,null,null,null,null,null,{"$f":"IF(Log!A268=\"\",\"\",Log!A268)","v":""},{"$f":"IF(Log!B268=\"\",\"\",Log!B268)","v":""},{"$f":"IF(Log!C268=\"\",\"\",Log!C268)","v":""},{"$f":"IF(Log!D268=\"\",\"\",Log!D268)","v":""},null,null,null,{"$f":"IF(Log!H268=\"\",\"\",Log!H268)","v":""}]
[null,null,null,null,null,null,null,null,null,null,null,null,null,null,null,null,null,null,null,null,null,null,null,null,null,null,null,null,null,{"$f":"IF(Log!A269=\"\",\"\",Log!A269)","v":""},{"$f":"IF(Log!B269=\"\",\"\",Log!B269)","v":""},{"$f":"IF(Log!C269=\"\",\"\",Log!C269)","v":""},{"$f":"IF(Log!D269=\"\",\"\",Log!D269)","v":""},null,null,null,{"$f":"IF(Log!H269=\"\",\"\",Log!H269)","v":""}]
[null,null,null,null,null,null,null,null,null,null,null,null,null,null,null,null,null,null,null,null,null,null,null,null,null,null,null,null,null,{"$f":"IF(Log!A270=\"\",\"\",Log!A270)","v":""},{"$f":"IF(Log!B270=\"\",\"\",Log!B270)","v":""},{"$f":"IF(Log!C270=\"\",\"\",Log!C270)","v":""},{"$f":"IF(Log!D270=\"\",\"\",Log!D270)","v":""},null,null,null,{"$f":"IF(Log!H270=\"\",\"\",Log!H270)","v":""}]
[null,null,null,null,null,null,null,null,null,null,null,null,null,null,null,null,null,null,null,null,null,null,null,null,null,null,null,null,null,{"$f":"IF(Log!A271=\"\",\"\",Log!A271)","v":""},{"$f":"IF(Log!B271=\"\",\"\",Log!B271)","v":""},{"$f":"IF(Log!C271=\"\",\"\",Log!C271)","v":""},{"$f":"IF(Log!D271=\"\",\"\",Log!D271)","v":""},null,null,null,{"$f":"IF(Log!H271=\"\",\"\",Log!H271)","v":""}]
[null,null,null,null,null,null,null,null,null,null,null,null,null,null,null,null,null,null,null,null,null,null,null,null,null,null,null,null,null,{"$f":"IF(Log!A272=\"\",\"\",Log!A272)","v":""},{"$f":"IF(Log!B272=\"\",\"\",Log!B272)","v":""},{"$f":"IF(Log!C272=\"\",\"\",Log!C272)","v":""},{"$f":"IF(Log!D272=\"\",\"\",Log!D272)","v":""},null,null,null,{"$f":"IF(Log!H272=\"\",\"\",Log!H272)","v":""}]
[null,null,null,null,null,null,null,null,null,null,null,null,null,null,null,null,null,null,null,null,null,null,null,null,null,null,null,null,null,{"$f":"IF(Log!A273=\"\",\"\",Log!A273)","v":""},{"$f":"IF(Log!B273=\"\",\"\",Log!B273)","v":""},{"$f":"IF(Log!C273=\"\",\"\",Log!C273)","v":""},{"$f":"IF(Log!D273=\"\",\"\",Log!D273)","v":""},null,null,null,{"$f":"IF(Log!H273=\"\",\"\",Log!H273)","v":""}]
[null,null,null,null,null,null,null,null,null,null,null,null,null,null,null,null,null,null,null,null,null,null,null,null,null,null,null,null,null,{"$f":"IF(Log!A274=\"\",\"\",Log!A274)","v":""},{"$f":"IF(Log!B274=\"\",\"\",Log!B274)","v":""},{"$f":"IF(Log!C274=\"\",\"\",Log!C274)","v":""},{"$f":"IF(Log!D274=\"\",\"\",Log!D274)","v":""},null,null,null,{"$f":"IF(Log!H274=\"\",\"\",Log!H274)","v":""}]
[null,null,null,null,null,null,null,null,null,null,null,null,null,null,null,null,null,null,null,null,null,null,null,null,null,null,null,null,null,{"$f":"IF(Log!A275=\"\",\"\",Log!A275)","v":""},{"$f":"IF(Log!B275=\"\",\"\",Log!B275)","v":""},{"$f":"IF(Log!C275=\"\",\"\",Log!C275)","v":""},{"$f":"IF(Log!D275=\"\",\"\",Log!D275)","v":""},null,null,null,{"$f":"IF(Log!H275=\"\",\"\",Log!H275)","v":""}]
[null,null,null,null,null,null,null,null,null,null,null,null,null,null,null,null,null,null,null,null,null,null,null,null,null,null,null,null,null,{"$f":"IF(Log!A276=\"\",\"\",Log!A276)","v":""},{"$f":"IF(Log!B276=\"\",\"\",Log!B276)","v":""},{"$f":"IF(Log!C276=\"\",\"\",Log!C276)","v":""},{"$f":"IF(Log!D276=\"\",\"\",Log!D276)","v":""},null,null,null,{"$f":"IF(Log!H276=\"\",\"\",Log!H276)","v":""}]
[null,null,null,null,null,null,null,null,null,null,null,null,null,null,null,null,null,null,null,null,null,null,null,null,null,null,null,null,null,{"$f":"IF(Log!A277=\"\",\"\",Log!A277)","v":""},{"$f":"IF(Log!B277=\"\",\"\",Log!B277)","v":""},{"$f":"IF(Log!C277=\"\",\"\",Log!C277)","v":""},{"$f":"IF(Log!D277=\"\",\"\",Log!D277)","v":""},null,null,null,{"$f":"IF(Log!H277=\"\",\"\",Log!H277)","v":""}]
[null,null,null,null,null,null,null,null,null,null,null,null,null,null,null,null,null,null,null,null,null,null,null,null,null,null,null,null,null,{"$f":"IF(Log!A278=\"\",\"\",Log!A278)","v":""},{"$f":"IF(Log!B278=\"\",\"\",Log!B278)","v":""},{"$f":"IF(Log!C278=\"\",\"\",Log!C278)","v":""},{"$f":"IF(Log!D278=\"\",\"\",Log!D278)","v":""},null,null,null,{"$f":"IF(Log!H278=\"\",\"\",Log!H278)","v":""}]
[null,null,null,null,null,null,null,null,null,null,null,null,null,null,null,null,null,null,null,null,null,null,null,null,null,null,null,null,null,{"$f":"IF(Log!A279=\"\",\"\",Log!A279)","v":""},{"$f":"IF(Log!B279=\"\",\"\",Log!B279)","v":""},{"$f":"IF(Log!C279=\"\",\"\",Log!C279)","v":""},{"$f":"IF(Log!D279=\"\",\"\",Log!D279)","v":""},null,null,null,{"$f":"IF(Log!H279=\"\",\"\",Log!H279)","v":""}]
[null,null,null,null,null,null,null,null,null,null,null,null,null,null,null,null,null,null,null,null,null,null,null,null,null,null,null,null,null,{"$f":"IF(Log!A280=\"\",\"\",Log!A280)","v":""},{"$f":"IF(Log!B280=\"\",\"\",Log!B280)","v":""},{"$f":"IF(Log!C280=\"\",\"\",Log!C280)","v":""},{"$f":"IF(Log!D280=\"\",\"\",Log!D280)","v":""},null,null,null,{"$f":"IF(Log!H280=\"\",\"\",Log!H280)","v":""}]
[null,null,null,null,null,null,null,null,null,null,null,null,null,null,null,null,null,null,null,null,null,null,null,null,null,null,null,null,null,{"$f":"IF(Log!A281=\"\",\"\",Log!A281)","v":""},{"$f":"IF(Log!B281=\"\",\"\",Log!B281)","v":""},{"$f":"IF(Log!C281=\"\",\"\",Log!C281)","v":""},{"$f":"IF(Log!D281=\"\",\"\",Log!D281)","v":""},null,null,null,{"$f":"IF(Log!H281=\"\",\"\",Log!H281)","v":""}]
[null,null,null,null,null,null,null,null,null,null,null,null,null,null,null,null,null,null,null,null,null,null,null,null,null,null,null,null,null,{"$f":"IF(Log!A282=\"\",\"\",Log!A282)","v":""},{"$f":"IF(Log!B282=\"\",\"\",Log!B282)","v":""},{"$f":"IF(Log!C282=\"\",\"\",Log!C282)","v":""},{"$f":"IF(Log!D282=\"\",\"\",Log!D282)","v":""},null,null,null,{"$f":"IF(Log!H282=\"\",\"\",Log!H282)","v":""}]
[null,null,null,null,null,null,null,null,null,null,null,null,null,null,null,null,null,null,null,null,null,null,null,null,null,null,null,null,null,{"$f":"IF(Log!A283=\"\",\"\",Log!A283)","v":""},{"$f":"IF(Log!B283=\"\",\"\",Log!B283)","v":""},{"$f":"IF(Log!C283=\"\",\"\",Log!C283)","v":""},{"$f":"IF(Log!D283=\"\",\"\",Log!D283)","v":""},null,null,null,{"$f":"IF(Log!H283=\"\",\"\",Log!H283)","v":""}]
[null,null,null,null,null,null,null,null,null,null,null,null,null,null,null,null,null,null,null,null,null,null,null,null,null,null,null,null,null,{"$f":"IF(Log!A284=\"\",\"\",Log!A284)","v":""},{"$f":"IF(Log!B284=\"\",\"\",Log!B284)","v":""},{"$f":"IF(Log!C284=\"\",\"\",Log!C284)","v":""},{"$f":"IF(Log!D284=\"\",\"\",Log!D284)","v":""},null,null,null,{"$f":"IF(Log!H284=\"\",\"\",Log!H284)","v":""}]
[null,null,null,null,null,null,null,null,null,null,null,null,null,null,null,null,null,null,null,null,null,null,null,null,null,null,null,null,null,{"$f":"IF(Log!A285=\"\",\"\",Log!A285)","v":""},{"$f":"IF(Log!B285=\"\",\"\",Log!B285)","v":""},{"$f":"IF(Log!C285=\"\",\"\",Log!C285)","v":""},{"$f":"IF(Log!D285=\"\",\"\",Log!D285)","v":""},null,null,null,{"$f":"IF(Log!H285=\"\",\"\",Log!H285)","v":""}]
[null,null,null,null,null,null,null,null,null,null,null,null,null,null,null,null,null,null,null,null,null,null,null,null,null,null,null,null,null,{"$f":"IF(Log!A286=\"\",\"\",Log!A286)","v":""},{"$f":"IF(Log!B286=\"\",\"\",Log!B286)","v":""},{"$f":"IF(Log!C286=\"\",\"\",Log!C286)","v":""},{"$f":"IF(Log!D286=\"\",\"\",Log!D286)","v":""},null,null,null,{"$f":"IF(Log!H286=\"\",\"\",Log!H286)","v":""}]
[null,null,null,null,null,null,null,null,null,null,null,null,null,null,null,null,null,null,null,null,null,null,null,null,null,null,null,null,null,{"$f":"IF(Log!A287=\"\",\"\",Log!A287)","v":""},{"$f":"IF(Log!B287=\"\",\"\",Log!B287)","v":""},{"$f":"IF(Log!C287=\"\",\"\",Log!C287)","v":""},{"$f":"IF(Log!D287=\"\",\"\",Log!D287)","v":""},null,null,null,{"$f":"IF(Log!H287=\"\",\"\",Log!H287)","v":""}]
[null,null,null,null,null,null,null,null,null,null,null,null,null,null,null,null,null,null,null,null,null,null,null,null,null,null,null,null,null,{"$f":"IF(Log!A288=\"\",\"\",Log!A288)","v":""},{"$f":"IF(Log!B288=\"\",\"\",Log!B288)","v":""},{"$f":"IF(Log!C288=\"\",\"\",Log!C288)","v":""},{"$f":"IF(Log!D288=\"\",\"\",Log!D288)","v":""},null,null,null,{"$f":"IF(Log!H288=\"\",\"\",Log!H288)","v":""}]
[null,null,null,null,null,null,null,null,null,null,null,null,null,null,null,null,null,null,null,null,null,null,null,null,null,null,null,null,null,{"$f":"IF(Log!A289=\"\",\"\",Log!A289)","v":""},{"$f":"IF(Log!B289=\"\",\"\",Log!B289)","v":""},{"$f":"IF(Log!C289=\"\",\"\",Log!C289)","v":""},{"$f":"IF(Log!D289=\"\",\"\",Log!D289)","v":""},null,null,null,{"$f":"IF(Log!H289=\"\",\"\",Log!H289)","v":""}]
[null,null,null,null,null,null,null,null,null,null,null,null,null,null,null,null,null,null,null,null,null,null,null,null,null,null,null,null,null,{"$f":"IF(Log!A290=\"\",\"\",Log!A290)","v":""},{"$f":"IF(Log!B290=\"\",\"\",Log!B290)","v":""},{"$f":"IF(Log!C290=\"\",\"\",Log!C290)","v":""},{"$f":"IF(Log!D290=\"\",\"\",Log!D290)","v":""},null,null,null,{"$f":"IF(Log!H290=\"\",\"\",Log!H290)","v":""}]
[null,null,null,null,null,null,null,null,null,null,null,null,null,null,null,null,null,null,null,null,null,null,null,null,null,null,null,null,null,{"$f":"IF(Log!A291=\"\",\"\",Log!A291)","v":""},{"$f":"IF(Log!B291=\"\",\"\",Log!B291)","v":""},{"$f":"IF(Log!C291=\"\",\"\",Log!C291)","v":""},{"$f":"IF(Log!D291=\"\",\"\",Log!D291)","v":""},null,null,null,{"$f":"IF(Log!H291=\"\",\"\",Log!H291)","v":""}]
[null,null,null,null,null,null,null,null,null,null,null,null,null,null,null,null,null,null,null,null,null,null,null,null,null,null,null,null,null,{"$f":"IF(Log!A292=\"\",\"\",Log!A292)","v":""},{"$f":"IF(Log!B292=\"\",\"\",Log!B292)","v":""},{"$f":"IF(Log!C292=\"\",\"\",Log!C292)","v":""},{"$f":"IF(Log!D292=\"\",\"\",Log!D292)","v":""},null,null,null,{"$f":"IF(Log!H292=\"\",\"\",Log!H292)","v":""}]
[null,null,null,null,null,null,null,null,null,null,null,null,null,null,null,null,null,null,null,null,null,null,null,null,null,null,null,null,null,{"$f":"IF(Log!A293=\"\",\"\",Log!A293)","v":""},{"$f":"IF(Log!B293=\"\",\"\",Log!B293)","v":""},{"$f":"IF(Log!C293=\"\",\"\",Log!C293)","v":""},{"$f":"IF(Log!D293=\"\",\"\",Log!D293)","v":""},null,null,null,{"$f":"IF(Log!H293=\"\",\"\",Log!H293)","v":""}]
[null,null,null,null,null,null,null,null,null,null,null,null,null,null,null,null,null,null,null,null,null,null,null,null,null,null,null,null,null,{"$f":"IF(Log!A294=\"\",\"\",Log!A294)","v":""},{"$f":"IF(Log!B294=\"\",\"\",Log!B294)","v":""},{"$f":"IF(Log!C294=\"\",\"\",Log!C294)","v":""},{"$f":"IF(Log!D294=\"\",\"\",Log!D294)","v":""},null,null,null,{"$f":"IF(Log!H294=\"\",\"\",Log!H294)","v":""}]
[null,null,null,null,null,null,null,null,null,null,null,null,null,null,null,null,null,null,null,null,null,null,null,null,null,null,null,null,null,{"$f":"IF(Log!A295=\"\",\"\",Log!A295)","v":""},{"$f":"IF(Log!B295=\"\",\"\",Log!B295)","v":""},{"$f":"IF(Log!C295=\"\",\"\",Log!C295)","v":""},{"$f":"IF(Log!D295=\"\",\"\",Log!D295)","v":""},null,null,null,{"$f":"IF(Log!H295=\"\",\"\",Log!H295)","v":""}]
[null,null,null,null,null,null,null,null,null,null,null,null,null,null,null,null,null,null,null,null,null,null,null,null,null,null,null,null,null,{"$f":"IF(Log!A296=\"\",\"\",Log!A296)","v":""},{"$f":"IF(Log!B296=\"\",\"\",Log!B296)","v":""},{"$f":"IF(Log!C296=\"\",\"\",Log!C296)","v":""},{"$f":"IF(Log!D296=\"\",\"\",Log!D296)","v":""},null,null,null,{"$f":"IF(Log!H296=\"\",\"\",Log!H296)","v":""}]
[null,null,null,null,null,null,null,null,null,null,null,null,null,null,null,null,null,null,null,null,null,null,null,null,null,null,null,null,null,{"$f":"IF(Log!A297=\"\",\"\",Log!A297)","v":""},{"$f":"IF(Log!B297=\"\",\"\",Log!B297)","v":""},{"$f":"IF(Log!C297=\"\",\"\",Log!C297)","v":""},{"$f":"IF(Log!D297=\"\",\"\",Log!D297)","v":""},null,null,null,{"$f":"IF(Log!H297=\"\",\"\",Log!H297)","v":""}]
[null,null,null,null,null,null,null,null,null,null,null,null,null,null,null,null,null,null,null,null,null,null,null,null,null,null,null,null,null,{"$f":"IF(Log!A298=\"\",\"\",Log!A298)","v":""},{"$f":"IF(Log!B298=\"\",\"\",Log!B298)","v":""},{"$f":"IF(Log!C298=\"\",\"\",Log!C298)","v":""},{"$f":"IF(Log!D298=\"\",\"\",Log!D298)","v":""},null,null,null,{"$f":"IF(Log!H298=\"\",\"\",Log!H298)","v":""}]
[null,null,null,null,null,null,null,null,null,null,null,null,null,null,null,null,null,null,null,null,null,null,null,null,null,null,null,null,null,{"$f":"IF(Log!A299=\"\",\"\",Log!A299)","v":""},{"$f":"IF(Log!B299=\"\",\"\",Log!B299)","v":""},{"$f":"IF(Log!C299=\"\",\"\",Log!C299)","v":""},{"$f":"IF(Log!D299=\"\",\"\",Log!D299)","v":""},null,null,null,{"$f":"IF(Log!H299=\"\",\"\",Log!H299)","v":""}]
[null,null,null,null,null,null,null,null,null,null,null,null,null,null,null,null,null,null,null,null,null,null,null,null,null,null,null,null,null,{"$f":"IF(Log!A300=\"\",\"\",Log!A300)","v":""},{"$f":"IF(Log!B300=\"\",\"\",Log!B300)","v":""},{"$f":"IF(Log!C300=\"\",\"\",Log!C300)","v":""},{"$f":"IF(Log!D300=\"\",\"\",Log!D300)","v":""},null,null,null,{"$f":"IF(Log!H300=\"\",\"\",Log!H300)","v":""}]
[null,null,null,null,null,null,null,null,null,null,null,null,null,null,null,null,null,null,null,null,null,null,null,null,null,null,null,null,null,{"$f":"IF(Log!A301=\"\",\"\",Log!A301)","v":""},{"$f":"IF(Log!B301=\"\",\"\",Log!B301)","v":""},{"$f":"IF(Log!C301=\"\",\"\",Log!C301)","v":""},{"$f":"IF(Log!D301=\"\",\"\",Log!D301)","v":""},null,null,null,{"$f":"IF(Log!H301=\"\",\"\",Log!H301)","v":""}]
[null,null,null,null,null,null,null,null,null,null,null,null,null,null,null,null,null,null,null,null,null,null,null,null,null,null,null,null,null,{"$f":"IF(Log!A302=\"\",\"\",Log!A302)","v":""},{"$f":"IF(Log!B302=\"\",\"\",Log!B302)","v":""},{"$f":"IF(Log!C302=\"\",\"\",Log!C302)","v":""},{"$f":"IF(Log!D302=\"\",\"\",Log!D302)","v":""},null,null,null,{"$f":"IF(Log!H302=\"\",\"\",Log!H302)","v":""}]
[null,null,null,null,null,null,null,null,null,null,null,null,null,null,null,null,null,null,null,null,null,null,null,null,null,null,null,null,null,{"$f":"IF(Log!A303=\"\",\"\",Log!A303)","v":""},{"$f":"IF(Log!B303=\"\",\"\",Log!B303)","v":""},{"$f":"IF(Log!C303=\"\",\"\",Log!C303)","v":""},{"$f":"IF(Log!D303=\"\",\"\",Log!D303)","v":""},null,null,null,{"$f":"IF(Log!H303=\"\",\"\",Log!H303)","v":""}]
[null,null,null,null,null,null,null,null,null,null,null,null,null,null,null,null,null,null,null,null,null,null,null,null,null,null,null,null,null,{"$f":"IF(Log!A304=\"\",\"\",Log!A304)","v":""},{"$f":"IF(Log!B304=\"\",\"\",Log!B304)","v":""},{"$f":"IF(Log!C304=\"\",\"\",Log!C304)","v":""},{"$f":"IF(Log!D304=\"\",\"\",Log!D304)","v":""},null,null,null,{"$f":"IF(Log!H304=\"\",\"\",Log!H304)","v":""}]
[null,null,null,null,null,null,null,null,null,null,null,null,null,null,null,null,null,null,null,null,null,null,null,null,null,null,null,null,null,{"$f":"IF(Log!A305=\"\",\"\",Log!A305)","v":""},{"$f":"IF(Log!B305=\"\",\"\",Log!B305)","v":""},{"$f":"IF(Log!C305=\"\",\"\",Log!C305)","v":""},{"$f":"IF(Log!D305=\"\",\"\",Log!D305)","v":""},null,null,null,{"$f":"IF(Log!H305=\"\",\"\",Log!H305)","v":""}]
[null,null,null,null,null,null,null,null,null,null,null,null,null,null,null,null,null,null,null,null,null,null,null,null,null,null,null,null,null,{"$f":"IF(Log!A306=\"\",\"\",Log!A306)","v":""},{"$f":"IF(Log!B306=\"\",\"\",Log!B306)","v":""},{"$f":"IF(Log!C306=\"\",\"\",Log!C306)","v":""},{"$f":"IF(Log!D306=\"\",\"\",Log!D306)","v":""},null,null,null,{"$f":"IF(Log!H306=\"\",\"\",Log!H306)","v":""}]
[null,null,null,null,null,null,null,null,null,null,null,null,null,null,null,null,null,null,null,null,null,null,null,null,null,null,null,null,null,{"$f":"IF(Log!A307=\"\",\"\",Log!A307)","v":""},{"$f":"IF(Log!B307=\"\",\"\",Log!B307)","v":""},{"$f":"IF(Log!C307=\"\",\"\",Log!C307)","v":""},{"$f":"IF(Log!D307=\"\",\"\",Log!D307)","v":""},null,null,null,{"$f":"IF(Log!H307=\"\",\"\",Log!H307)","v":""}]
[null,null,null,null,null,null,null,null,null,null,null,null,null,null,null,null,null,null,null,null,null,null,null,null,null,null,null,null,null,{"$f":"IF(Log!A308=\"\",\"\",Log!A308)","v":""},{"$f":"IF(Log!B308=\"\",\"\",Log!B308)","v":""},{"$f":"IF(Log!C308=\"\",\"\",Log!C308)","v":""},{"$f":"IF(Log!D308=\"\",\"\",Log!D308)","v":""},null,null,null,{"$f":"IF(Log!H308=\"\",\"\",Log!H308)","v":""}]
[null,null,null,null,null,null,null,null,null,null,null,null,null,null,null,null,null,null,null,null,null,null,null,null,null,null,null,null,null,{"$f":"IF(Log!A309=\"\",\"\",Log!A309)","v":""},{"$f":"IF(Log!B309=\"\",\"\",Log!B309)","v":""},{"$f":"IF(Log!C309=\"\",\"\",Log!C309)","v":""},{"$f":"IF(Log!D309=\"\",\"\",Log!D309)","v":""},null,null,null,{"$f":"IF(Log!H309=\"\",\"\",Log!H309)","v":""}]
[null,null,null,null,null,null,null,null,null,null,null,null,null,null,null,null,null,null,null,null,null,null,null,null,null,null,null,null,null,{"$f":"IF(Log!A310=\"\",\"\",Log!A310)","v":""},{"$f":"IF(Log!B310=\"\",\"\",Log!B310)","v":""},{"$f":"IF(Log!C310=\"\",\"\",Log!C310)","v":""},{"$f":"IF(Log!D310=\"\",\"\",Log!D310)","v":""},null,null,null,{"$f":"IF(Log!H310=\"\",\"\",Log!H310)","v":""}]
[null,null,null,null,null,null,null,null,null,null,null,null,null,null,null,null,null,null,null,null,null,null,null,null,null,null,null,null,null,{"$f":"IF(Log!A311=\"\",\"\",Log!A311)","v":""},{"$f":"IF(Log!B311=\"\",\"\",Log!B311)","v":""},{"$f":"IF(Log!C311=\"\",\"\",Log!C311)","v":""},{"$f":"IF(Log!D311=\"\",\"\",Log!D311)","v":""},null,null,null,{"$f":"IF(Log!H311=\"\",\"\",Log!H311)","v":""}]
[null,null,null,null,null,null,null,null,null,null,null,null,null,null,null,null,null,null,null,null,null,null,null,null,null,null,null,null,null,{"$f":"IF(Log!A312=\"\",\"\",Log!A312)","v":""},{"$f":"IF(Log!B312=\"\",\"\",Log!B312)","v":""},{"$f":"IF(Log!C312=\"\",\"\",Log!C312)","v":""},{"$f":"IF(Log!D312=\"\",\"\",Log!D312)","v":""},null,null,null,{"$f":"IF(Log!H312=\"\",\"\",Log!H312)","v":""}]
[null,null,null,null,null,null,null,null,null,null,null,null,null,null,null,null,null,null,null,null,null,null,null,null,null,null,null,null,null,{"$f":"IF(Log!A313=\"\",\"\",Log!A313)","v":""},{"$f":"IF(Log!B313=\"\",\"\",Log!B313)","v":""},{"$f":"IF(Log!C313=\"\",\"\",Log!C313)","v":""},{"$f":"IF(Log!D313=\"\",\"\",Log!D313)","v":""},null,null,null,{"$f":"IF(Log!H313=\"\",\"\",Log!H313)","v":""}]
[null,null,null,null,null,null,null,null,null,null,null,null,null,null,null,null,null,null,null,null,null,null,null,null,null,null,null,null,null,{"$f":"IF(Log!A314=\"\",\"\",Log!A314)","v":""},{"$f":"IF(Log!B314=\"\",\"\",Log!B314)","v":""},{"$f":"IF(Log!C314=\"\",\"\",Log!C314)","v":""},{"$f":"IF(Log!D314=\"\",\"\",Log!D314)","v":""},null,null,null,{"$f":"IF(Log!H314=\"\",\"\",Log!H314)","v":""}]
[null,null,null,null,null,null,null,null,null,null,null,null,null,null,null,null,null,null,null,null,null,null,null,null,null,null,null,null,null,{"$f":"IF(Log!A315=\"\",\"\",Log!A315)","v":""},{"$f":"IF(Log!B315=\"\",\"\",Log!B315)","v":""},{"$f":"IF(Log!C315=\"\",\"\",Log!C315)","v":""},{"$f":"IF(Log!D315=\"\",\"\",Log!D315)","v":""},null,null,null,{"$f":"IF(Log!H315=\"\",\"\",Log!H315)","v":""}]
[null,null,null,null,null,null,null,null,null,null,null,null,null,null,null,null,null,null,null,null,null,null,null,null,null,null,null,null,null,{"$f":"IF(Log!A316=\"\",\"\",Log!A316)","v":""},{"$f":"IF(Log!B316=\"\",\"\",Log!B316)","v":""},{"$f":"IF(Log!C316=\"\",\"\",Log!C316)","v":""},{"$f":"IF(Log!D316=\"\",\"\",Log!D316)","v":""},null,null,null,{"$f":"IF(Log!H316=\"\",\"\",Log!H316)","v":""}]
[null,null,null,null,null,null,null,null,null,null,null,null,null,null,null,null,null,null,null,null,null,null,null,null,null,null,null,null,null,{"$f":"IF(Log!A317=\"\",\"\",Log!A317)","v":""},{"$f":"IF(Log!B317=\"\",\"\",Log!B317)","v":""},{"$f":"IF(Log!C317=\"\",\"\",Log!C317)","v":""},{"$f":"IF(Log!D317=\"\",\"\",Log!D317)","v":""},null,null,null,{"$f":"IF(Log!H317=\"\",\"\",Log!H317)","v":""}]
[null,null,null,null,null,null,null,null,null,null,null,null,null,null,null,null,null,null,null,null,null,null,null,null,null,null,null,null,null,{"$f":"IF(Log!A318=\"\",\"\",Log!A318)","v":""},{"$f":"IF(Log!B318=\"\",\"\",Log!B318)","v":""},{"$f":"IF(Log!C318=\"\",\"\",Log!C318)","v":""},{"$f":"IF(Log!D318=\"\",\"\",Log!D318)","v":""},null,null,null,{"$f":"IF(Log!H318=\"\",\"\",Log!H318)","v":""}]
[null,null,null,null,null,null,null,null,null,null,null,null,null,null,null,null,null,null,null,null,null,null,null,null,null,null,null,null,null,{"$f":"IF(Log!A319=\"\",\"\",Log!A319)","v":""},{"$f":"IF(Log!B319=\"\",\"\",Log!B319)","v":""},{"$f":"IF(Log!C319=\"\",\"\",Log!C319)","v":""},{"$f":"IF(Log!D319=\"\",\"\",Log!D319)","v":""},null,null,null,{"$f":"IF(Log!H319=\"\",\"\",Log!H319)","v":""}]
[null,null,null,null,null,null,null,null,null,null,null,null,null,null,null,null,null,null,null,null,null,null,null,null,null,null,null,null,null,{"$f":"IF(Log!A320=\"\",\"\",Log!A320)","v":""},{"$f":"IF(Log!B320=\"\",\"\",Log!B320)","v":""},{"$f":"IF(Log!C320=\"\",\"\",Log!C320)","v":""},{"$f":"IF(Log!D320=\"\",\"\",Log!D320)","v":""},null,null,null,{"$f":"IF(Log!H320=\"\",\"\",Log!H320)","v":""}]
[null,null,null,null,null,null,null,null,null,null,null,null,null,null,null,null,null,null,null,null,null,null,null,null,null,null,null,null,null,{"$f":"IF(Log!A321=\"\",\"\",Log!A321)","v":""},{"$f":"IF(Log!B321=\"\",\"\",Log!B321)","v":""},{"$f":"IF(Log!C321=\"\",\"\",Log!C321)","v":""},{"$f":"IF(Log!D321=\"\",\"\",Log!D321)","v":""},null,null,null,{"$f":"IF(Log!H321=\"\",\"\",Log!H321)","v":""}]
[null,null,null,null,null,null,null,null,null,null,null,null,null,null,null,null,null,null,null,null,null,null,null,null,null,null,null,null,null,{"$f":"IF(Log!A322=\"\",\"\",Log!A322)","v":""},{"$f":"IF(Log!B322=\"\",\"\",Log!B322)","v":""},{"$f":"IF(Log!C322=\"\",\"\",Log!C322)","v":""},{"$f":"IF(Log!D322=\"\",\"\",Log!D322)","v":""},null,null,null,{"$f":"IF(Log!H322=\"\",\"\",Log!H322)","v":""}]
[null,null,null,null,null,null,null,null,null,null,null,null,null,null,null,null,null,null,null,null,null,null,null,null,null,null,null,null,null,{"$f":"IF(Log!A323=\"\",\"\",Log!A323)","v":""},{"$f":"IF(Log!B323=\"\",\"\",Log!B323)","v":""},{"$f":"IF(Log!C323=\"\",\"\",Log!C323)","v":""},{"$f":"IF(Log!D323=\"\",\"\",Log!D323)","v":""},null,null,null,{"$f":"IF(Log!H323=\"\",\"\",Log!H323)","v":""}]
[null,null,null,null,null,null,null,null,null,null,null,null,null,null,null,null,null,null,null,null,null,null,null,null,null,null,null,null,null,{"$f":"IF(Log!A324=\"\",\"\",Log!A324)","v":""},{"$f":"IF(Log!B324=\"\",\"\",Log!B324)","v":""},{"$f":"IF(Log!C324=\"\",\"\",Log!C324)","v":""},{"$f":"IF(Log!D324=\"\",\"\",Log!D324)","v":""},null,null,null,{"$f":"IF(Log!H324=\"\",\"\",Log!H324)","v":""}]
[null,null,null,null,null,null,null,null,null,null,null,null,null,null,null,null,null,null,null,null,null,null,null,null,null,null,null,null,null,{"$f":"IF(Log!A325=\"\",\"\",Log!A325)","v":""},{"$f":"IF(Log!B325=\"\",\"\",Log!B325)","v":""},{"$f":"IF(Log!C325=\"\",\"\",Log!C325)","v":""},{"$f":"IF(Log!D325=\"\",\"\",Log!D325)","v":""},null,null,null,{"$f":"IF(Log!H325=\"\",\"\",Log!H325)","v":""}]
[null,null,null,null,null,null,null,null,null,null,null,null,null,null,null,null,null,null,null,null,null,null,null,null,null,null,null,null,null,{"$f":"IF(Log!A326=\"\",\"\",Log!A326)","v":""},{"$f":"IF(Log!B326=\"\",\"\",Log!B326)","v":""},{"$f":"IF(Log!C326=\"\",\"\",Log!C326)","v":""},{"$f":"IF(Log!D326=\"\",\"\",Log!D326)","v":""},null,null,null,{"$f":"IF(Log!H326=\"\",\"\",Log!H326)","v":""}]
[null,null,null,null,null,null,null,null,null,null,null,null,null,null,null,null,null,null,null,null,null,null,null,null,null,null,null,null,null,{"$f":"IF(Log!A327=\"\",\"\",Log!A327)","v":""},{"$f":"IF(Log!B327=\"\",\"\",Log!B327)","v":""},{"$f":"IF(Log!C327=\"\",\"\",Log!C327)","v":""},{"$f":"IF(Log!D327=\"\",\"\",Log!D327)","v":""},null,null,null,{"$f":"IF(Log!H327=\"\",\"\",Log!H327)","v":""}]
[null,null,null,null,null,null,null,null,null,null,null,null,null,null,null,null,null,null,null,null,null,null,null,null,null,null,null,null,null,{"$f":"IF(Log!A328=\"\",\"\",Log!A328)","v":""},{"$f":"IF(Log!B328=\"\",\"\",Log!B328)","v":""},{"$f":"IF(Log!C328=\"\",\"\",Log!C328)","v":""},{"$f":"IF(Log!D328=\"\",\"\",Log!D328)","v":""},null,null,null,{"$f":"IF(Log!H328=\"\",\"\",Log!H328)","v":""}]
[null,null,null,null,null,null,null,null,null,null,null,null,null,null,null,null,null,null,null,null,null,null,null,null,null,null,null,null,null,{"$f":"IF(Log!A329=\"\",\"\",Log!A329)","v":""},{"$f":"IF(Log!B329=\"\",\"\",Log!B329)","v":""},{"$f":"IF(Log!C329=\"\",\"\",Log!C329)","v":""},{"$f":"IF(Log!D329=\"\",\"\",Log!D329)","v":""},null,null,null,{"$f":"IF(Log!H329=\"\",\"\",Log!H329)","v":""}]
[null,null,null,null,null,null,null,null,null,null,null,null,null,null,null,null,null,null,null,null,null,null,null,null,null,null,null,null,null,{"$f":"IF(Log!A330=\"\",\"\",Log!A330)","v":""},{"$f":"IF(Log!B330=\"\",\"\",Log!B330)","v":""},{"$f":"IF(Log!C330=\"\",\"\",Log!C330)","v":""},{"$f":"IF(Log!D330=\"\",\"\",Log!D330)","v":""},null,null,null,{"$f":"IF(Log!H330=\"\",\"\",Log!H330)","v":""}]
[null,null,null,null,null,null,null,null,null,null,null,null,null,null,null,null,null,null,null,null,null,null,null,null,null,null,null,null,null,{"$f":"IF(Log!A331=\"\",\"\",Log!A331)","v":""},{"$f":"IF(Log!B331=\"\",\"\",Log!B331)","v":""},{"$f":"IF(Log!C331=\"\",\"\",Log!C331)","v":""},{"$f":"IF(Log!D331=\"\",\"\",Log!D331)","v":""},null,null,null,{"$f":"IF(Log!H331=\"\",\"\",Log!H331)","v":""}]
[null,null,null,null,null,null,null,null,null,null,null,null,null,null,null,null,null,null,null,null,null,null,null,null,null,null,null,null,null,{"$f":"IF(Log!A332=\"\",\"\",Log!A332)","v":""},{"$f":"IF(Log!B332=\"\",\"\",Log!B332)","v":""},{"$f":"IF(Log!C332=\"\",\"\",Log!C332)","v":""},{"$f":"IF(Log!D332=\"\",\"\",Log!D332)","v":""},null,null,null,{"$f":"IF(Log!H332=\"\",\"\",Log!H332)","v":""}]
[null,null,null,null,null,null,null,null,null,null,null,null,null,null,null,null,null,null,null,null,null,null,null,null,null,null,null,null,null,{"$f":"IF(Log!A333=\"\",\"\",Log!A333)","v":""},{"$f":"IF(Log!B333=\"\",\"\",Log!B333)","v":""},{"$f":"IF(Log!C333=\"\",\"\",Log!C333)","v":""},{"$f":"IF(Log!D333=\"\",\"\",Log!D333)","v":""},null,null,null,{"$f":"IF(Log!H333=\"\",\"\",Log!H333)","v":""}]
[null,null,null,null,null,null,null,null,null,null,null,null,null,null,null,null,null,null,null,null,null,null,null,null,null,null,null,null,null,{"$f":"IF(Log!A334=\"\",\"\",Log!A334)","v":""},{"$f":"IF(Log!B334=\"\",\"\",Log!B334)","v":""},{"$f":"IF(Log!C334=\"\",\"\",Log!C334)","v":""},{"$f":"IF(Log!D334=\"\",\"\",Log!D334)","v":""},null,null,null,{"$f":"IF(Log!H334=\"\",\"\",Log!H334)","v":""}]
[null,null,null,null,null,null,null,null,null,null,null,null,null,null,null,null,null,null,null,null,null,null,null,null,null,null,null,null,null,{"$f":"IF(Log!A335=\"\",\"\",Log!A335)","v":""},{"$f":"IF(Log!B335=\"\",\"\",Log!B335)","v":""},{"$f":"IF(Log!C335=\"\",\"\",Log!C335)","v":""},{"$f":"IF(Log!D335=\"\",\"\",Log!D335)","v":""},null,null,null,{"$f":"IF(Log!H335=\"\",\"\",Log!H335)","v":""}]
[null,null,null,null,null,null,null,null,null,null,null,null,null,null,null,null,null,null,null,null,null,null,null,null,null,null,null,null,null,{"$f":"IF(Log!A336=\"\",\"\",Log!A336)","v":""},{"$f":"IF(Log!B336=\"\",\"\",Log!B336)","v":""},{"$f":"IF(Log!C336=\"\",\"\",Log!C336)","v":""},{"$f":"IF(Log!D336=\"\",\"\",Log!D336)","v":""},null,null,null,{"$f":"IF(Log!H336=\"\",\"\",Log!H336)","v":""}]
[null,null,null,null,null,null,null,null,null,null,null,null,null,null,null,null,null,null,null,null,null,null,null,null,null,null,null,null,null,{"$f":"IF(Log!A337=\"\",\"\",Log!A337)","v":""},{"$f":"IF(Log!B337=\"\",\"\",Log!B337)","v":""},{"$f":"IF(Log!C337=\"\",\"\",Log!C337)","v":""},{"$f":"IF(Log!D337=\"\",\"\",Log!D337)","v":""},null,null,null,{"$f":"IF(Log!H337=\"\",\"\",Log!H337)","v":""}]
[null,null,null,null,null,null,null,null,null,null,null,null,null,null,null,null,null,null,null,null,null,null,null,null,null,null,null,null,null,{"$f":"IF(Log!A338=\"\",\"\",Log!A338)","v":""},{"$f":"IF(Log!B338=\"\",\"\",Log!B338)","v":""},{"$f":"IF(Log!C338=\"\",\"\",Log!C338)","v":""},{"$f":"IF(Log!D338=\"\",\"\",Log!D338)","v":""},null,null,null,{"$f":"IF(Log!H338=\"\",\"\",Log!H338)","v":""}]
[null,null,null,null,null,null,null,null,null,null,null,null,null,null,null,null,null,null,null,null,null,null,null,null,null,null,null,null,null,{"$f":"IF(Log!A339=\"\",\"\",Log!A339)","v":""},{"$f":"IF(Log!B339=\"\",\"\",Log!B339)","v":""},{"$f":"IF(Log!C339=\"\",\"\",Log!C339)","v":""},{"$f":"IF(Log!D339=\"\",\"\",Log!D339)","v":""},null,null,null,{"$f":"IF(Log!H339=\"\",\"\",Log!H339)","v":""}]
[null,null,null,null,null,null,null,null,null,null,null,null,null,null,null,null,null,null,null,null,null,null,null,null,null,null,null,null,null,{"$f":"IF(Log!A340=\"\",\"\",Log!A340)","v":""},{"$f":"IF(Log!B340=\"\",\"\",Log!B340)","v":""},{"$f":"IF(Log!C340=\"\",\"\",Log!C340)","v":""},{"$f":"IF(Log!D340=\"\",\"\",Log!D340)","v":""},null,null,null,{"$f":"IF(Log!H340=\"\",\"\",Log!H340)","v":""}]
[null,null,null,null,null,null,null,null,null,null,null,null,null,null,null,null,null,null,null,null,null,null,null,null,null,null,null,null,null,{"$f":"IF(Log!A341=\"\",\"\",Log!A341)","v":""},{"$f":"IF(Log!B341=\"\",\"\",Log!B341)","v":""},{"$f":"IF(Log!C341=\"\",\"\",Log!C341)","v":""},{"$f":"IF(Log!D341=\"\",\"\",Log!D341)","v":""},null,null,null,{"$f":"IF(Log!H341=\"\",\"\",Log!H341)","v":""}]
[null,null,null,null,null,null,null,null,null,null,null,null,null,null,null,null,null,null,null,null,null,null,null,null,null,null,null,null,null,{"$f":"IF(Log!A342=\"\",\"\",Log!A342)","v":""},{"$f":"IF(Log!B342=\"\",\"\",Log!B342)","v":""},{"$f":"IF(Log!C342=\"\",\"\",Log!C342)","v":""},{"$f":"IF(Log!D342=\"\",\"\",Log!D342)","v":""},null,null,null,{"$f":"IF(Log!H342=\"\",\"\",Log!H342)","v":""}]
[null,null,null,null,null,null,null,null,null,null,null,null,null,null,null,null,null,null,null,null,null,null,null,null,null,null,null,null,null,{"$f":"IF(Log!A343=\"\",\"\",Log!A343)","v":""},{"$f":"IF(Log!B343=\"\",\"\",Log!B343)","v":""},{"$f":"IF(Log!C343=\"\",\"\",Log!C343)","v":""},{"$f":"IF(Log!D343=\"\",\"\",Log!D343)","v":""},null,null,null,{"$f":"IF(Log!H343=\"\",\"\",Log!H343)","v":""}]
[null,null,null,null,null,null,null,null,null,null,null,null,null,null,null,null,null,null,null,null,null,null,null,null,null,null,null,null,null,{"$f":"IF(Log!A344=\"\",\"\",Log!A344)","v":""},{"$f":"IF(Log!B344=\"\",\"\",Log!B344)","v":""},{"$f":"IF(Log!C344=\"\",\"\",Log!C344)","v":""},{"$f":"IF(Log!D344=\"\",\"\",Log!D344)","v":""},null,null,null,{"$f":"IF(Log!H344=\"\",\"\",Log!H344)","v":""}]
[null,null,null,null,null,null,null,null,null,null,null,null,null,null,null,null,null,null,null,null,null,null,null,null,null,null,null,null,null,{"$f":"IF(Log!A345=\"\",\"\",Log!A345)","v":""},{"$f":"IF(Log!B345=\"\",\"\",Log!B345)","v":""},{"$f":"IF(Log!C345=\"\",\"\",Log!C345)","v":""},{"$f":"IF(Log!D345=\"\",\"\",Log!D345)","v":""},null,null,null,{"$f":"IF(Log!H345=\"\",\"\",Log!H345)","v":""}]
[null,null,null,null,null,null,null,null,null,null,null,null,null,null,null,null,null,null,null,null,null,null,null,null,null,null,null,null,null,{"$f":"IF(Log!A346=\"\",\"\",Log!A346)","v":""},{"$f":"IF(Log!B346=\"\",\"\",Log!B346)","v":""},{"$f":"IF(Log!C346=\"\",\"\",Log!C346)","v":""},{"$f":"IF(Log!D346=\"\",\"\",Log!D346)","v":""},null,null,null,{"$f":"IF(Log!H346=\"\",\"\",Log!H346)","v":""}]
[null,null,null,null,null,null,null,null,null,null,null,null,null,null,null,null,null,null,null,null,null,null,null,null,null,null,null,null,null,{"$f":"IF(Log!A347=\"\",\"\",Log!A347)","v":""},{"$f":"IF(Log!B347=\"\",\"\",Log!B347)","v":""},{"$f":"IF(Log!C347=\"\",\"\",Log!C347)","v":""},{"$f":"IF(Log!D347=\"\",\"\",Log!D347)","v":""},null,null,null,{"$f":"IF(Log!H347=\"\",\"\",Log!H347)","v":""}]
[null,null,null,null,null,null,null,null,null,null,null,null,null,null,null,null,null,null,null,null,null,null,null,null,null,null,null,null,null,{"$f":"IF(Log!A348=\"\",\"\",Log!A348)","v":""},{"$f":"IF(Log!B348=\"\",\"\",Log!B348)","v":""},{"$f":"IF(Log!C348=\"\",\"\",Log!C348)","v":""},{"$f":"IF(Log!D348=\"\",\"\",Log!D348)","v":""},null,null,null,{"$f":"IF(Log!H348=\"\",\"\",Log!H348)","v":""}]
[null,null,null,null,null,null,null,null,null,null,null,null,null,null,null,null,null,null,null,null,null,null,null,null,null,null,null,null,null,{"$f":"IF(Log!A349=\"\",\"\",Log!A349)","v":""},{"$f":"IF(Log!B349=\"\",\"\",Log!B349)","v":""},{"$f":"IF(Log!C349=\"\",\"\",Log!C349)","v":""},{"$f":"IF(Log!D349=\"\",\"\",Log!D349)","v":""},null,null,null,{"$f":"IF(Log!H349=\"\",\"\",Log!H349)","v":""}]
[null,null,null,null,null,null,null,null,null,null,null,null,null,null,null,null,null,null,null,null,null,null,null,null,null,null,null,null,null,{"$f":"IF(Log!A350=\"\",\"\",Log!A350)","v":""},{"$f":"IF(Log!B350=\"\",\"\",Log!B350)","v":""},{"$f":"IF(Log!C350=\"\",\"\",Log!C350)","v":""},{"$f":"IF(Log!D350=\"\",\"\",Log!D350)","v":""},null,null,null,{"$f":"IF(Log!H350=\"\",\"\",Log!H350)","v":""}]
[null,null,null,null,null,null,null,null,null,null,null,null,null,null,null,null,null,null,null,null,null,null,null,null,null,null,null,null,null,{"$f":"IF(Log!A351=\"\",\"\",Log!A351)","v":""},{"$f":"IF(Log!B351=\"\",\"\",Log!B351)","v":""},{"$f":"IF(Log!C351=\"\",\"\",Log!C351)","v":""},{"$f":"IF(Log!D351=\"\",\"\",Log!D351)","v":""},null,null,null,{"$f":"IF(Log!H351=\"\",\"\",Log!H351)","v":""}]
[null,null,null,null,null,null,null,null,null,null,null,null,null,null,null,null,null,null,null,null,null,null,null,null,null,null,null,null,null,{"$f":"IF(Log!A352=\"\",\"\",Log!A352)","v":""},{"$f":"IF(Log!B352=\"\",\"\",Log!B352)","v":""},{"$f":"IF(Log!C352=\"\",\"\",Log!C352)","v":""},{"$f":"IF(Log!D352=\"\",\"\",Log!D352)","v":""},null,null,null,{"$f":"IF(Log!H352=\"\",\"\",Log!H352)","v":""}]
[null,null,null,null,null,null,null,null,null,null,null,null,null,null,null,null,null,null,null,null,null,null,null,null,null,null,null,null,null,{"$f":"IF(Log!A353=\"\",\"\",Log!A353)","v":""},{"$f":"IF(Log!B353=\"\",\"\",Log!B353)","v":""},{"$f":"IF(Log!C353=\"\",\"\",Log!C353)","v":""},{"$f":"IF(Log!D353=\"\",\"\",Log!D353)","v":""},null,null,null,{"$f":"IF(Log!H353=\"\",\"\",Log!H353)","v":""}]
[null,null,null,null,null,null,null,null,null,null,null,null,null,null,null,null,null,null,null,null,null,null,null,null,null,null,null,null,null,{"$f":"IF(Log!A354=\"\",\"\",Log!A354)","v":""},{"$f":"IF(Log!B354=\"\",\"\",Log!B354)","v":""},{"$f":"IF(Log!C354=\"\",\"\",Log!C354)","v":""},{"$f":"IF(Log!D354=\"\",\"\",Log!D354)","v":""},null,null,null,{"$f":"IF(Log!H354=\"\",\"\",Log!H354)","v":""}]
[null,null,null,null,null,null,null,null,null,null,null,null,null,null,null,null,null,null,null,null,null,null,null,null,null,null,null,null,null,{"$f":"IF(Log!A355=\"\",\"\",Log!A355)","v":""},{"$f":"IF(Log!B355=\"\",\"\",Log!B355)","v":""},{"$f":"IF(Log!C355=\"\",\"\",Log!C355)","v":""},{"$f":"IF(Log!D355=\"\",\"\",Log!D355)","v":""},null,null,null,{"$f":"IF(Log!H355=\"\",\"\",Log!H355)","v":""}]
[null,null,null,null,null,null,null,null,null,null,null,null,null,null,null,null,null,null,null,null,null,null,null,null,null,null,null,null,null,{"$f":"IF(Log!A356=\"\",\"\",Log!A356)","v":""},{"$f":"IF(Log!B356=\"\",\"\",Log!B356)","v":""},{"$f":"IF(Log!C356=\"\",\"\",Log!C356)","v":""},{"$f":"IF(Log!D356=\"\",\"\",Log!D356)","v":""},null,null,null,{"$f":"IF(Log!H356=\"\",\"\",Log!H356)","v":""}]
[null,null,null,null,null,null,null,null,null,null,null,null,null,null,null,null,null,null,null,null,null,null,null,null,null,null,null,null,null,{"$f":"IF(Log!A357=\"\",\"\",Log!A357)","v":""},{"$f":"IF(Log!B357=\"\",\"\",Log!B357)","v":""},{"$f":"IF(Log!C357=\"\",\"\",Log!C357)","v":""},{"$f":"IF(Log!D357=\"\",\"\",Log!D357)","v":""},null,null,null,{"$f":"IF(Log!H357=\"\",\"\",Log!H357)","v":""}]
[null,null,null,null,null,null,null,null,null,null,null,null,null,null,null,null,null,null,null,null,null,null,null,null,null,null,null,null,null,{"$f":"IF(Log!A358=\"\",\"\",Log!A358)","v":""},{"$f":"IF(Log!B358=\"\",\"\",Log!B358)","v":""},{"$f":"IF(Log!C358=\"\",\"\",Log!C358)","v":""},{"$f":"IF(Log!D358=\"\",\"\",Log!D358)","v":""},null,null,null,{"$f":"IF(Log!H358=\"\",\"\",Log!H358)","v":""}]
[null,null,null,null,null,null,null,null,null,null,null,null,null,null,null,null,null,null,null,null,null,null,null,null,null,null,null,null,null,{"$f":"IF(Log!A359=\"\",\"\",Log!A359)","v":""},{"$f":"IF(Log!B359=\"\",\"\",Log!B359)","v":""},{"$f":"IF(Log!C359=\"\",\"\",Log!C359)","v":""},{"$f":"IF(Log!D359=\"\",\"\",Log!D359)","v":""},null,null,null,{"$f":"IF(Log!H359=\"\",\"\",Log!H359)","v":""}]
[null,null,null,null,null,null,null,null,null,null,null,null,null,null,null,null,null,null,null,null,null,null,null,null,null,null,null,null,null,{"$f":"IF(Log!A360=\"\",\"\",Log!A360)","v":""},{"$f":"IF(Log!B360=\"\",\"\",Log!B360)","v":""},{"$f":"IF(Log!C360=\"\",\"\",Log!C360)","v":""},{"$f":"IF(Log!D360=\"\",\"\",Log!D360)","v":""},null,null,null,{"$f":"IF(Log!H360=\"\",\"\",Log!H360)","v":""}]
[null,null,null,null,null,null,null,null,null,null,null,null,null,null,null,null,null,null,null,null,null,null,null,null,null,null,null,null,null,{"$f":"IF(Log!A361=\"\",\"\",Log!A361)","v":""},{"$f":"IF(Log!B361=\"\",\"\",Log!B361)","v":""},{"$f":"IF(Log!C361=\"\",\"\",Log!C361)","v":""},{"$f":"IF(Log!D361=\"\",\"\",Log!D361)","v":""},null,null,null,{"$f":"IF(Log!H361=\"\",\"\",Log!H361)","v":""}]
[null,null,null,null,null,null,null,null,null,null,null,null,null,null,null,null,null,null,null,null,null,null,null,null,null,null,null,null,null,{"$f":"IF(Log!A362=\"\",\"\",Log!A362)","v":""},{"$f":"IF(Log!B362=\"\",\"\",Log!B362)","v":""},{"$f":"IF(Log!C362=\"\",\"\",Log!C362)","v":""},{"$f":"IF(Log!D362=\"\",\"\",Log!D362)","v":""},null,null,null,{"$f":"IF(Log!H362=\"\",\"\",Log!H362)","v":""}]
[null,null,null,null,null,null,null,null,null,null,null,null,null,null,null,null,null,null,null,null,null,null,null,null,null,null,null,null,null,{"$f":"IF(Log!A363=\"\",\"\",Log!A363)","v":""},{"$f":"IF(Log!B363=\"\",\"\",Log!B363)","v":""},{"$f":"IF(Log!C363=\"\",\"\",Log!C363)","v":""},{"$f":"IF(Log!D363=\"\",\"\",Log!D363)","v":""},null,null,null,{"$f":"IF(Log!H363=\"\",\"\",Log!H363)","v":""}]
[null,null,null,null,null,null,null,null,null,null,null,null,null,null,null,null,null,null,null,null,null,null,null,null,null,null,null,null,null,{"$f":"IF(Log!A364=\"\",\"\",Log!A364)","v":""},{"$f":"IF(Log!B364=\"\",\"\",Log!B364)","v":""},{"$f":"IF(Log!C364=\"\",\"\",Log!C364)","v":""},{"$f":"IF(Log!D364=\"\",\"\",Log!D364)","v":""},null,null,null,{"$f":"IF(Log!H364=\"\",\"\",Log!H364)","v":""}]
[null,null,null,null,null,null,null,null,null,null,null,null,null,null,null,null,null,null,null,null,null,null,null,null,null,null,null,null,null,{"$f":"IF(Log!A365=\"\",\"\",Log!A365)","v":""},{"$f":"IF(Log!B365=\"\",\"\",Log!B365)","v":""},{"$f":"IF(Log!C365=\"\",\"\",Log!C365)","v":""},{"$f":"IF(Log!D365=\"\",\"\",Log!D365)","v":""},null,null,null,{"$f":"IF(Log!H365=\"\",\"\",Log!H365)","v":""}]
[null,null,null,null,null,null,null,null,null,null,null,null,null,null,null,null,null,null,null,null,null,null,null,null,null,null,null,null,null,{"$f":"IF(Log!A366=\"\",\"\",Log!A366)","v":""},{"$f":"IF(Log!B366=\"\",\"\",Log!B366)","v":""},{"$f":"IF(Log!C366=\"\",\"\",Log!C366)","v":""},{"$f":"IF(Log!D366=\"\",\"\",Log!D366)","v":""},null,null,null,{"$f":"IF(Log!H366=\"\",\"\",Log!H366)","v":""}]
[null,null,null,null,null,null,null,null,null,null,null,null,null,null,null,null,null,null,null,null,null,null,null,null,null,null,null,null,null,{"$f":"IF(Log!A367=\"\",\"\",Log!A367)","v":""},{"$f":"IF(Log!B367=\"\",\"\",Log!B367)","v":""},{"$f":"IF(Log!C367=\"\",\"\",Log!C367)","v":""},{"$f":"IF(Log!D367=\"\",\"\",Log!D367)","v":""},null,null,null,{"$f":"IF(Log!H367=\"\",\"\",Log!H367)","v":""}]
[null,null,null,null,null,null,null,null,null,null,null,null,null,null,null,null,null,null,null,null,null,null,null,null,null,null,null,null,null,{"$f":"IF(Log!A368=\"\",\"\",Log!A368)","v":""},{"$f":"IF(Log!B368=\"\",\"\",Log!B368)","v":""},{"$f":"IF(Log!C368=\"\",\"\",Log!C368)","v":""},{"$f":"IF(Log!D368=\"\",\"\",Log!D368)","v":""},null,null,null,{"$f":"IF(Log!H368=\"\",\"\",Log!H368)","v":""}]
[null,null,null,null,null,null,null,null,null,null,null,null,null,null,null,null,null,null,null,null,null,null,null,null,null,null,null,null,null,{"$f":"IF(Log!A369=\"\",\"\",Log!A369)","v":""},{"$f":"IF(Log!B369=\"\",\"\",Log!B369)","v":""},{"$f":"IF(Log!C369=\"\",\"\",Log!C369)","v":""},{"$f":"IF(Log!D369=\"\",\"\",Log!D369)","v":""},null,null,null,{"$f":"IF(Log!H369=\"\",\"\",Log!H369)","v":""}]
[null,null,null,null,null,null,null,null,null,null,null,null,null,null,null,null,null,null,null,null,null,null,null,null,null,null,null,null,null,{"$f":"IF(Log!A370=\"\",\"\",Log!A370)","v":""},{"$f":"IF(Log!B370=\"\",\"\",Log!B370)","v":""},{"$f":"IF(Log!C370=\"\",\"\",Log!C370)","v":""},{"$f":"IF(Log!D370=\"\",\"\",Log!D370)","v":""},null,null,null,{"$f":"IF(Log!H370=\"\",\"\",Log!H370)","v":""}]
[null,null,null,null,null,null,null,null,null,null,null,null,null,null,null,null,null,null,null,null,null,null,null,null,null,null,null,null,null,{"$f":"IF(Log!A371=\"\",\"\",Log!A371)","v":""},{"$f":"IF(Log!B371=\"\",\"\",Log!B371)","v":""},{"$f":"IF(Log!C371=\"\",\"\",Log!C371)","v":""},{"$f":"IF(Log!D371=\"\",\"\",Log!D371)","v":""},null,null,null,{"$f":"IF(Log!H371=\"\",\"\",Log!H371)","v":""}]
[null,null,null,null,null,null,null,null,null,null,null,null,null,null,null,null,null,null,null,null,null,null,null,null,null,null,null,null,null,{"$f":"IF(Log!A372=\"\",\"\",Log!A372)","v":""},{"$f":"IF(Log!B372=\"\",\"\",Log!B372)","v":""},{"$f":"IF(Log!C372=\"\",\"\",Log!C372)","v":""},{"$f":"IF(Log!D372=\"\",\"\",Log!D372)","v":""},null,null,null,{"$f":"IF(Log!H372=\"\",\"\",Log!H372)","v":""}]
[null,null,null,null,null,null,null,null,null,null,null,null,null,null,null,null,null,null,null,null,null,null,null,null,null,null,null,null,null,{"$f":"IF(Log!A373=\"\",\"\",Log!A373)","v":""},{"$f":"IF(Log!B373=\"\",\"\",Log!B373)","v":""},{"$f":"IF(Log!C373=\"\",\"\",Log!C373)","v":""},{"$f":"IF(Log!D373=\"\",\"\",Log!D373)","v":""},null,null,null,{"$f":"IF(Log!H373=\"\",\"\",Log!H373)","v":""}]
[null,null,null,null,null,null,null,null,null,null,null,null,null,null,null,null,null,null,null,null,null,null,null,null,null,null,null,null,null,{"$f":"IF(Log!A374=\"\",\"\",Log!A374)","v":""},{"$f":"IF(Log!B374=\"\",\"\",Log!B374)","v":""},{"$f":"IF(Log!C374=\"\",\"\",Log!C374)","v":""},{"$f":"IF(Log!D374=\"\",\"\",Log!D374)","v":""},null,null,null,{"$f":"IF(Log!H374=\"\",\"\",Log!H374)","v":""}]
[null,null,null,null,null,null,null,null,null,null,null,null,null,null,null,null,null,null,null,null,null,null,null,null,null,null,null,null,null,{"$f":"IF(Log!A375=\"\",\"\",Log!A375)","v":""},{"$f":"IF(Log!B375=\"\",\"\",Log!B375)","v":""},{"$f":"IF(Log!C375=\"\",\"\",Log!C375)","v":""},{"$f":"IF(Log!D375=\"\",\"\",Log!D375)","v":""},null,null,null,{"$f":"IF(Log!H375=\"\",\"\",Log!H375)","v":""}]
[null,null,null,null,null,null,null,null,null,null,null,null,null,null,null,null,null,null,null,null,null,null,null,null,null,null,null,null,null,{"$f":"IF(Log!A376=\"\",\"\",Log!A376)","v":""},{"$f":"IF(Log!B376=\"\",\"\",Log!B376)","v":""},{"$f":"IF(Log!C376=\"\",\"\",Log!C376)","v":""},{"$f":"IF(Log!D376=\"\",\"\",Log!D376)","v":""},null,null,null,{"$f":"IF(Log!H376=\"\",\"\",Log!H376)","v":""}]
[null,null,null,null,null,null,null,null,null,null,null,null,null,null,null,null,null,null,null,null,null,null,null,null,null,null,null,null,null,{"$f":"IF(Log!A377=\"\",\"\",Log!A377)","v":""},{"$f":"IF(Log!B377=\"\",\"\",Log!B377)","v":""},{"$f":"IF(Log!C377=\"\",\"\",Log!C377)","v":""},{"$f":"IF(Log!D377=\"\",\"\",Log!D377)","v":""},null,null,null,{"$f":"IF(Log!H377=\"\",\"\",Log!H377)","v":""}]

{"sheet":"Sources","index":1,"n_rows":28,"n_cols":10,"rows_kept":28,"cut":false,"hidden":false,"merged":[]}
[]
["No.","Capacity","Systém"]
[3,1,{"$f":"Seznamy!C2","v":"Portál"}]
[null,null,"     FileID",2,3,4,5,6,7,1]
[null,null,"     FileName","žádost","žádost","žádost","žádost","žádost","žádost","žádost"]
[null,null,"     FileType","Povolení záměru","Povolení záměru","Povolení záměru","Povolení záměru","Povolení záměru","Povolení záměru","Povolení záměru"]
[null,null,"     CurrentSystem","Portál","Portál","Portál","Portál","Portál","Portál","Portál"]
[null,null,"     Content","Nic","Nic","Nic","Nic","Nic","Nic","Nic"]
[4,3,{"$f":"Seznamy!C3","v":"Stavební úřad"}]
[5,1,{"$f":"Seznamy!C4","v":"Požárníci"}]
[6,1,{"$f":"Seznamy!C5","v":"Památkáři"}]
[7,1,{"$f":"Seznamy!C6","v":"Ochrana přírody"}]
[8,1,{"$f":"Seznamy!C7","v":"Sousedé"}]
[9,1,{"$f":"Seznamy!C8","v":"Operátoři"}]
[10,null,{"$f":"Seznamy!C9","v":"Ministerstvo ŽP"}]
[11,null,{"$f":"Seznamy!C10","v":"Soud"}]
[12,null,{"$f":"Seznamy!C11","v":"Investor"}]
[13,null,{"$f":"Seznamy!C12","v":"Další dotčené orgány"}]
[14,null,{"$f":"Seznamy!C13","v":"Majitel stavající infrasturktury"}]
[15,null,{"$f":"Seznamy!C14","v":"Obec"}]
[16,null,{"$f":"Seznamy!C15","v":"Poskytovatel dotace"}]
[17,null,{"$f":"Seznamy!C16","v":"Stavební firma"}]
[18,null,{"$f":"Seznamy!C17","v":"Další systém 16"}]
[19,null,{"$f":"Seznamy!C18","v":"Další systém 17"}]
[20,null,{"$f":"Seznamy!C19","v":"Další systém 18"}]
[21,null,{"$f":"Seznamy!C20","v":"Další systém 19"}]
[22,null,{"$f":"Seznamy!C21","v":"Další systém 20"}]
[23,null,"LogFile"]

{"sheet":"DataFiles","index":2,"n_rows":6,"n_cols":9,"rows_kept":6,"cut":false,"hidden":false,"merged":[]}
["FileID","FileName","FileType","CurrentSystem","NextSystem","What was done in this trigger step:","Počet","TimeStamp","B"]
[1,"žádost","Schváleno PO","Stavební úřad",null,"The application number 1 is resolved",1,45848.348330787034]
[1,"žádost","Schváleno Pam","Stavební úřad",null,"The application number 1 is resolved",1,45848.348338194446]
[1,"žádost","Posouzení záměru OP","Ochrana přírody",null,"The application number 1 is resolved",1,45848.347627314812]
[1,"žádost","Posouzení záměru Sous","Sousedé",null,"The application number 1 is resolved",1,45848.347630324075]
[1,"žádost","Posouzení záměru DDO","Další dotčené orgány",null,"The response to the application number 1 has been returned to the building office.",1,45848.347633217592]

{"sheet":"Systems","index":3,"n_rows":35,"n_cols":62,"rows_kept":35,"cut":false,"hidden":false,"merged":[]}
["FileID","FileName","FileType","CurrentSystem","NextSystem","Content","Počet","TimeStamp","Aktuální pracnost",null,null,null,null,null,null,null,null,null,null,null,null,null,null,null,null,null,"SystemID","SystemName","FileType","Formula","IF","Delay","NextFileTypePlus","NextFileTypeMinus","NextSystemPlus","NextSystemMinus","What was done in this trigger step:","ContentMinus","StringPlus","StringMinus","EventPlus","EventMinus",null,"Capacity","Počet",null,null,null,null,null,null,null,"NewFileID","NewFileName","NewFileType","NewSystems","NewNextSystem","NewContent",0,"TimeStamp","Pracnost plánovaná","Pracnost aktuální"]
[1,"žádost","Posouzení záměru DDO","Další dotčené orgány",null,"as well as is ready for comments from other relevant authorities.",5,45848.347633217592,null,null,null,null,null,null,null,null,null,null,null,null,null,null,null,null,null,null,"N","Portál","Povolení záměru",null,null,null,"Posouzení záměru SÚ",null,"Stavební úřad",null,{"$f":"\"The request number \"&A2&\" has been forwarded to the building office.\"","v":"The request number 1 has been forwarded to the building office."},null,null,null,null,null,null,{"$f":"_xlfn.XLOOKUP(AB2,Seznamy!C$2:C$100,Seznamy!D$2:D$100,\"\")","v":10},{"$f":"_xlfn.XLOOKUP(AI2,Seznamy!C$2:C$100,Seznamy!E$2:E$100,\"\")","v":0},null,null,null,null,null,null,null,{"$f":"IF(AND($C2=$AC2,$D2=$AB2),$A2,\"\")","v":""},{"$f":"IF($BA2=\"\",\"\",B2)","v":""},{"$f":"IF($BA2=\"\",\"\",IF($AS2<=$AR2,$AG2,$C2))","v":""},{"$f":"IF($BA2=\"\",\"\",IF($AS2<=$AR2,$AI2,$D2))","v":""},{"$f":"IF(BA2=\"\",\"\",IF(E2=\"\",\"\",E2))","v":""},{"$f":"IF($BA2=\"\",\"\",IF($AE2=\"\",$AK2,$AL2))","v":""},{"$f":"IF(BA2=\"\",BG1,1+BG1)","v":0},{"$f":"IF($BA2=\"\",\"\",IF(BD2=D2,H2,NOW()))","v":""},{"$f":"_xlfn.XLOOKUP(BC2,Seznamy!A:A,Seznamy!B:B,\"\")","v":""}]
[{"$f":"A2","v":1},"žádost","Posouzení záměru DDO","Další dotčené orgány",0,"as well as is ready for comments from other relevant authorities.",5,45848.347633217592,null,null,null,null,null,null,null,null,null,null,null,null,null,null,null,null,null,null,1,"Portál","Žádost o koladaci",null,null,null,"Příprava kolaudace",null,"Stavební úřad",null,{"$f":"\"The request number \"&A3&\" has been forwarded to the building office.\"","v":"The request number 1 has been forwarded to the building office."},null,null,null,null,null,null,{"$f":"_xlfn.XLOOKUP(AB3,Seznamy!C$2:C$100,Seznamy!D$2:D$100,\"\")","v":10},{"$f":"_xlfn.XLOOKUP(AI3,Seznamy!C$2:C$100,Seznamy!E$2:E$100,\"\")","v":0}]
[1,"žádost","Posouzení záměru DDO","Další dotčené orgány",0,"as well as is ready for comments from other relevant authorities.",5,45848.347633217592,null,null,null,null,null,null,null,null,null,null,null,null,null,null,null,null,null,null,1,"Portál","Žádost o povolení užívání",null,null,null,"Příprava povolení užívání",null,"Stavební úřad",null,{"$f":"\"The request number \"&A4&\" has been forwarded to the building office.\"","v":"The request number 1 has been forwarded to the building office."},null,null,null,null,null,null,{"$f":"_xlfn.XLOOKUP(AB4,Seznamy!C$2:C$100,Seznamy!D$2:D$100,\"\")","v":10},{"$f":"_xlfn.XLOOKUP(AI4,Seznamy!C$2:C$100,Seznamy!E$2:E$100,\"\")","v":0}]
[{"$f":"A2","v":1},{"$f":"B2","v":"žádost"},{"$f":"C2","v":"Posouzení záměru DDO"},{"$f":"D2","v":"Další dotčené orgány"},null,{"$f":"F2","v":"as well as is ready for comments from other relevant authorities."},{"$f":"G2","v":5},{"$f":"H2","v":45848.347633217592},null,null,null,null,null,null,null,null,null,null,null,null,null,null,null,null,null,null,1,"Portál","Uzavřeno",null,null,null,"Uzavřeno",null,"Investor",null,{"$f":"\"The request number \"&A5&\" has been completed and delivered to the investor.\"","v":"The request number 1 has been completed and delivered to the investor."},null,null,null,null,null,null,{"$f":"_xlfn.XLOOKUP(AB5,Seznamy!C$2:C$100,Seznamy!D$2:D$100,\"\")","v":10},{"$f":"_xlfn.XLOOKUP(AI5,Seznamy!C$2:C$100,Seznamy!E$2:E$100,\"\")","v":0},null,null,null,null,null,null,null,{"$f":"IF(AND($C5=$AC5,$D5=$AB5,A5<>\"\"),$A5,\"\")","v":""},"",{"$f":"IF($BA5=\"\",\"\",IF($AS5<=$AR5,$AG5,$C5))","v":""},{"$f":"IF($BA5=\"\",\"\",IF($AS5<=$AR5,$AI5,$D5))","v":""},{"$f":"IF(BA5=\"\",\"\",IF(E5=\"\",\"\",E5))","v":""},"",{"$f":"IF(BA5=\"\",BG2,1+BG2)","v":0},"",{"$f":"_xlfn.XLOOKUP(BC5,Seznamy!A:A,Seznamy!B:B,\"\")","v":""}]
[{"$f":"A5","v":1},{"$f":"B5","v":"žádost"},{"$f":"C5","v":"Posouzení záměru DDO"},{"$f":"D5","v":"Další dotčené orgány"},null,{"$f":"F5","v":"as well as is ready for comments from other relevant authorities."},{"$f":"G5","v":5},{"$f":"H5","v":45848.347633217592},0,null,null,null,null,null,null,null,null,null,null,null,null,null,null,null,null,null,2,"Stavební úřad","Posouzení záměru SÚ",null,null,null,"Posouzení záměru PO",null,"Požárníci",null,{"$f":"\"The application number \"&A6&\" has been submitted for review by the fire department.\"","v":"The application number 1 has been submitted for review by the fire department."},null,null,null,null,null,null,{"$f":"_xlfn.XLOOKUP(AB6,Seznamy!C$2:C$100,Seznamy!D$2:D$100,\"\")","v":4},{"$f":"_xlfn.XLOOKUP(AI6,Seznamy!C$2:C$100,Seznamy!E$2:E$100,\"\")","v":0},null,null,null,null,null,null,null,"","","","","","",0,"",{"$f":"_xlfn.XLOOKUP(BC6,Seznamy!A:A,Seznamy!B:B,\"\")","v":""}]
[1,"žádost","Posouzení záměru DDO","Další dotčené orgány",null,"as well as is ready for comments from other relevant authorities.",5,45848.347633217592,1,null,null,null,null,null,null,null,null,null,null,null,null,null,null,null,null,null,2,"Stavební úřad","Posouzení záměru SÚ",null,null,null,"Posouzení záměru Pam",null,"Památkáři",null,{"$f":"\"and to review by the heritage authorities.\"","v":"and to review by the heritage authorities."},null,null,null,null,null,null,{"$f":"_xlfn.XLOOKUP(AB7,Seznamy!C$2:C$100,Seznamy!D$2:D$100,\"\")","v":4},{"$f":"_xlfn.XLOOKUP(AI7,Seznamy!C$2:C$100,Seznamy!E$2:E$100,\"\")","v":0},null,null,null,null,null,null,null,"","","","","","",0,"",{"$f":"_xlfn.XLOOKUP(BC7,Seznamy!A:A,Seznamy!B:B,\"\")","v":""}]
[1,"žádost","Posouzení záměru DDO","Další dotčené orgány",null,"as well as is ready for comments from other relevant authorities.",5,45848.347633217592,null,null,null,null,null,null,null,null,null,null,null,null,null,null,null,null,null,null,2,"Stavební úřad","Posouzení záměru SÚ",null,null,null,"Posouzení záměru OP",null,"Ochrana přírody",null,{"$f":"\"and for review by the nature conservation authority\"","v":"and for review by the nature conservation authority"},null,null,null,null,null,null,{"$f":"_xlfn.XLOOKUP(AB8,Seznamy!C$2:C$100,Seznamy!D$2:D$100,\"\")","v":4},{"$f":"_xlfn.XLOOKUP(AI8,Seznamy!C$2:C$100,Seznamy!E$2:E$100,\"\")","v":0},null,null,null,null,null,null,null,"","","","","","",0,"",{"$f":"_xlfn.XLOOKUP(BC8,Seznamy!A:A,Seznamy!B:B,\"\")","v":""}]
[1,"žádost","Posouzení záměru DDO","Další dotčené orgány",null,"as well as is ready for comments from other relevant authorities.",5,45848.347633217592,null,null,null,null,null,null,null,null,null,null,null,null,null,null,null,null,null,null,2,"Stavební úřad","Posouzení záměru SÚ",null,null,null,"Posouzení záměru Sous",null,"Sousedé",null,{"$f":"\"and is ready for comments from the neighbors.\"","v":"and is ready for comments from the neighbors."},null,null,null,null,null,null,{"$f":"_xlfn.XLOOKUP(AB9,Seznamy!C$2:C$100,Seznamy!D$2:D$100,\"\")","v":4},{"$f":"_xlfn.XLOOKUP(AI9,Seznamy!C$2:C$100,Seznamy!E$2:E$100,\"\")","v":0},null,null,null,null,null,null,null,"","","","","","",0,"",{"$f":"_xlfn.XLOOKUP(BC9,Seznamy!A:A,Seznamy!B:B,\"\")","v":""}]
[1,"žádost","Posouzení záměru DDO","Další dotčené orgány",null,"as well as is ready for comments from other relevant authorities.",5,45848.347633217592,null,null,null,null,null,null,null,null,null,null,null,null,null,null,null,null,null,null,2,"Stavební úřad","Posouzení záměru SÚ",null,null,null,"Posouzení záměru DDO",null,"Další dotčené orgány",null,{"$f":"\"as well as is ready for comments from other relevant authorities.\"","v":"as well as is ready for comments from other relevant authorities."},null,null,null,null,null,null,{"$f":"_xlfn.XLOOKUP(AB10,Seznamy!C$2:C$100,Seznamy!D$2:D$100,\"\")","v":4},{"$f":"_xlfn.XLOOKUP(AI10,Seznamy!C$2:C$100,Seznamy!E$2:E$100,\"\")","v":0},null,null,null,null,null,null,null,"","","","","","",0,"",{"$f":"_xlfn.XLOOKUP(BC10,Seznamy!A:A,Seznamy!B:B,\"\")","v":""}]
[1,"žádost","Posouzení záměru DDO","Další dotčené orgány",null,"as well as is ready for comments from other relevant authorities.",5,45848.347633217592,null,null,null,null,null,null,null,null,null,null,null,null,null,null,null,null,null,null,2,"Stavební úřad","Posouzení záměru PO",null,null,null,"Posouzení záměru PO",null,"Stavební úřad",null,{"$f":"\"The application number \"&A11&\" has not been processed yet due to capacity reasons.\"","v":"The application number 1 has not been processed yet due to capacity reasons."},null,null,null,null,null,null,{"$f":"_xlfn.XLOOKUP(AB11,Seznamy!C$2:C$100,Seznamy!D$2:D$100,\"\")","v":4},{"$f":"_xlfn.XLOOKUP(AI11,Seznamy!C$2:C$100,Seznamy!E$2:E$100,\"\")","v":0},null,null,null,null,null,null,null,{"$f":"IF(AND($C11=$AC11,$D11=$AB11,A11<>\"\"),$A11,\"\")","v":""},{"$f":"IF($BA11=\"\",\"\",B11)","v":""},"","",{"$f":"IF(BA11=\"\",\"\",IF(E11=\"\",\"\",E11))","v":""},"",{"$f":"IF(BA11=\"\",BG10,1+BG10)","v":0},{"$f":"IF($BA11=\"\",\"\",IF(BD11=D11,H11,NOW()))","v":""},{"$f":"_xlfn.XLOOKUP(BC11,Seznamy!A:A,Seznamy!B:B,\"\")","v":""}]
[1,"žádost","Posouzení záměru DDO","Další dotčené orgány",null,"as well as is ready for comments from other relevant authorities.",5,45848.347633217592,null,null,null,null,null,null,null,null,null,null,null,null,null,null,null,null,null,null,2,"Stavební úřad","Posouzení záměru Pam",null,null,null,"Posouzení záměru Pam",null,"Stavební úřad",null,{"$f":"\"The application number \"&A12&\" has not been processed yet due to capacity reasons.\"","v":"The application number 1 has not been processed yet due to capacity reasons."},null,null,null,null,null,null,{"$f":"_xlfn.XLOOKUP(AB12,Seznamy!C$2:C$100,Seznamy!D$2:D$100,\"\")","v":4},{"$f":"_xlfn.XLOOKUP(AI12,Seznamy!C$2:C$100,Seznamy!E$2:E$100,\"\")","v":0},null,null,null,null,null,null,null,"","","","","","",0,"",{"$f":"_xlfn.XLOOKUP(BC12,Seznamy!A:A,Seznamy!B:B,\"\")","v":""}]
[1,"žádost","Posouzení záměru DDO","Další dotčené orgány",null,"as well as is ready for comments from other relevant authorities.",5,45848.347633217592,null,null,null,null,null,null,null,null,null,null,null,null,null,null,null,null,null,null,2,"Stavební úřad","Posouzení záměru OP",null,null,null,"Posouzení záměru OP",null,"Stavební úřad",null,{"$f":"\"The application number \"&A13&\" has not been processed yet due to capacity reasons.\"","v":"The application number 1 has not been processed yet due to capacity reasons."},null,null,null,null,null,null,{"$f":"_xlfn.XLOOKUP(AB13,Seznamy!C$2:C$100,Seznamy!D$2:D$100,\"\")","v":4},{"$f":"_xlfn.XLOOKUP(AI13,Seznamy!C$2:C$100,Seznamy!E$2:E$100,\"\")","v":0},null,null,null,null,null,null,null,"","","","","","",0,"",{"$f":"_xlfn.XLOOKUP(BC13,Seznamy!A:A,Seznamy!B:B,\"\")","v":""}]
[1,"žádost","Posouzení záměru DDO","Další dotčené orgány",null,"as well as is ready for comments from other relevant authorities.",5,45848.347633217592,null,null,null,null,null,null,null,null,null,null,null,null,null,null,null,null,null,null,2,"Stavební úřad","Posouzení záměru Sous",null,null,null,"Posouzení záměru Sous",null,"Stavební úřad",null,{"$f":"\"The application number \"&A14&\" has not been processed yet due to capacity reasons.\"","v":"The application number 1 has not been processed yet due to capacity reasons."},null,null,null,null,null,null,{"$f":"_xlfn.XLOOKUP(AB14,Seznamy!C$2:C$100,Seznamy!D$2:D$100,\"\")","v":4},{"$f":"_xlfn.XLOOKUP(AI14,Seznamy!C$2:C$100,Seznamy!E$2:E$100,\"\")","v":0},null,null,null,null,null,null,null,"","","","","","",0,"",{"$f":"_xlfn.XLOOKUP(BC14,Seznamy!A:A,Seznamy!B:B,\"\")","v":""}]
[1,"žádost","Posouzení záměru DDO","Další dotčené orgány",null,"as well as is ready for comments from other relevant authorities.",5,45848.347633217592,null,null,null,null,null,null,null,null,null,null,null,null,null,null,null,null,null,null,2,"Stavební úřad","Posouzení záměru DDO",null,null,null,"Posouzení záměru DDO",null,"Stavební úřad",null,{"$f":"\"The application number \"&A15&\" has not been processed yet due to capacity reasons.\"","v":"The application number 1 has not been processed yet due to capacity reasons."},null,null,null,null,null,null,{"$f":"_xlfn.XLOOKUP(AB15,Seznamy!C$2:C$100,Seznamy!D$2:D$100,\"\")","v":4},{"$f":"_xlfn.XLOOKUP(AI15,Seznamy!C$2:C$100,Seznamy!E$2:E$100,\"\")","v":0},null,null,null,null,null,null,null,"","","","","","",0,"",{"$f":"_xlfn.XLOOKUP(BC15,Seznamy!A:A,Seznamy!B:B,\"\")","v":""}]
[1,"žádost","Posouzení záměru DDO","Další dotčené orgány",null,"as well as is ready for comments from other relevant authorities.",5,45848.347633217592,null,null,null,null,null,null,null,null,null,null,null,null,null,null,null,null,null,null,2,"Stavební úřad","Příprava kolaudace",null,null,null,"Přizvání PO",null,"Požárníci",null,{"$f":"\"The application number \"&A16&\" has been submitted for review by the fire department.\"","v":"The application number 1 has been submitted for review by the fire department."},null,null,null,null,null,null,{"$f":"_xlfn.XLOOKUP(AB16,Seznamy!C$2:C$100,Seznamy!D$2:D$100,\"\")","v":4},{"$f":"_xlfn.XLOOKUP(AI16,Seznamy!C$2:C$100,Seznamy!E$2:E$100,\"\")","v":0},null,null,null,null,null,null,null,"","","","","","",0,"",{"$f":"_xlfn.XLOOKUP(BC16,Seznamy!A:A,Seznamy!B:B,\"\")","v":""}]
[1,"žádost","Posouzení záměru DDO","Další dotčené orgány",null,"as well as is ready for comments from other relevant authorities.",5,45848.347633217592,null,null,null,null,null,null,null,null,null,null,null,null,null,null,null,null,null,null,2,"Stavební úřad","Příprava kolaudace",null,null,null,"Přizvání Pam",null,"Památkáři",null,{"$f":"\"The application number \"&A17&\" is ready for review by the heritage authorities.\"","v":"The application number 1 is ready for review by the heritage authorities."},null,null,null,null,null,null,{"$f":"_xlfn.XLOOKUP(AB17,Seznamy!C$2:C$100,Seznamy!D$2:D$100,\"\")","v":4},{"$f":"_xlfn.XLOOKUP(AI17,Seznamy!C$2:C$100,Seznamy!E$2:E$100,\"\")","v":0},null,null,null,null,null,null,null,"","","","","","",0,"",{"$f":"_xlfn.XLOOKUP(BC17,Seznamy!A:A,Seznamy!B:B,\"\")","v":""}]
[1,"žádost","Posouzení záměru DDO","Další dotčené orgány",null,"as well as is ready for comments from other relevant authorities.",5,45848.347633217592,null,null,null,null,null,null,null,null,null,null,null,null,null,null,null,null,null,null,2,"Stavební úřad","Příprava kolaudace",null,null,null,"Přizvání OP",null,"Ochrana přírody",null,{"$f":"\"The application number \"&A18&\" is ready for review by the nature conservation authority\"","v":"The application number 1 is ready for review by the nature conservation authority"},null,null,null,null,null,null,{"$f":"_xlfn.XLOOKUP(AB18,Seznamy!C$2:C$100,Seznamy!D$2:D$100,\"\")","v":4},{"$f":"_xlfn.XLOOKUP(AI18,Seznamy!C$2:C$100,Seznamy!E$2:E$100,\"\")","v":0},null,null,null,null,null,null,null,"","","","","","",0,"",{"$f":"_xlfn.XLOOKUP(BC18,Seznamy!A:A,Seznamy!B:B,\"\")","v":""}]
[1,"žádost","Posouzení záměru DDO","Další dotčené orgány",null,"as well as is ready for comments from other relevant authorities.",5,45848.347633217592,null,null,null,null,null,null,null,null,null,null,null,null,null,null,null,null,null,null,2,"Stavební úřad","Příprava kolaudace",null,null,null,"Přizvání DDO",null,"Další dotčené orgány",null,{"$f":"\"The application number \"&A19&\" is ready for comments from other relevant authorities.\"","v":"The application number 1 is ready for comments from other relevant authorities."},null,null,null,null,null,null,{"$f":"_xlfn.XLOOKUP(AB19,Seznamy!C$2:C$100,Seznamy!D$2:D$100,\"\")","v":4},{"$f":"_xlfn.XLOOKUP(AI19,Seznamy!C$2:C$100,Seznamy!E$2:E$100,\"\")","v":0},null,null,null,null,null,null,null,"","","","","","",0,"",{"$f":"_xlfn.XLOOKUP(BC19,Seznamy!A:A,Seznamy!B:B,\"\")","v":""}]
[1,"žádost","Posouzení záměru DDO","Další dotčené orgány",null,"as well as is ready for comments from other relevant authorities.",5,45848.347633217592,null,null,null,null,null,null,null,null,null,null,null,null,null,null,null,null,null,null,2,"Stavební úřad","Žádost o povolení užívání",null,null,null,null,null,null,null,null,null,null,null,null,null,null,{"$f":"_xlfn.XLOOKUP(AB20,Seznamy!C$2:C$100,Seznamy!D$2:D$100,\"\")","v":4},{"$f":"_xlfn.XLOOKUP(AI20,Seznamy!C$2:C$100,Seznamy!E$2:E$100,\"\")","v":0},null,null,null,null,null,null,null,"","","","","","",0,"",{"$f":"_xlfn.XLOOKUP(BC20,Seznamy!A:A,Seznamy!B:B,\"\")","v":""}]
[1,"žádost","Posouzení záměru DDO","Další dotčené orgány",null,"as well as is ready for comments from other relevant authorities.",5,45848.347633217592,null,null,null,null,null,null,null,null,null,null,null,null,null,null,null,null,null,null,2,null,null,null,null,null,null,null,null,null,null,null,null,null,null,null,null,{"$f":"_xlfn.XLOOKUP(AB21,Seznamy!C$2:C$100,Seznamy!D$2:D$100,\"\")","v":0},{"$f":"_xlfn.XLOOKUP(AI21,Seznamy!C$2:C$100,Seznamy!E$2:E$100,\"\")","v":0},null,null,null,null,null,null,null,"","","","","","",0,"",{"$f":"_xlfn.XLOOKUP(BC21,Seznamy!A:A,Seznamy!B:B,\"\")","v":""}]
[{"$f":"A10","v":1},{"$f":"B10","v":"žádost"},{"$f":"C10","v":"Posouzení záměru DDO"},{"$f":"D10","v":"Další dotčené orgány"},null,{"$f":"F10","v":"as well as is ready for comments from other relevant authorities."},{"$f":"G10","v":5},{"$f":"H15","v":45848.347633217592},null,null,null,null,null,null,null,null,null,null,null,null,null,null,null,null,null,null,2,"Požárníci","Posouzení záměru PO",null,null,null,"Schváleno PO",null,"Stavební úřad",null,{"$f":"\"The application number \"&A22&\" is resolved\"","v":"The application number 1 is resolved"},null,null,null,null,null,null,{"$f":"_xlfn.XLOOKUP(AB22,Seznamy!C$2:C$100,Seznamy!D$2:D$100,\"\")","v":2},{"$f":"_xlfn.XLOOKUP(AI22,Seznamy!C$2:C$100,Seznamy!E$2:E$100,\"\")","v":0},null,null,null,null,null,null,null,"","","","","","",0,"",{"$f":"_xlfn.XLOOKUP(BC22,Seznamy!A:A,Seznamy!B:B,\"\")","v":""}]
[1,"žádost","Posouzení záměru DDO","Další dotčené orgány",null,"as well as is ready for comments from other relevant authorities.",5,45848.347633217592,null,null,null,null,null,null,null,null,null,null,null,null,null,null,null,null,null,null,2,"Památkáři","Posouzení záměru Pam",null,null,null,"Schváleno Pam",null,"Stavební úřad",null,{"$f":"\"The application number \"&A23&\" is resolved\"","v":"The application number 1 is resolved"},null,null,null,null,null,null,{"$f":"_xlfn.XLOOKUP(AB23,Seznamy!C$2:C$100,Seznamy!D$2:D$100,\"\")","v":1},{"$f":"_xlfn.XLOOKUP(AI23,Seznamy!C$2:C$100,Seznamy!E$2:E$100,\"\")","v":0},null,null,null,null,null,null,null,"","","","","","",0,"",{"$f":"_xlfn.XLOOKUP(BC23,Seznamy!A:A,Seznamy!B:B,\"\")","v":""}]
[1,"žádost","Posouzení záměru DDO","Další dotčené orgány",null,"as well as is ready for comments from other relevant authorities.",5,45848.347633217592,null,null,null,null,null,null,null,null,null,null,null,null,null,null,null,null,null,null,2,"Ochrana přírody","Posouzení záměru OP",null,null,null,"Schváleno OP",null,"Stavební úřad",null,{"$f":"\"The application number \"&A24&\" is resolved\"","v":"The application number 1 is resolved"},null,null,null,null,null,null,{"$f":"_xlfn.XLOOKUP(AB24,Seznamy!C$2:C$100,Seznamy!D$2:D$100,\"\")","v":1},{"$f":"_xlfn.XLOOKUP(AI24,Seznamy!C$2:C$100,Seznamy!E$2:E$100,\"\")","v":0},null,null,null,null,null,null,null,"","","","","","",0,"",{"$f":"_xlfn.XLOOKUP(BC24,Seznamy!A:A,Seznamy!B:B,\"\")","v":""}]
[1,"žádost","Posouzení záměru DDO","Další dotčené orgány",null,"as well as is ready for comments from other relevant authorities.",5,45848.347633217592,null,null,null,null,null,null,null,null,null,null,null,null,null,null,null,null,null,null,2,"Sousedé","Posouzení záměru Sous",null,null,null,"Schváleno Sous",null,"Stavební úřad",null,{"$f":"\"The application number \"&A25&\" is resolved\"","v":"The application number 1 is resolved"},null,null,null,null,null,null,{"$f":"_xlfn.XLOOKUP(AB25,Seznamy!C$2:C$100,Seznamy!D$2:D$100,\"\")","v":1},{"$f":"_xlfn.XLOOKUP(AI25,Seznamy!C$2:C$100,Seznamy!E$2:E$100,\"\")","v":0},null,null,null,null,null,null,null,"","","","","","",0,"",{"$f":"_xlfn.XLOOKUP(BC25,Seznamy!A:A,Seznamy!B:B,\"\")","v":""}]
[1,"žádost","Posouzení záměru DDO","Další dotčené orgány",null,"as well as is ready for comments from other relevant authorities.",5,45848.347633217592,null,null,null,null,null,null,null,null,null,null,null,null,null,null,null,null,null,null,3,"Další dotčené orgány","Posouzení záměru DDO",null,null,null,"Schváleno DDO",null,"Stavební úřad",null,{"$f":"\"The response to the application number \"&A26&\" has been returned to the building office.\"","v":"The response to the application number 1 has been returned to the building office."},null,null,null,null,null,null,{"$f":"_xlfn.XLOOKUP(AB26,Seznamy!C$2:C$100,Seznamy!D$2:D$100,\"\")","v":1},{"$f":"_xlfn.XLOOKUP(AI26,Seznamy!C$2:C$100,Seznamy!E$2:E$100,\"\")","v":0},null,null,null,null,null,null,null,1,"žádost","Schváleno DDO","Stavební úřad","","The response to the application number 1 has been returned to the building office.",1,45854.487986458334,{"$f":"_xlfn.XLOOKUP(BC26,Seznamy!A:A,Seznamy!B:B,\"\")","v":1}]
[1,"žádost","Posouzení záměru DDO","Další dotčené orgány",null,"as well as is ready for comments from other relevant authorities.",5,45848.347633217592,null,null,null,null,null,null,null,null,null,null,null,null,null,null,null,null,null,null,4,"Stavební úřad","Schváleno PO",null,null,null,"Uzavřeno",null,"Portál",null,{"$f":"\"The response to the application number \"&A27&\" has been returned to the building office.\"","v":"The response to the application number 1 has been returned to the building office."},null,null,null,null,null,null,{"$f":"_xlfn.XLOOKUP(AB27,Seznamy!C$2:C$100,Seznamy!D$2:D$100,\"\")","v":4},{"$f":"_xlfn.XLOOKUP(AI27,Seznamy!C$2:C$100,Seznamy!E$2:E$100,\"\")","v":0},null,null,null,null,null,null,null,"","","","","","",1,"",{"$f":"_xlfn.XLOOKUP(BC27,Seznamy!A:A,Seznamy!B:B,\"\")","v":""}]
[1,"žádost","Posouzení záměru DDO","Další dotčené orgány",null,"as well as is ready for comments from other relevant authorities.",5,45848.347633217592,null,null,null,null,null,null,null,null,null,null,null,null,null,null,null,null,null,null,5,"Stavební úřad","Schváleno Pam",null,null,null,"Uzavřeno",null,"Portál",null,{"$f":"\"The response to the application number \"&A28&\" has been returned to the building office.\"","v":"The response to the application number 1 has been returned to the building office."},null,null,null,null,null,null,{"$f":"_xlfn.XLOOKUP(AB28,Seznamy!C$2:C$100,Seznamy!D$2:D$100,\"\")","v":4},{"$f":"_xlfn.XLOOKUP(AI28,Seznamy!C$2:C$100,Seznamy!E$2:E$100,\"\")","v":0},null,null,null,null,null,null,null,"","","","","","",1,"",{"$f":"_xlfn.XLOOKUP(BC28,Seznamy!A:A,Seznamy!B:B,\"\")","v":""}]
[1,"žádost","Posouzení záměru DDO","Další dotčené orgány",null,"as well as is ready for comments from other relevant authorities.",5,45848.347633217592,null,null,null,null,null,null,null,null,null,null,null,null,null,null,null,null,null,null,6,"Stavební úřad","Schváleno OP",null,null,null,"Uzavřeno",null,"Portál",null,{"$f":"\"The response to the application number \"&A29&\" has been returned to the building office.\"","v":"The response to the application number 1 has been returned to the building office."},null,null,null,null,null,null,{"$f":"_xlfn.XLOOKUP(AB29,Seznamy!C$2:C$100,Seznamy!D$2:D$100,\"\")","v":4},{"$f":"_xlfn.XLOOKUP(AI29,Seznamy!C$2:C$100,Seznamy!E$2:E$100,\"\")","v":0},null,null,null,null,null,null,null,"","","","","","",1,"",{"$f":"_xlfn.XLOOKUP(BC29,Seznamy!A:A,Seznamy!B:B,\"\")","v":""}]
[1,"žádost","Posouzení záměru DDO","Další dotčené orgány",null,"as well as is ready for comments from other relevant authorities.",5,45848.347633217592,null,null,null,null,null,null,null,null,null,null,null,null,null,null,null,null,null,null,7,"Stavební úřad","Schváleno Sous",null,null,null,"Uzavřeno",null,"Portál",null,{"$f":"\"The response to the application number \"&A30&\" has been returned to the building office.\"","v":"The response to the application number 1 has been returned to the building office."},null,null,null,null,null,null,{"$f":"_xlfn.XLOOKUP(AB30,Seznamy!C$2:C$100,Seznamy!D$2:D$100,\"\")","v":4},{"$f":"_xlfn.XLOOKUP(AI30,Seznamy!C$2:C$100,Seznamy!E$2:E$100,\"\")","v":0},null,null,null,null,null,null,null,"","","","","","",1,"",{"$f":"_xlfn.XLOOKUP(BC30,Seznamy!A:A,Seznamy!B:B,\"\")","v":""}]
[1,"žádost","Posouzení záměru DDO","Další dotčené orgány",null,"as well as is ready for comments from other relevant authorities.",5,45848.347633217592,null,null,null,null,null,null,null,null,null,null,null,null,null,null,null,null,null,null,7,"Stavební úřad","Schváleno DDO",null,null,null,"Uzavřeno",null,"Portál",null,{"$f":"\"The application number \"&A31&\" is resolved\"","v":"The application number 1 is resolved"},null,null,null,null,null,null,{"$f":"_xlfn.XLOOKUP(AB31,Seznamy!C$2:C$100,Seznamy!D$2:D$100,\"\")","v":4},{"$f":"_xlfn.XLOOKUP(AI31,Seznamy!C$2:C$100,Seznamy!E$2:E$100,\"\")","v":0},null,null,null,null,null,null,null,"","","","","","",1,"",{"$f":"_xlfn.XLOOKUP(BC31,Seznamy!A:A,Seznamy!B:B,\"\")","v":""}]
[null,null,null,null,null,null,null,null,null,null,null,null,null,null,null,null,null,null,null,null,null,null,null,null,null,null,null,"Investor","Uzavřeno",null,null,null,"Archivováno",null,"Investor",null,null,null,null,null,null,null,null,{"$f":"_xlfn.XLOOKUP(AB32,Seznamy!C$2:C$100,Seznamy!D$2:D$100,\"\")","v":1},{"$f":"_xlfn.XLOOKUP(AI32,Seznamy!C$2:C$100,Seznamy!E$2:E$100,\"\")","v":0},null,null,null,null,null,null,null,"","","","","","",1,"",{"$f":"_xlfn.XLOOKUP(BC32,Seznamy!A:A,Seznamy!B:B,\"\")","v":""}]
[null,null,null,null,null,null,null,null,null,null,null,null,null,null,null,null,null,null,null,null,null,null,null,null,null,null,null,"Investor","Archivováno",null,null,null,null,null,null,null,null,null,null,null,null,null,null,{"$f":"_xlfn.XLOOKUP(AB33,Seznamy!C$2:C$100,Seznamy!D$2:D$100,\"\")","v":1},{"$f":"_xlfn.XLOOKUP(AI33,Seznamy!C$2:C$100,Seznamy!E$2:E$100,\"\")","v":0},null,null,null,null,null,null,null,{"$f":"IF(AND($C33=$AC33,$D33=$AB33,A33<>\"\"),$A33,\"\")","v":""},{"$f":"IF($BA33=\"\",\"\",B33)","v":""},"","",{"$f":"IF(BA33=\"\",\"\",IF(E33=\"\",\"\",E33))","v":""},"",{"$f":"IF(BA33=\"\",BG32,1+BG32)","v":1},{"$f":"IF($BA33=\"\",\"\",IF(BD33=D33,H33,NOW()))","v":""},{"$f":"_xlfn.XLOOKUP(BC33,Seznamy!A:A,Seznamy!B:B,\"\")","v":""}]
[null,null,null,null,null,null,null,null,null,null,null,null,null,null,null,null,null,null,null,null,null,null,null,null,null,null,null,null,null,null,null,null,null,null,null,null,null,null,null,null,null,null,null,{"$f":"_xlfn.XLOOKUP(AB34,Seznamy!C$2:C$100,Seznamy!D$2:D$100,\"\")","v":0},{"$f":"_xlfn.XLOOKUP(AI34,Seznamy!C$2:C$100,Seznamy!E$2:E$100,\"\")","v":0},null,null,null,null,null,null,null,"","","","","","",1,"",{"$f":"_xlfn.XLOOKUP(BC34,Seznamy!A:A,Seznamy!B:B,\"\")","v":""}]
[null,null,null,null,null,null,null,null,null,null,null,null,null,null,null,null,null,null,null,null,null,null,null,null,null,null,null,null,null,null,null,null,null,null,null,null,null,null,null,null,null,null,null,{"$f":"_xlfn.XLOOKUP(AB35,Seznamy!C$2:C$100,Seznamy!D$2:D$100,\"\")","v":0},{"$f":"_xlfn.XLOOKUP(AI35,Seznamy!C$2:C$100,Seznamy!E$2:E$100,\"\")","v":0},null,null,null,null,null,null,null,"","","","","","",1,"",{"$f":"_xlfn.XLOOKUP(BC35,Seznamy!A:A,Seznamy!B:B,\"\")","v":""}]

{"sheet":"NewDataFiles","index":4,"n_rows":33,"n_cols":17,"rows_kept":33,"cut":false,"hidden":false,"merged":[]}
["FileID","FileName","FileType","CurrentSystem","NextSystem","Content","Count","TimeStamp",{"$f":"Seznamy!C$2","v":"Portál"},{"$f":"Seznamy!C$3","v":"Stavební úřad"},{"$f":"Seznamy!C$4","v":"Požárníci"},{"$f":"Seznamy!C$5","v":"Památkáři"},{"$f":"Seznamy!C$6","v":"Ochrana přírody"},{"$f":"Seznamy!C$7","v":"Sousedé"},{"$f":"Seznamy!C$8","v":"Operátoři"},{"$f":"Seznamy!C$9","v":"Ministerstvo ŽP"},{"$f":"Seznamy!C$10","v":"Soud"}]
[null,null,null,null,null,null,null,null,{"$f":"IF(I$1=$D2,1,0)","v":0},0,0,0,0,0,0,0,0]
[null,null,null,null,null,null,null,null,0,0,0,0,0,0,0,0,0]
[null,null,null,null,null,null,null,null,0,0,0,0,0,0,0,0,0]
[null,null,null,null,null,null,null,null,0,0,0,0,0,0,0,0,0]
[null,null,null,null,null,null,null,null,{"$f":"IF(I$1=$D6,1,0)","v":0},0,0,0,0,0,0,0,0]
[null,null,null,null,null,null,null,null,0,0,0,0,0,0,0,0,0]
[null,null,null,null,null,null,null,null,0,0,0,0,0,0,0,0,0]
[null,null,null,null,null,null,null,null,0,0,0,0,0,0,0,0,0]
[null,null,null,null,null,null,null,null,0,0,0,0,0,0,0,0,0]
[null,null,null,null,null,null,null,null,0,0,0,0,0,0,0,0,0]
[null,null,null,null,null,null,null,null,0,0,0,0,0,0,0,0,0]
[null,null,null,null,null,null,null,null,0,0,0,0,0,0,0,0,0]
[null,null,null,null,null,null,null,null,0,0,0,0,0,0,0,0,0]
[null,null,null,null,null,null,null,null,0,0,0,0,0,0,0,0,0]
[null,null,null,null,null,null,null,null,0,0,0,0,0,0,0,0,0]
[null,null,null,null,null,null,null,null,0,0,0,0,0,0,0,0,0]
[null,null,null,null,null,null,null,null,0,0,0,0,0,0,0,0,0]
[null,null,null,null,null,null,null,null,0,0,0,0,0,0,0,0,0]
[null,null,null,null,null,null,null,null,0,0,0,0,0,0,0,0,0]
[null,null,null,null,null,null,null,null,0,0,0,0,0,0,0,0,0]
[null,null,null,null,null,null,null,null,0,0,0,0,0,0,0,0,0]
[null,null,null,null,null,null,null,null,0,0,0,0,0,0,0,0,0]
[null,null,null,null,null,null,null,null,0,0,0,0,0,0,0,0,0]
[null,null,null,null,null,null,null,null,0,0,0,0,0,0,0,0,0]
[null,null,null,null,null,null,null,null,0,0,0,0,0,0,0,0,0]
[null,null,null,null,null,null,null,null,0,0,0,0,0,0,0,0,0]
[null,null,null,null,null,null,null,null,0,0,0,0,0,0,0,0,0]
[null,null,null,null,null,null,null,null,0,0,0,0,0,0,0,0,0]
[null,null,null,null,null,null,null,null,0,0,0,0,0,0,0,0,0]
[null,null,null,null,null,null,null,null,0,0,0,{"$f":"IF(L$1=$D31,1,0)","v":0},0,0,0,0,0]
[null,null,null,null,null,null,null,null,{"$f":"IF(I$1=$D32,1,0)","v":0},0,0,0,0,0,0,0,0]
[null,null,null,null,null,null,null,null,0,0,0,0,0,0,0,0,0]

{"sheet":"Log","index":5,"n_rows":12,"n_cols":8,"rows_kept":12,"cut":false,"hidden":false,"merged":[]}
["FileID","FileName","FileType","CurrentSystem","NextSystem","Content","Počet","TimeStamp"]
[1,"žádost","Posouzení záměru SÚ","Stavební úřad",null,"The request number 1 has been forwarded to the building office.",1,45848.347500925927]
[1,"žádost","Posouzení záměru PO","Požárníci",null,"The application number 1 has been submitted for review by the fire department.",1,45848.347623263886]
[1,"žádost","Posouzení záměru Pam","Památkáři",null,"and to review by the heritage authorities.",2,45848.347623263886]
[1,"žádost","Posouzení záměru OP","Ochrana přírody",null,"and for review by the nature conservation authority",3,45848.347623263886]
[1,"žádost","Posouzení záměru Sous","Sousedé",null,"and is ready for comments from the neighbors.",4,45848.347623263886]
[1,"žádost","Posouzení záměru DDO","Další dotčené orgány",null,"as well as is ready for comments from other relevant authorities.",5,45848.347623379632]
[1,"žádost","Schváleno PO","Stavební úřad",null,"The application number 1 is resolved",1,45848.348330787034]
[1,"žádost","Schváleno Pam","Stavební úřad",null,"The application number 1 is resolved",1,45848.3483380787]
[1,"žádost","Posouzení záměru OP","Ochrana přírody",null,"The application number 1 is resolved",1,45848.347627314812]
[1,"žádost","Posouzení záměru Sous","Sousedé",null,"The application number 1 is resolved",1,45848.347630324075]
[1,"žádost","Posouzení záměru DDO","Další dotčené orgány",null,"The response to the application number 1 has been returned to the building office.",1,45848.347633217592]

{"sheet":"Seznamy","index":6,"n_rows":26,"n_cols":6,"rows_kept":26,"cut":false,"hidden":false,"merged":[]}
["FileType","Pracnost","Systems","Capacity","Aktuální kapacita","FileTypes in Systems"]
["Povolení záměru",1,"Portál",10,{"$f":"SUM(NewDataFiles!I$2:I$33)","v":0}]
["Posouzení záměru SÚ",1,"Stavební úřad",4,{"$f":"SUM(NewDataFiles!J$2:J$33)","v":0}]
["Posouzení záměru PO",1,"Požárníci",2,{"$f":"SUM(NewDataFiles!K$2:K$33)","v":0}]
["Posouzení záměru Pam",1,"Památkáři",1,{"$f":"SUM(NewDataFiles!L$2:L$33)","v":0}]
["Posouzení záměru OP",1,"Ochrana přírody",1,{"$f":"SUM(NewDataFiles!M$2:M$33)","v":0}]
["Posouzení záměru Sous",1,"Sousedé",1,{"$f":"SUM(NewDataFiles!N$2:N$33)","v":0}]
["Posouzení záměru DDO",1,"Operátoři",1,{"$f":"SUM(NewDataFiles!O$2:O$33)","v":0}]
["Schváleno PO",1,"Ministerstvo ŽP",1,{"$f":"SUM(NewDataFiles!P$2:P$33)","v":0}]
["Schváleno Pam",1,"Soud",1,{"$f":"SUM(NewDataFiles!Q$2:Q$33)","v":0}]
["Schváleno OP",1,"Investor",1,{"$f":"SUM(NewDataFiles!R$2:R$33)","v":0}]
["Schváleno Sous",1,"Další dotčené orgány",1,{"$f":"SUM(NewDataFiles!R$2:R$33)","v":0}]
["Schváleno DDO",1,"Majitel stavající infrasturktury",1,{"$f":"SUM(NewDataFiles!R$2:R$33)","v":0}]
[null,null,"Obec",1,{"$f":"SUM(NewDataFiles!R$2:R$33)","v":0}]
[null,null,"Poskytovatel dotace",1,{"$f":"SUM(NewDataFiles!R$2:R$33)","v":0}]
[null,null,"Stavební firma",1,{"$f":"SUM(NewDataFiles!R$2:R$33)","v":0}]
["Žádost o koladaci",null,"Další systém 16",1,{"$f":"SUM(NewDataFiles!R$2:R$33)","v":0}]
["Žádost o povolení užívání",null,"Další systém 17",1,{"$f":"SUM(NewDataFiles!R$2:R$33)","v":0}]
["Příprava kolaudace",null,"Další systém 18",1,{"$f":"SUM(NewDataFiles!R$2:R$33)","v":0}]
["Příprava povolení užívání",null,"Další systém 19",1,{"$f":"SUM(NewDataFiles!R$2:R$33)","v":0}]
["Přizvání PO",null,"Další systém 20",1,{"$f":"SUM(NewDataFiles!R$2:R$33)","v":0}]
["Uzavřeno",null,"LogFile",10,{"$f":"SUM(NewDataFiles!R$2:R$33)","v":0}]
["Přizvání Pam"]
["Přizvání OP"]
["Přizvání DDO"]
["Archivováno"]

{"sheet":"RFC","index":7,"n_rows":95,"n_cols":2,"rows_kept":95,"cut":false,"hidden":false,"merged":[]}
["Funkční Requirement ID","Description"]
[null,"Data:"]
[1,"VBA Makra pracují s listy DataFiles, NewDataFiles, Systems, Log a jejich jednotlivými poli, jak jsou popsána dále"]
["1a","Všechna pole na každém listu jsou definována na řádku číslo 1 daného listu."]
[2,"List DataFiles obsahuje tato pole:"]
["2a","FileID - je identifikátor datového souboru"]
["2b","FileName - je jméno datového souboru. Pokud není FileName vyplněn, je hodnota rovna FileID"]
["2c","FileType - je typ datového souboru"]
["2d","CurrentSystem - je systém, ve kterém se datový soubor nachází"]
["2e","NextSystem - je system, do kterého se datový soubor přesune při proběhu akce (ActionPlus nebo ActionMinus) definované na listu System, kterou na datový soubor aplikuje Systeím, jeho jméno je v CurrentSystem"]
["2f","Content - obsah datového souboru = je to obsah zprávy, kterou si datový typ nese a kterou může sytém v rámci akce doplnit."]
[]
["3","List NewDataFiles obsahuje tato pole:"]
["3a","FileID - je identifikátor datového souboru"]
["3b","FileName - je jméno datového souboru. Pokud není FileName vyplněn, je hodnota rovna FileID"]
["3c","FileType - je typ datového souboru"]
["3d","CurrentSystem - je systém, ve kterém se datový soubor nachází"]
["3e","NextSystem - je system, do kterého se datový soubor přesune při proběhu akce (ActionPlus nebo ActionMinus) definované na listu System, kterou na datový soubor aplikuje Systeím, jeho jméno je v CurrentSystem"]
["3f","Content - obsah datového souboru = je to obsah zprávy, kterou si datový typ nese a kterou může sytém v rámci akce doplnit."]
[]
["4","Na listu Systems jsou tato pole a mají tento význam:"]
["4a","Systém ID - identifikátor systému"]
["4b","SystemName - jméno systému"]
["4c","Type je to hodnota, které je de facto stejná jako FileType z listu DataFiles. \nDalší sloupce jsou popisem chování Systému.\nTo, co systém udělá, je popsáno dvěma částmi:\n - Nepodmíněná činnost = je uvedená v poli Formula. V tomto okamžiku to mohou být dva typy úkonů:\n - - Souhlas = Souhlas + 1; což je činnost, které má nasčítat více souhlasů a provést akci pokud jejich hodnota je např. vyšší než .. \n - - Content = Content&STRING; což je činnost, která doplňuje buňku v poliu Content o další obsah, který je uveden v Poli STRING\n - Podmíněná činnost = je uvedená v polích ActionPlus / ActionMinus a dále NextPlus / NextMinus a dále ContentPlus / ContentMinus, StringPlus / StringMinus a EventPlus / EventMinus.\nTato činnost je podmína výsledkem operace ve soupci IF. Pokud je výsledek Pravda - použije se činnost v polích končících na Plus, pokud je výsledkem NEPRAVDA, použije se činnost v polích končících na Minus."]
["4d","Formula - jedná se nepodmíněkou činnost dle popisu v 1b3.\nPokud je příslušná buňka pole prázdná, neprovádí se žádná operace"]
["4e","IF - podmínka, ve které se rozhoduje Pravda / Nepravda a dle toho se použijí další činnosti dle popisu v 1b3.\nPokud v bňce tohoto pole není žádná hodnota, výsledek je PRAVDA"]
["4f","Delay - v tomto okamžiku bezvýznamová hodnota."]
["4g","ActionPlus / ActionMinus - na základě výsledku funkce IF se provede změna FileType dotčeného datového souboru na hodnotu uvedenou v jednom z těchto polí mdle výsledku operace IF"]
["4h","NextPlus /NextMinus - SystemID následného systému a zase přiřadí se podle výsedku operace IF"]
["4i","ContentPlus / ContentMinus - obsah datového souboru podle výsledku funkce IF. Pokud je v poli Formula Content = Content&STRING, rozšíří se stávající hodnota Content o hodnotu v poli StringPlus / StringMinus dle výsledku operace IF. Výsledek je potom v listu DataFiles v poli Content na ůlistu DataFiles"]
["4j","EventPlus / EventMinus - pevně definovaný popis výsledku činnosti systému pro případy, že výsledek fiunkce IF bude Pravda / Nepravda. Hodnota se po provedení činností v Systems zapíše do listu Log do pole Event"]
["4k","StringPlus / StringMinus - hodnota, o kterou se rozšiřuje hodnota Content, pokud v poli Formula je příkaz Content = Content&String, a to dle výsledku noeprace IF"]
["4l","Cell - pole pro souřadnici buňky na listu Cover, kam se bude zapisovat stav podle hodnoty pole Current system datového souboru. Pokud hodnota CurrentSystem na listu DataFiles bude rovna hodnotě SystemID na listu Systems, zapíše se do \"1\" do buńky na listu Cover, jejíž adresa je v poli Cell na listu Systems. "]
[]
["5","Na listu Log jsou tato pole:"]
["5a","TimeStamp - časové razítko"]
["5b","FileID - indetifikátor zpracovaného datového souboru"]
["5c","Event - slovní popis toho, co se stalo. Tato hodnota je definována jednou z možností EventPlus / EventMinus na listu Systems a její vývěr je dán výsledkem operace IF"]
[]
[null,"Makra VBA:"]
[]
["6","Makro CreateNewFile"]
["6a","Makro vytvoří záznam na listu NewDataFiles takto: \nZáznamy se píší do pvního volného řádku od řádku číslo 2 bez omezení na počet řádků."]
["6b","Do pole FileID se napíše číslo záznamu. Číslo záznamu se určí tak, že se na prohledá list DataFiles a najde se nejvyšší číslo ve sloupci FileID. Číslo záznamu je o jednotku vyšší. "]
["6c","Do pole FileName na listu NewDataFiles se napíše string, který je uveden na listu Cover, v buňce E9"]
["6d","Do pole FileType se napíše string, který je uveden na listu Cover, v buňce E7"]
["6e","Do pole CurrentSystem se napíše hodnota 1"]
["6f","Do pole NextSystem se napíše hodnota, která je uvedena na listu Cover, v buňce E11"]
["6g","Do pole Content se napíše string, který je uveden na listu Cover, v buňce E13"]
["6h","Do pole Count se napíše 0"]
["6i","Do listu Log se připíší od prvního volného řádku vybraná pole z listu NewDataFiles takto:\nDo pole TimeStanp na listu Log se napíše aktuální čas (hod:min:sec);\nDo pole  FileID na listu Log se napíše FileID z listu NewDataFiles;\nDo pole FileName na listu Log se napíše FileName z listu NewDataFiles;\nDo pole FileType na listu Log se napíše FileType z listu NewDataFiles;\nDo pole Event na listu Log se napíše ContentPlus z listu NewDataFiles"]
["6j","Záznamy z listu NewDataFiles se překopírují na list DataFiles a to od prvního volného řádku = řádku, který má prázdnou buňku v poli FileID"]
["6k","Záznamy na listu NewDataFiles se smažou počínaje řádkem číslo 2 až do posledního řádku, kde buňka v poli FileID není prázdná."]
[]
["7","Makro SystemAction"]
["7a","Makro pracuje nad listem Systems s tím, "]
["7b","Makro prochází postuopně všechny řádky na listu DataFiles až do prvního prázdného řádku. Jakmile narazí na první prádný řádek, začnou se provádět kroky označené 7h a další."]
["7c","Pro každý řádek z listu DataFiles se projdou všechny řádky na listu Systems. Jakmile se projede poslední neprázdný řádek na listu Systems, makro se přejde ke zpracování dalšího řádku na listu DataFiles."]
["7c","Pokud při procházení řádků na listu SystemsMakro zkopíruje hodnoty ze zpracovávaného řádku z listu DataFile na list NewDataFiles na nový řádek takto:\nFileID z listu DataFiles do FileID na listu NewDataFiles;\nFileName z listu DataFiles do FileName na listu NewDataFiles;\nCount z listu DataFiles do Count na listu NewDataFiles\nPoznámka: Pokud se ke zpracovávanému řádku z listu DataFiles najde více řádků na listu Systems, které splňují podmínky v 7b, pak výsledkem je více řádků na listu NewDataFiles"]
["7d","Pokud je v poli Formula na listu Systems hodnota \"Inc\", pak se na listu NewDataFiles inkrementuje hodnota v poli Counter o hodnotu 1. Pokud je buňka prázdná, neprovede se žádná akce."]
["7e","Pokud je v poli Formula na listu Systems hodnoda \"Add\", pak se na listu NewDataFiles přidá ke stringu v poli Content string, který je na listu Systems v poli ContentPlus"]
["7f","Pokud je v poli If na listu Systems string \"Count = 5\", pak se na listu NewDataFiles\nzkontroluje, zda je v poli Count hodnota 5. \nPokud ano, pak se do pole NextSystem na Listu NewDataFiles napíše hodnota, která je v poli NextPlus na listu Systems.\nPokud ne, pak se do pole NextSystem na listu NewDataFiles napíše hodnota, které je v poli NextMinus na listu Systems.\nDále:\nPokud je stejná podmínka splněna, pak se do pole FileType na listu NewDataFiles napíše hodnota pole ActionPlus z listu Systems;\nPokud tato podmínka není splněna, pak se do pole FileType na listu NewDataFiles napíše hodnota pole ActionMinus z listu Systems;\n\nPokud je buňka v poli If prázdná, pak se do pole NextSystem na Listu NewDataFiles napíše hodnota, která je v poli NextPlus na listu Systems a dále do pole FileType na listu NewDataFiles se napíše hodnota pole ActionPlus z listu Systems;"]
["7g","Výsledkem je tedy jeden až více nových záznamů na listu NewDataFiles, které odpovídají počtu záznamů na listu Systems, které splňují podmínku v 7b"]
["7h","Do listu Log se připíší od prvního volného řádku vybraná pole z listu NewDataFiles takto:\nDo pole TimeStanp na listu Log se napíše aktuální čas (hod:min:sec);\nDo pole  FileID na listu Log se napíše FileID z listu NewDataFiles;\nDo pole FileName na listu Log se napíše FileName z listu NewDataFiles;\nDo pole FileType na listu Log se napíše FileType z listu NewDataFiles;\nDo pole CurrentSystem na listu Log se napíše CurrentSystem z listu NewDataFiles;\nDo pole NextSystem na listu Log se napíše NextSystem z listu NewDataFiles;\nDo pole Event na listu Log se napíše ContentPlus z listu NewDataFiles"]
["7i","Obsah listu NewDataFiles se překopírují řádky od řádku číslo 2 do posledního neprázdného řádku na list DataFiles takto:\nCelé pole A od řádku 2 na listu NewDataFiles se zkopíruje do pole A od řádku 2 na listu DataFiles\nCelé pole B od řádku 2 na listu NewDataFiles se zkopíruje do pole B od řádku 2 na listu DataFiles\nCelé pole C od řádku 2 na listu NewDataFiles se zkopíruje do pole C od řádku 2 na listu DataFiles\nCelé pole E od řádku 2 na listu NewDataFiles se zkopíruje do pole D od řádku 2 na listu DataFiles\nCelé pole E od řádku 2 na listu NewDataFiles se zkopíruje do pole E od řádku 2 na listu DataFiles\nCelé pole F od řádku 2 na listu NewDataFiles se zkopíruje do pole F od řádku 2 na listu DataFiles\nCelé pole G od řádku 2 na listu NewDataFiles se zkopíruje do pole G od řádku 2 na listu DataFiles"]
["7j","Na listu NewDataFiles se smažou všechny neprázdné řádky."]
[]
["8","Makro Trigger"]
[null,"Zjisti se zda řádek č. 3 na listu DataFiles je neprázdný. Pokud to platí zavolá se Makro DataFilesAction; pokud řádek č. 3 je prázdný, zkopírují se všechna pole z listu NewDataFiles na list DataFiles. Na listu NewDataFiles se všechny řádky počínaje řádkem číslo 2 vymažou."]
[null,"Makro se ukončí."]
[]
["9","Makro CopyFromDataFiles"]
["9a","Z listu DataFiles zkopírujte (uložit jako hodnotu) buňky na řádku číslo 2 ve sloupcích A až G na list Systems, do řádku číslo 2, do buněk A až G."]
["9b","Smažte na listu DataFiles řádek číslo 2, buňky A až G"]
["9c","Posuňte všechny buňky ve sloupcích A až G o jednu pozici nahoru."]
["9d","Vytvořte MsgBox"]
["9e","Pokud má řádek číslo 2 neprázdnou buňku ve sloupci A, opakujte smyčku od prvního bodu. Pokud je tato buňka prázdná, ukončete Makro."]
[]
["10","Makro CopyToNewDataFiles"]
["10a","Z listu Systems zkopírujte (uložit jako hodnotu) ze všech řádků, které nemají ve sloupci CA prázdnou buňku, buňky ve sloupcích CA až GG na list NewDataFiles do sloupců A až G a to počínaje prvním prázdným řádkem."]
[]
["11","Makro CopyToDataFiles"]
["11a","Z listu NewDataFiles zkopírujte (uložit jako hodnotu) ze všech řádků, které mají ve sloupci A hodnotu mezi 1 až 999 buňky ve sloupcích A až G na list DataFiles, a to na řádky počínaje řádkem číslo 2. Obsah všech kopírovaných řádků (tedy ne řádek číslo 1) smažte."]
[]
["11","Makro Consolidation"]
["11a","Zpracovává data na listu DataFiles takto:\nPro každý řádek, počínaje řádkem 2 provede porovnání všech buněk, které jsou ve sloupcích A až F s buňkami, které jsou na dalších řádcích, počínaje řádkem 3 v odpovídajících sloupcich.\nPokud najde shodu, tak provede následující:\n - smaže řádek s vyšším číslem řádku a\n - v poli G zvětší hodnotu o +1"]
["11b","Pak pokračuje na další řádky až do posledního řádku"]
["11c","Pak ukončí Makro"]
[]
["11","Makro Visualisation"]
[null,"Zpracovává data na listu DataFiles takto:\nZáznamy se procházejí řádek po řádku od řádku číslo 2. Hodnota ve sloupci D se porovná s hodnotou v prvním řádku na listu Cover (jsou tam uvedeny v některých sloupcích hodnoty 1 až 7,  vždy jedna v jednom sloupci. Pokud se pro nějaký sloupec na listui Cover objeví tato shoda, udělá se následující:"]
[null,"Zapíše se hodnota z listu DataFiles ze sloupce A zpracovávaného řádku na list Cover, do sloupce, pro který byla nalezena shoda a do prvního volného řádku počínaje řádkem čéslo 7"]
[null,"Zapíše se hodnota z listu DataFiles ze sloupce B zpracovávaného řádku na list Cover, do sloupce o jeden více vpravo než  je sloupec, pro který byla nalezena shoda a do prvního volného řádku počínaje řádkem číslo 7"]
[null,"Pak se pokračuje na další řádek listu DataFiles, dokud se nanajde prázdný řádek (buňka ve sloupci A je prázdná)"]
[null,"Pak se Makro ukončí"]